Service Area,Service Division,Expense Type,Expense Code,Detailed Expense Type,Payment Date,Transaction Number,Amount Exc VAT,Supplier Name
Regeneration Economy and Growth,Planning & Housing,Supplies and Services,336005,Advertising E336,03/01/2023,4085183-41619802,"1,022.48",NEWSQUEST (YORKSHIRE & NORTH EAST) LTD.
Neighbourhoods and Climate Change,Highways,Supplies and Services,336005,Advertising E336,05/01/2023,4085733-41656746,561.67,NEWSQUEST (YORKSHIRE & NORTH EAST) LTD.
Regeneration Economy and Growth,Economic Development Level C,Supplies and Services,336005,Advertising E336,06/01/2023,4086020-41657087,"2,250.00",NEWSQUEST (YORKSHIRE & NORTH EAST) LTD.
Adult and Health Services,Public Health CC0450,Supplies and Services,336005,Advertising E336,06/01/2023,4086087-22780,700.00,SOUTH WEST DURHAM NEWS CIC.
Children and Young Peoples Services,Head of Childrens Social Care,Supplies and Services,336005,Advertising E336,06/01/2023,4086111-2661B,729.00,THREE MOTION MEDIA LTD.
Neighbourhoods and Climate Change,Highways,Supplies and Services,336005,Advertising E336,09/01/2023,4086438-41658898,693.33,NEWSQUEST (YORKSHIRE & NORTH EAST) LTD.
Regeneration Economy and Growth,Planning & Housing,Supplies and Services,336005,Advertising E336,09/01/2023,4086438-41670367,"1,088.31",NEWSQUEST (YORKSHIRE & NORTH EAST) LTD.
Regeneration Economy and Growth,Culture Sport and Tourism,Supplies and Services,336005,Advertising E336,09/01/2023,4086528-INV-6448,"1,857.50",STEVE DAVIDSON ADVERTISING LTD T/A SD ADVERTISING LTD.
Regeneration Economy and Growth,Culture Sport and Tourism,Supplies and Services,336005,Advertising E336,09/01/2023,4086528-INV-6449,758.50,STEVE DAVIDSON ADVERTISING LTD T/A SD ADVERTISING LTD.
Adult and Health Services,Public Health CC0450,Supplies and Services,336005,Advertising E336,10/01/2023,4087168-8094988,"3,000.00",BAUER RADIO LTD.
Neighbourhoods and Climate Change,Highways,Supplies and Services,336005,Advertising E336,12/01/2023,4088087-41707874,561.67,NEWSQUEST (YORKSHIRE & NORTH EAST) LTD.
Regeneration Economy and Growth,Business Durham CL0850,Supplies and Services,336005,Advertising E336,12/01/2023,4088087-41708145,775.01,NEWSQUEST (YORKSHIRE & NORTH EAST) LTD.
Regeneration Economy and Growth,Planning & Housing,Supplies and Services,336005,Advertising E336,12/01/2023,4088180-17466,514.80,TEESDALE MERCURY LTD.
Regeneration Economy and Growth,Economic Development Level C,Supplies and Services,336005,Advertising E336,16/01/2023,4088786-57031,"1,830.56",SMART DISTBRIBUTION SOLUTIONS LTD.
Regeneration Economy and Growth,Communications Management,Supplies and Services,336005,Advertising E336,20/01/2023,4091866-41723605,"6,000.00",NEWSQUEST (YORKSHIRE & NORTH EAST) LTD.
Neighbourhoods and Climate Change,Highways,Supplies and Services,336005,Advertising E336,20/01/2023,4091866-41723735,627.50,NEWSQUEST (YORKSHIRE & NORTH EAST) LTD.
Regeneration Economy and Growth,Business Durham CL0850,Supplies and Services,336005,Advertising E336,23/01/2023,4092107-19835,"2,000.00",GARDINER RICHARDSON LTD.
Neighbourhoods and Climate Change,Highways,Supplies and Services,336005,Advertising E336,23/01/2023,4092194-41775850,956.65,NEWSQUEST (YORKSHIRE & NORTH EAST) LTD.
Regeneration Economy and Growth,Planning & Housing,Supplies and Services,336005,Advertising E336,23/01/2023,4092194-41775962,627.50,NEWSQUEST (YORKSHIRE & NORTH EAST) LTD.
Regeneration Economy and Growth,REG - Central Costs,Supplies and Services,336005,Advertising E336,23/01/2023,4092194-41779621,"1,050.00",NEWSQUEST (YORKSHIRE & NORTH EAST) LTD.
Children and Young Peoples Services,Head of Education and Skills,Supplies and Services,336005,Advertising E336,23/01/2023,4092270-INV-6459,"1,494.00",STEVE DAVIDSON ADVERTISING LTD T/A SD ADVERTISING LTD.
Regeneration Economy and Growth,Business Durham CL0850,Supplies and Services,336005,Advertising E336,26/01/2023,4093539-116950518,"1,182.58",COSTAR UK LTD.
Neighbourhoods and Climate Change,Highways,Supplies and Services,336005,Advertising E336,26/01/2023,4093590-AD3440,750.00,HEMMING GROUP LTD.
Neighbourhoods and Climate Change,Highways,Supplies and Services,336005,Advertising E336,30/01/2023,4094210-41817623,561.67,NEWSQUEST (YORKSHIRE & NORTH EAST) LTD.
Neighbourhoods and Climate Change,Highways,Supplies and Services,336005,Advertising E336,30/01/2023,4094210-41817627,627.50,NEWSQUEST (YORKSHIRE & NORTH EAST) LTD.
Regeneration Economy and Growth,Communications Management,Supplies and Services,336005,Advertising E336,30/01/2023,4094210-41817735,"2,250.00",NEWSQUEST (YORKSHIRE & NORTH EAST) LTD.
Neighbourhoods and Climate Change,Highways,Supplies and Services,336005,Advertising E336,30/01/2023,4094210-41818486,627.50,NEWSQUEST (YORKSHIRE & NORTH EAST) LTD.
Children and Young Peoples Services,Head of Childrens Social Care,Employees,080025,Agency Staff,05/01/2023,4085636-2466709,"73,740.91",GEOMETRIC RESULTS INTERNATIONAL.
Children and Young Peoples Services,Head of Early Help Inclusion & Vulnerable Children.,Employees,080025,Agency Staff,06/01/2023,4086101-0000481909,"1,374.00",TEACHERACTIVE LTD.
Children and Young Peoples Services,Head of Childrens Social Care,Employees,080025,Agency Staff,11/01/2023,4087603-2466488,"351,646.51",GEOMETRIC RESULTS INTERNATIONAL.
Regeneration Economy and Growth,Planning & Housing,Employees,080025,Agency Staff,11/01/2023,4087603-2466930,"215,538.94",GEOMETRIC RESULTS INTERNATIONAL.
Children and Young Peoples Services,Head of Early Help Inclusion & Vulnerable Children.,Employees,080025,Agency Staff,13/01/2023,4088277-21133395,"2,966.16",BROOK STREET UK LTD T/A BS SOCIAL CARE.
Children and Young Peoples Services,Head of Early Help Inclusion & Vulnerable Children.,Employees,080025,Agency Staff,13/01/2023,4088277-21133396,"2,966.16",BROOK STREET UK LTD T/A BS SOCIAL CARE.
Children and Young Peoples Services,Head of Early Help Inclusion & Vulnerable Children.,Employees,080025,Agency Staff,13/01/2023,4088277-21133398,"2,966.16",BROOK STREET UK LTD T/A BS SOCIAL CARE.
Children and Young Peoples Services,Head of Early Help Inclusion & Vulnerable Children.,Employees,080025,Agency Staff,16/01/2023,4088805-0000484277,549.60,TEACHERACTIVE LTD.
Children and Young Peoples Services,Head of Childrens Social Care,Employees,080025,Agency Staff,17/01/2023,4089437-2467151,"145,823.57",GEOMETRIC RESULTS INTERNATIONAL.
Children and Young Peoples Services,Head of Early Help Inclusion & Vulnerable Children.,Employees,080025,Agency Staff,17/01/2023,4089518-0000484397,824.40,TEACHERACTIVE LTD.
Children and Young Peoples Services,Head of Childrens Social Care,Employees,080025,Agency Staff,18/01/2023,4090861-23981,"5,932.50",CASTLE VIEW GROUP TRAINING.
Children and Young Peoples Services,Head of Childrens Social Care,Employees,080025,Agency Staff,18/01/2023,4090861-24021,"1,905.00",CASTLE VIEW GROUP TRAINING.
Children and Young Peoples Services,Head of Childrens Social Care,Employees,080025,Agency Staff,18/01/2023,4090861-24063,"10,350.00",CASTLE VIEW GROUP TRAINING.
Children and Young Peoples Services,Head of Early Help Inclusion & Vulnerable Children.,Employees,080025,Agency Staff,23/01/2023,4092284-0000485313,"1,374.00",TEACHERACTIVE LTD.
Children and Young Peoples Services,Head of Childrens Social Care,Employees,080025,Agency Staff,26/01/2023,4093576-2467372,"140,771.70",GEOMETRIC RESULTS INTERNATIONAL.
Children and Young Peoples Services,Head of Early Help Inclusion & Vulnerable Children.,Employees,080025,Agency Staff,30/01/2023,4094302-0000486883,"1,374.00",TEACHERACTIVE LTD.
Resources BK0010,Resources Management CK0450,Premises,150005,Apportioned Exps of Operational Blds,04/01/2023,4085464-INV-1101,"1,371.15",OM CHANGE & TRANSFORMATION LTD.
Resources - C A C,Resources - C A C- Level C,Premises,150005,Apportioned Exps of Operational Blds,11/01/2023,4087724-91468112,"1,440.00",NEC SOFTWARE SOLUTIONS UK LTD.
Adult and Health Services,Head of Adults,Premises,150005,Apportioned Exps of Operational Blds,12/01/2023,4087939-JOBO01/20866,695.00,COLIN JOBLING T/A RAINBOW INTERNATIONAL.
Adult and Health Services,Head of Adults,Premises,150005,Apportioned Exps of Operational Blds,12/01/2023,4087939-JOBO01/20880,750.00,COLIN JOBLING T/A RAINBOW INTERNATIONAL.
Adult and Health Services,Head of Adults,Premises,150005,Apportioned Exps of Operational Blds,13/01/2023,4088296-JOB001/20711,795.00,COLIN JOBLING T/A RAINBOW INTERNATIONAL.
Resources BK0010,Transactional & Customer Services,Premises,150005,Apportioned Exps of Operational Blds,13/01/2023,4088367-11032941,"10,000.00",HOME GROUP LTD FORMERLY STONHAM HOUSING ASSOCIATION LTD.
Neighbourhoods and Climate Change,Highways,Premises,150015,Apportioned Exps of Operational Blds,18/01/2023,4090870-209072,724.46,CLEE HILL PLANT LTD.
Neighbourhoods and Climate Change,Environmental Services,Premises,150015,Apportioned Exps of Operational Blds,18/01/2023,4090908-413491191,748.00,GAP GROUP LTD.
Neighbourhoods and Climate Change,Highways,Premises,150015,Apportioned Exps of Operational Blds,18/01/2023,4090961-7002707802,770.13,MOBILE MINI UK LTD.
Adult and Health Services,Head of Adults,Premises,150005,Apportioned Exps of Operational Blds,26/01/2023,4093534-JOB001/20851,640.00,COLIN JOBLING T/A RAINBOW INTERNATIONAL.
Regeneration Economy and Growth,Corporate Property and Land,Premises,150015,Apportioned Exps of Operational Blds,30/01/2023,4094341-220147054,746.46,WERNICK HIRE LTD.
Neighbourhoods and Climate Change,Highways,Premises,150015,Apportioned Exps of Operational Blds,30/01/2023,4094341-220147059,646.31,WERNICK HIRE LTD.
Regeneration Economy and Growth,Corporate Property and Land,Premises,150015,Apportioned Exps of Operational Blds,30/01/2023,4094341-220147070,746.46,WERNICK HIRE LTD.
Neighbourhoods and Climate Change,Environmental Services,Premises,150015,Apportioned Exps of Operational Blds,30/01/2023,4094341-220147115,646.31,WERNICK HIRE LTD.
Neighbourhoods and Climate Change,Environmental Services,Premises,150015,Apportioned Exps of Operational Blds,30/01/2023,4094341-220147116,646.31,WERNICK HIRE LTD.
Neighbourhoods and Climate Change,Environmental Services,Premises,150015,Apportioned Exps of Operational Blds,30/01/2023,4094341-220147117,646.31,WERNICK HIRE LTD.
Neighbourhoods and Climate Change,Environmental Services,Premises,150015,Apportioned Exps of Operational Blds,30/01/2023,4094341-220147118,646.31,WERNICK HIRE LTD.
Regeneration Economy and Growth,Corporate Property and Land,Premises,150015,Apportioned Exps of Operational Blds,30/01/2023,4094341-220147119,746.46,WERNICK HIRE LTD.
Regeneration Economy and Growth,Corporate Property and Land,Premises,150015,Apportioned Exps of Operational Blds,30/01/2023,4094341-220147132,546.09,WERNICK HIRE LTD.
Regeneration Economy and Growth,Corporate Property and Land,Premises,150015,Apportioned Exps of Operational Blds,30/01/2023,4094341-220147151,681.26,WERNICK HIRE LTD.
Neighbourhoods and Climate Change,Highways,Other expenses A914,914002,Capital - Advertisments,10/01/2023,4087405-17146,514.80,TEESDALE MERCURY LTD.
Neighbourhoods and Climate Change,Highways,Fees,901004,Capital - Detailed Design,31/01/2023,4095092-SIA194096,529.28,REACH PUBLISHING SERVICES LTD T/A REACH PLC.
Children and Young Peoples Services,Head of Childrens Social Care,Transport,240045,Car allowances E240,09/01/2023,4086534-12194,"18,095.36",SUPPORTIVE SRC LTD.
Children and Young Peoples Services,Head of Childrens Social Care,Transport,240045,Car allowances E240,11/01/2023,4087826-12143,"18,768.30",SUPPORTIVE SRC LTD.
Adult and Health Services,Commissioning inc Supporting People,Transport,240045,Car allowances E240,18/01/2023,4091023-12240,"2,606.21",SUPPORTIVE SRC LTD.
Children and Young Peoples Services,Head of Childrens Social Care,Transport,240045,Car allowances E240,23/01/2023,4092275-12241,"7,450.24",SUPPORTIVE SRC LTD.
Non-Service Specific,Non Service Specific-Financing,Long Term Debtors,924001,Car loans,17/01/2023,4089383-120250,543.00,ARRIVA NORTHUMBRIA LTD.
Regeneration Economy and Growth,Corporate Property and Land,Premises,106082,Centrally Controlled Rep and Maint,06/01/2023,4085945-7080997272,"1,151.33",HONEYWELL NOVAR SYSTEMS LTD.
Children and Young Peoples Services,Head of Early Help Inclusion & Vulnerable Children.,Premises,106083,Centrally Controlled Rep and Maint,06/01/2023,4085945-7080997959,"1,718.76",HONEYWELL NOVAR SYSTEMS LTD.
Neighbourhoods and Climate Change,Environmental Services,Premises,106082,Centrally Controlled Rep and Maint,06/01/2023,4086052-16122,550.00,PREMIER CELL FIT T/A LIVEWIRE GATES & DOORS.
Regeneration Economy and Growth,Culture Sport and Tourism,Premises,106083,Centrally Controlled Rep and Maint,06/01/2023,4086097-21442,696.29,STONE TECHNICAL SERVICES LTD.
Regeneration Economy and Growth,Planning & Housing,Premises,106080,Centrally Controlled Rep and Maint,09/01/2023,4086586-19459,"8,407.62",WATERMAN ENVIRONMENTAL SERVICES.
Regeneration Economy and Growth,Planning & Housing,Premises,106080,Centrally Controlled Rep and Maint,09/01/2023,4086586-19754,"8,476.55",WATERMAN ENVIRONMENTAL SERVICES.
Regeneration Economy and Growth,Culture Sport and Tourism,Premises,106082,Centrally Controlled Rep and Maint,13/01/2023,4088347-501597,"1,190.00",FT LEISURE LTD.
Regeneration Economy and Growth,Culture Sport and Tourism,Premises,106082,Centrally Controlled Rep and Maint,13/01/2023,4088347-501601,500.00,FT LEISURE LTD.
Regeneration Economy and Growth,Culture Sport and Tourism,Premises,106082,Centrally Controlled Rep and Maint,13/01/2023,4088347-501620,"4,187.95",FT LEISURE LTD.
Neighbourhoods and Climate Change,Environmental Services,Premises,106082,Centrally Controlled Rep and Maint,13/01/2023,4088533-DLA94786,523.00,TYCO FIRE & INTEGRATED SOLUTIONS (UK) LTD.
Regeneration Economy and Growth,Culture Sport and Tourism,Premises,106080,Centrally Controlled Rep and Maint,20/01/2023,4091725-23500068,"1,062.66",CENTRICA BUSINESS SOLUTIONS UK LTD.*
Regeneration Economy and Growth,Culture Sport and Tourism,Premises,106082,Centrally Controlled Rep and Maint,20/01/2023,4091725-23500069,856.60,CENTRICA BUSINESS SOLUTIONS UK LTD.*
Regeneration Economy and Growth,Culture Sport and Tourism,Premises,106082,Centrally Controlled Rep and Maint,20/01/2023,4091778-501633,500.00,FT LEISURE LTD.
Regeneration Economy and Growth,Culture Sport and Tourism,Premises,106082,Centrally Controlled Rep and Maint,20/01/2023,4091778-501697,500.00,FT LEISURE LTD.
Regeneration Economy and Growth,Culture Sport and Tourism,Premises,106082,Centrally Controlled Rep and Maint,20/01/2023,4091778-501706,500.00,FT LEISURE LTD.
Neighbourhoods and Climate Change,Environmental Services,Premises,106080,Centrally Controlled Rep and Maint,20/01/2023,4091953-DLA96218,962.00,TYCO FIRE & INTEGRATED SOLUTIONS (UK) LTD.
Regeneration Economy and Growth,Planning & Housing,Premises,106080,Centrally Controlled Rep and Maint,20/01/2023,4091964-19731,"8,407.62",WATERMAN ENVIRONMENTAL SERVICES.
Regeneration Economy and Growth,Culture Sport and Tourism,Premises,106082,Centrally Controlled Rep and Maint,27/01/2023,4093812-501766,518.33,FT LEISURE LTD.
Regeneration Economy and Growth,Corporate Property and Land,Premises,106080,Centrally Controlled Rep and Maint,27/01/2023,4093825-7081003732,"1,178.53",HONEYWELL NOVAR SYSTEMS LTD.
Children and Young Peoples Services,Head of Early Help Inclusion & Vulnerable Children.,Premises,106099,Centrally Controlled Rep and Maint,27/01/2023,4093825-7081003733,"5,884.43",HONEYWELL NOVAR SYSTEMS LTD.
Regeneration Economy and Growth,Corporate Property and Land,Premises,106080,Centrally Controlled Rep and Maint,27/01/2023,4093825-7081003738,"2,206.41",HONEYWELL NOVAR SYSTEMS LTD.
Regeneration Economy and Growth,Culture Sport and Tourism,Premises,106080,Centrally Controlled Rep and Maint,27/01/2023,4093825-7081003739,"6,274.24",HONEYWELL NOVAR SYSTEMS LTD.
Regeneration Economy and Growth,Culture Sport and Tourism,Premises,106082,Centrally Controlled Rep and Maint,27/01/2023,4093825-7081006616,802.01,HONEYWELL NOVAR SYSTEMS LTD.
Regeneration Economy and Growth,Culture Sport and Tourism,Premises,106083,Centrally Controlled Rep and Maint,27/01/2023,4093825-7081006900,"2,371.49",HONEYWELL NOVAR SYSTEMS LTD.
Regeneration Economy and Growth,Corporate Property and Land,Premises,106080,Centrally Controlled Rep and Maint,30/01/2023,4094146-7081003734,"4,997.11",HONEYWELL NOVAR SYSTEMS LTD.
Regeneration Economy and Growth,Culture Sport and Tourism,Premises,106080,Centrally Controlled Rep and Maint,30/01/2023,4094146-7081003735,"3,260.97",HONEYWELL NOVAR SYSTEMS LTD.
Regeneration Economy and Growth,Business Durham CL0850,Premises,106080,Centrally Controlled Rep and Maint,30/01/2023,4094146-7081003737,"5,466.24",HONEYWELL NOVAR SYSTEMS LTD.
Regeneration Economy and Growth,Culture Sport and Tourism,Premises,106082,Centrally Controlled Rep and Maint,06/01/2023,4085931-5166,595.00,GEOWARMTH HEAT PUMPS LTD.
Regeneration Economy and Growth,Culture Sport and Tourism,Premises,145023,Cleaning and Domestic Supplies,03/01/2023,4085086-06/203597,"1,409.45",GREENHAM TRADING LTD.
Children and Young Peoples Services,Head of Early Help Inclusion & Vulnerable Children.,Premises,145009,Cleaning and Domestic Supplies,03/01/2023,4085099-7235,525.00,INDUSTRIAL DEEP CLEANING LTD.
Regeneration Economy and Growth,Culture Sport and Tourism,Premises,145023,Cleaning and Domestic Supplies,05/01/2023,4085643-06/204251,662.26,GREENHAM TRADING LTD.
Regeneration Economy and Growth,Culture Sport and Tourism,Premises,145023,Cleaning and Domestic Supplies,05/01/2023,4085643-06/204278,"1,695.18",GREENHAM TRADING LTD.
Adult and Health Services,Head of Adults,Premises,145009,Cleaning and Domestic Supplies,10/01/2023,4087196-JOB001/20860,795.00,COLIN JOBLING T/A RAINBOW INTERNATIONAL.
Adult and Health Services,Public Health CC0450,Premises,145009,Cleaning and Domestic Supplies,13/01/2023,4088476-INV-4742,"1,188.30",QUALITY CLEANING SERVICES (NORTHERN) LTD.
Children and Young Peoples Services,Head of Early Help Inclusion & Vulnerable Children.,Premises,145023,Cleaning and Domestic Supplies,16/01/2023,4088662-06/206031,745.79,GREENHAM TRADING LTD.
Regeneration Economy and Growth,Culture Sport and Tourism,Premises,145023,Cleaning and Domestic Supplies,16/01/2023,4088662-06/206035,"1,332.24",GREENHAM TRADING LTD.
Adult and Health Services,Public Health CC0450,Premises,145050,Cleaning and Domestic Supplies,24/01/2023,4092885-412677,"1,691.85",BETTAKLEEN LTD.
Adult and Health Services,Public Health CC0450,Premises,145050,Cleaning and Domestic Supplies,24/01/2023,4092885-412678,527.85,BETTAKLEEN LTD.
Adult and Health Services,Public Health CC0450,Premises,145050,Cleaning and Domestic Supplies,24/01/2023,4092885-412717,"1,258.07",BETTAKLEEN LTD.
Regeneration Economy and Growth,Culture Sport and Tourism,Premises,145023,Cleaning and Domestic Supplies,24/01/2023,4092913-CN30235628,"1,234.59",CITRON HYGIENE UK LTD.
Regeneration Economy and Growth,Culture Sport and Tourism,Premises,145050,Cleaning and Domestic Supplies,24/01/2023,4092913-CN30237241,"1,140.90",CITRON HYGIENE UK LTD.
Regeneration Economy and Growth,Culture Sport and Tourism,Premises,145023,Cleaning and Domestic Supplies,26/01/2023,4093583-06/205890,543.82,GREENHAM TRADING LTD.
Regeneration Economy and Growth,Culture Sport and Tourism,Premises,145023,Cleaning and Domestic Supplies,26/01/2023,4093583-06/206345,814.90,GREENHAM TRADING LTD.
Regeneration Economy and Growth,Corporate Property and Land,Premises,145023,Cleaning and Domestic Supplies,26/01/2023,4093583-06/206522,586.60,GREENHAM TRADING LTD.
Adult and Health Services,Public Health CC0450,Premises,145009,Cleaning and Domestic Supplies,27/01/2023,4093912-INV-5744,"1,241.00",QUALITY CLEANING SERVICES (NORTHERN) LTD.
Neighbourhoods and Climate Change,Community Protection,Supplies and Services,328041,Clothing uniforms and laundry E328,03/01/2023,4085114-11096,950.00,JG UNIFORMS.
Neighbourhoods and Climate Change,Environmental Services,Supplies and Services,328041,Clothing uniforms and laundry E328,06/01/2023,4085825-39660,678.50,1ST COVERALL COMPANY LTD.
Regeneration Economy and Growth,Culture Sport and Tourism,Supplies and Services,328041,Clothing uniforms and laundry E328,06/01/2023,4086109-NSIN00086291,"1,251.20",THOMAS OWEN & SONS (NEWCASTLE) LTD.
Neighbourhoods and Climate Change,Environmental Services,Supplies and Services,328041,Clothing uniforms and laundry E328,24/01/2023,4093018-1050000014788,507.00,JOHNSONS TEXTILE SERVICES LTD T/A JOHNSONS WORKWEAR.
Neighbourhoods and Climate Change,Environmental Services,Supplies and Services,328041,Clothing uniforms and laundry E328,26/01/2023,4093707-68275,648.81,THE OUTDOORS COMPANY UK LIMITED.
Resources BK0010,Digital Services,Vehicles Equipment Furniture and Fittings,912701,Computer equipment,03/01/2023,4085101-2100455982,846.00,INSIGHT DIRECT (UK) LTD.
Resources BK0010,Digital Services,Vehicles Equipment Furniture and Fittings,912701,Computer equipment,05/01/2023,4085590-PSINV03807563,"9,150.00",CDW LTD.
Resources BK0010,Digital Services,Vehicles Equipment Furniture and Fittings,912701,Computer equipment,11/01/2023,4087548-7402870070,"1,385.00",DELL COMPUTER CORPORATION LTD.
Resources BK0010,Digital Services,Vehicles Equipment Furniture and Fittings,912701,Computer equipment,11/01/2023,4087548-7402870299,"1,385.00",DELL COMPUTER CORPORATION LTD.
Resources BK0010,Digital Services,Vehicles Equipment Furniture and Fittings,912701,Computer equipment,16/01/2023,4088592-INV0019836,"149,430.00",BOXXE LTD.
Resources BK0010,Digital Services,Supplies and Services,342051,Computers and Communications,03/01/2023,4085235-INVUK673905,"2,046.37",SOFTCAT PLC.
Children and Young Peoples Services,Central Charges (CYPS),Supplies and Services,342033,Computers and Communications,03/01/2023,4085284-RV60573,724.00,VODAFONE CORPORATE LTD.
Regeneration Economy and Growth,Planning & Housing,Supplies and Services,342053,Computers and Communications,05/01/2023,4085598-M/HG108111,"5,920.89",CIVICA UK LTD.
Resources BK0010,Pensions CK0700,Supplies and Services,342051,Computers and Communications,06/01/2023,4085877-C/PE257660,743.00,CIVICA UK LTD.
Resources BK0010,Digital Services,Supplies and Services,342051,Computers and Communications,09/01/2023,4086568-TSUK-1413,"21,145.00",TRANSOFT SOLUTIONS (UK) LTD.
Neighbourhoods and Climate Change,Environmental Services,Supplies and Services,342215,Computers and Communications,09/01/2023,4086575-54317,"4,315.52",UK TELEMATICS LTD.
Resources BK0010,Digital Services,Supplies and Services,342051,Computers and Communications,10/01/2023,4087193-C/PE258680,"14,204.50",CIVICA UK LTD.
Resources BK0010,Digital Services,Supplies and Services,342051,Computers and Communications,10/01/2023,4087193-C/RB257731,"4,687.50",CIVICA UK LTD.
Resources BK0010,Digital Services,Supplies and Services,342051,Computers and Communications,10/01/2023,4087193-C/RB257732,"1,507.28",CIVICA UK LTD.
Resources BK0010,Digital Services,Supplies and Services,342051,Computers and Communications,10/01/2023,4087193-C/RB257733,"1,695.69",CIVICA UK LTD.
Resources BK0010,Digital Services,Supplies and Services,342033,Computers and Communications,11/01/2023,4087859-R-71977,"1,280.00",UPNORTH ENGINEERING SERVICES LTD.
Regeneration Economy and Growth,Planning & Housing,Supplies and Services,342051,Computers and Communications,12/01/2023,4087892-9958903,"1,145.53",ANCHOR COMPUTER SYSTEMS LTD.
Resources BK0010,Digital Services,Supplies and Services,342051,Computers and Communications,12/01/2023,4087997-0179230,"91,080.00",GRAITEC LTD.
Resources BK0010,Digital Services,Supplies and Services,342033,Computers and Communications,16/01/2023,4088802-143106,"4,753.44",SWITCHSHOP LTD.
Neighbourhoods and Climate Change,Environmental Services,Supplies and Services,342033,Computers and Communications,17/01/2023,4089388-INV-9341,"3,800.00",BARTEC MUNICIPAL TECHNOLOGIES LTD.
Regeneration Economy and Growth,Transport and Contracted Services,Supplies and Services,342215,Computers and Communications,23/01/2023,4092096-INV30928,"1,575.00",FERROGRAPH LTD.
Regeneration Economy and Growth,Planning & Housing,Supplies and Services,342215,Computers and Communications,23/01/2023,4092279-143157,"4,762.16",SWITCHSHOP LTD.
Resources BK0010,Digital Services,Supplies and Services,342033,Computers and Communications,23/01/2023,4092279-143160,"4,762.16",SWITCHSHOP LTD.
Resources BK0010,Digital Services,Supplies and Services,342051,Computers and Communications,23/01/2023,4092326-LD25265,"3,465.00",XMA LTD.
Regeneration Economy and Growth,Planning & Housing,Supplies and Services,342053,Computers and Communications,26/01/2023,4093530-M/HG109714,533.33,CIVICA UK LTD.
Neighbourhoods and Climate Change,Highways,Supplies and Services,342051,Computers and Communications,26/01/2023,4093606-1355-03/01/2023,"4,375.00",KAINOS SOFTWARE LTD.
Resources BK0010,Digital Services,Supplies and Services,342225,Computers and Communications,26/01/2023,4093713-R-71976,"1,000.00",UPNORTH ENGINEERING SERVICES LTD.
Children and Young Peoples Services,Head of Early Help Inclusion & Vulnerable Children.,Supplies and Services,342053,Computers and Communications,27/01/2023,4093867-032642,"72,840.00",LIQUIDLOGIC LTD.
Neighbourhoods and Climate Change,Environmental Services,Supplies and Services,342033,Computers and Communications,27/01/2023,4093978-00661/2023,"4,925.00",VIPAUK LTD.
Adult and Health Services,Head of Adults,Supplies and Services,342033,Computers and Communications,30/01/2023,4094071-RES-01-2023-318,714.00,CYBER SPIDER LTD.
Regeneration Economy and Growth,Planning & Housing,Supplies and Services,342051,Computers and Communications,05/01/2023,4085658-118327,"3,659.42",IDOX SOFTWARE LTD.
Resources BK0010,Transactional & Customer Services,Supplies and Services,342051,Computers and Communications,05/01/2023,4085783-SV-0005033,"7,450.00",SIGNIFICAN`T (UK) LTD.
Children and Young Peoples Services,Head of Early Help Inclusion & Vulnerable Children.,Supplies and Services,352001,Conference Expenses,06/01/2023,4086065-INV30514,733.33,RAMSIDE ESTATES LTD T/A RAMSIDE HALL HOTEL.
Children and Young Peoples Services,Head of Childrens Social Care - Excluded Services,Supplies and Services,352001,Conference Expenses,13/01/2023,4088262-BSLSI000257,"1,200.00",BARNARDO SERVICES LTD.
Neighbourhoods and Climate Change,Environmental Services,Supplies and Services,352001,Conference Expenses,16/01/2023,4088738-RES-01-2023-185,"2,294.00",OM CHANGE & TRANSFORMATION LTD.
Resources BK0010,HR & Employee Services,Supplies and Services,352001,Conference Expenses,19/01/2023,4091515-32172,650.00,NORTH EAST REGIONAL EMPLOYERS ORGANISATION (NEREO).
Regeneration Economy and Growth,Planning & Housing,Supplies and Services,352001,Conference Expenses,23/01/2023,4092015-SIN404654,"6,450.00",BOND SOLON TRAINING LTD.*
Children and Young Peoples Services,Head of Education and Skills,Supplies and Services,352001,Conference Expenses,09/01/2023,4086148-DENABLEGATESHEAD222,500.00,REDACTED - PAYMENT TO INDIVIDUAL
Children and Young Peoples Services,Head of Early Help Inclusion & Vulnerable Children.,Supplies and Services,352001,Conference Expenses,10/01/2023,4087201-UOTR5014123,"3,888.19",CONVERA UK FINANCIAL LTD.
Resources BK0010,HR & Employee Services,Supplies and Services,352001,Conference Expenses,17/01/2023,4089413-INV-202246,"1,000.00",DAWN PARKIN SOLUTIONS LTD.
Neighbourhoods and Climate Change,Environmental Services,Supplies and Services,352001,Conference Expenses,25/01/2023,4093318-101064398,"1,496.00",ILX GROUP PLC.
Neighbourhoods and Climate Change,Highways,Supplies and Services,352001,Conference Expenses,16/01/2023,4088825-90307312,"3,256.20",UNIVERSITY OF LEEDS.
Resources BK0010,HR & Employee Services,Supplies and Services,352001,Conference Expenses,16/01/2023,4088601-838,"1,800.00",REDACTED - PAYMENT TO INDIVIDUAL
Children and Young Peoples Services,Head of Education and Skills,Construction work A908,908105,Construction work,04/01/2023,4085459-DI20397805,"11,792.53",NORTHERN POWERGRID (NORTHEAST) LTD.
Neighbourhoods and Climate Change,Highways,Construction work A908,908105,Construction work,05/01/2023,4085733-41656781,561.67,NEWSQUEST (YORKSHIRE & NORTH EAST) LTD.
Children and Young Peoples Services,Head of Education and Skills,Construction work A908,908105,Construction work,05/01/2023,4085738-50067375,660.00,NORTHERN POWERGRID (NORTHEAST) LTD.
Regeneration Economy and Growth,Corporate Property and Land,Construction work A908,908105,Construction work,06/01/2023,4085831-176802,"34,800.00",ALBANY OFFICE EQUIPMENT (WHOLESALE) LTD.
Neighbourhoods and Climate Change,Environmental Services,Construction work A908,908105,Construction work,06/01/2023,4085956-170,"87,553.15",IVEGATE LTD.
Children and Young Peoples Services,Head of Education and Skills,Construction work A908,908105,Construction work,06/01/2023,4085972-10302003,"873,531.36",KIER CONSTRUCTION LTD - SCOTLAND
Regeneration Economy and Growth,Culture Sport and Tourism,Construction work A908,908105,Construction work,06/01/2023,4085986-170262,"2,150.00",LUCION ENVIRONMENTAL LLP LTD.
Neighbourhoods and Climate Change,Environmental Services,Construction work A908,908105,Construction work,09/01/2023,4086280-NEI-EXP-01-2023-006,"19,388.00",ENVIRONMENT AGENCY.
Regeneration Economy and Growth,Corporate Property and Land,Construction work A908,908105,Construction work,09/01/2023,4086453-A233105,"5,990.59",OPENREACH LLU.
Regeneration Economy and Growth,Planning & Housing,Construction work A908,908105,Construction work,10/01/2023,4087411-SPN-000604,"84,689.46",TOLENT LIVING LTD.
Regeneration Economy and Growth,Planning & Housing,Construction work A908,908105,Construction work,10/01/2023,4087411-SPN-000605,"90,680.64",TOLENT LIVING LTD.
Regeneration Economy and Growth,Business Durham CL0850,Construction work A908,908105,Construction work,11/01/2023,4087668-10303140,"7,086.76",KIER CONSTRUCTION LTD - SCOTLAND
Neighbourhoods and Climate Change,Highways,Construction work A908,908105,Construction work,11/01/2023,4087732-22203,675.00,NORTH EAST TRAFFIC DATA COLLECTION LTD (NETDC).
Children and Young Peoples Services,Head of Education and Skills,Construction work A908,908105,Construction work,11/01/2023,4087795-7187,"8,317.00",SAFE STRIP UK LTD.
Regeneration Economy and Growth,Culture Sport and Tourism,Construction work A908,908105,Construction work,12/01/2023,4087890-10776,"314,451.85",ALLIANCE LEISURE SERVICES LTD.
Neighbourhoods and Climate Change,Highways,Construction work A908,908105,Construction work,12/01/2023,4088097-22244,"3,000.00",NORTH EAST TRAFFIC DATA COLLECTION LTD (NETDC).
Regeneration Economy and Growth,Culture Sport and Tourism,Construction work A908,908105,Construction work,12/01/2023,4088164-8388,"8,300.00",ST ASTIER LTD.
Regeneration Economy and Growth,Culture Sport and Tourism,Construction work A908,908105,Construction work,12/01/2023,4088164-8389,540.00,ST ASTIER LTD.
Regeneration Economy and Growth,Culture Sport and Tourism,Construction work A908,908105,Construction work,16/01/2023,4088664-INV-5402,"1,366.32",GYM TECH NORTH EAST.
Regeneration Economy and Growth,Culture Sport and Tourism,Construction work A908,908105,Construction work,16/01/2023,4088664-INV-5404,"5,471.37",GYM TECH NORTH EAST.
Children and Young Peoples Services,Head of Education and Skills,Construction work A908,908105,Construction work,16/01/2023,4088754-900984035,"22,847.75",PORTAKABIN LTD.
Regeneration Economy and Growth,Culture Sport and Tourism,Construction work A908,908105,Construction work,17/01/2023,4089379-10796,"582,334.84",ALLIANCE LEISURE SERVICES LTD.
Regeneration Economy and Growth,Planning & Housing,Construction work A908,908105,Construction work,17/01/2023,4089525-SPN-000619,"45,638.77",TOLENT LIVING LTD.
Regeneration Economy and Growth,Transport and Contracted Services,Construction work A908,908105,Construction work,18/01/2023,4090856-NO29456,"2,420.50",BUS SHELTERS LTD.
Children and Young Peoples Services,Head of Education and Skills,Construction work A908,908105,Construction work,18/01/2023,4090980-NEI-EXP-01-2023-017,"4,241.50",NORTHUMBRIAN WATER LTD.
Neighbourhoods and Climate Change,Highways,Construction work A908,908105,Construction work,20/01/2023,4091866-41723152,561.67,NEWSQUEST (YORKSHIRE & NORTH EAST) LTD.
Neighbourhoods and Climate Change,Highways,Construction work A908,908105,Construction work,23/01/2023,4092297-TRNE035358,"1,193.50",TOTAL RESOURCES (UK) LTD.
Regeneration Economy and Growth,Culture Sport and Tourism,Construction work A908,908105,Construction work,24/01/2023,4092866-10846,"7,470.00",ALLIANCE LEISURE SERVICES LTD.
Children and Young Peoples Services,Head of Education and Skills,Construction work A908,908105,Construction work,24/01/2023,4092970-22047172,"7,319.55",FAITHFUL & GOULD LTD.*
Children and Young Peoples Services,Head of Early Help Inclusion & Vulnerable Children.,Construction work A908,908105,Construction work,25/01/2023,4093204-22924,"2,086.50",A BUCKLER (HAULAGE) LTD.
Regeneration Economy and Growth,Corporate Property and Land,Construction work A908,908105,Construction work,25/01/2023,4093204-DEMOLITION-ARMSTRONGROAD,"17,739.50",A BUCKLER (HAULAGE) LTD.
Regeneration Economy and Growth,Transport and Contracted Services,Construction work A908,908105,Construction work,25/01/2023,4093372-1800011588358,"15,962.89",NEWCASTLE UPON TYNE CITY COUNCIL.
Children and Young Peoples Services,Head of Education and Skills,Construction work A908,908105,Construction work,27/01/2023,4093806-22038520,"7,660.00",FAITHFUL & GOULD LTD.*
Regeneration Economy and Growth,Business Durham CL0850,Construction work A908,908105,Construction work,30/01/2023,4094170-10304308,"6,983.20",KIER CONSTRUCTION LTD - SCOTLAND
Children and Young Peoples Services,Head of Education and Skills,Construction work A908,908105,Construction work,30/01/2023,4094224-A233413,"12,472.75",OPENREACH LLU.
Children and Young Peoples Services,Head of Education and Skills,Construction work A908,908105,Construction work,31/01/2023,4094990-22046841,"15,320.00",FAITHFUL & GOULD LTD.*
Neighbourhoods and Climate Change,Environmental Services,Construction work A908,908105,Construction work,05/01/2023,4085630-00174,900.00,REDACTED - PAYMENT TO INDIVIDUAL
Regeneration Economy and Growth,Culture Sport and Tourism,Construction work A908,908105,Construction work,18/01/2023,4090990-25588,"1,616.20",POLAR (NE) LTD.
Regeneration Economy and Growth,Transport and Contracted Services,Construction work A908,908105,Construction work,16/01/2023,4088683-203158,"10,692.80",JOURNEO PASSENGER SYSTEMS LTD.
Neighbourhoods and Climate Change,Highways,Construction work A908,908105,Construction work,17/01/2023,4089511-248-06,"1,398.53",SOUTHBAY CIVIL ENGINEERING LTD.
Regeneration Economy and Growth,Corporate Property and Land,Fees,901002,Consultants fees 901002,04/01/2023,4085505-8,"12,705.00",STACK (BISHOP AUCKLAND) LTD.
Regeneration Economy and Growth,Culture Sport and Tourism,Fees,901002,Consultants fees 901002,06/01/2023,4085849-42883,"1,125.00",BGP CONSULTING LTD T/A BILLINGHURST GEORGE & PARTNERS.
Neighbourhoods and Climate Change,Environmental Services,Fees,901002,Consultants fees 901002,06/01/2023,4086001-INV-0125,"5,663.33",MIND OVER MATTER MEDTECH LTD.
Regeneration Economy and Growth,Business Durham CL0850,Fees,901002,Consultants fees 901002,06/01/2023,4086073-TEC614542,"2,146.00",RPS CONSULTING SERVICES LTD.
Children and Young Peoples Services,Head of Education and Skills,Fees,901002,Consultants fees 901002,06/01/2023,4086073-TEC614575,"1,000.00",RPS CONSULTING SERVICES LTD.
Neighbourhoods and Climate Change,Environmental Services,Fees,901002,Consultants fees 901002,06/01/2023,4086073-TEC614594,"1,000.00",RPS CONSULTING SERVICES LTD.
Neighbourhoods and Climate Change,Environmental Services,Fees,901002,Consultants fees 901002,06/01/2023,4086073-TEC614609,"1,000.00",RPS CONSULTING SERVICES LTD.
Regeneration Economy and Growth,Culture Sport and Tourism,Fees,901002,Consultants fees 901002,11/01/2023,4087567-110148,558.00,E3 ECOLOGY LTD.
Children and Young Peoples Services,Head of Education and Skills,Fees,901002,Consultants fees 901002,11/01/2023,4087645-5220,"2,410.00",J HUMPHREY & PARTNERS LTD.
Children and Young Peoples Services,Head of Education and Skills,Fees,901002,Consultants fees 901002,11/01/2023,4087645-5227,"4,778.00",J HUMPHREY & PARTNERS LTD.
Children and Young Peoples Services,Head of Education and Skills,Fees,901002,Consultants fees 901002,16/01/2023,4088619-64024477,"1,665.00",DESCO (DESIGN & CONSULTANCY) LTD.
Neighbourhoods and Climate Change,Environmental Services,Fees,901002,Consultants fees 901002,17/01/2023,4089414-64024430,"3,200.00",DESCO (DESIGN & CONSULTANCY) LTD.
Neighbourhoods and Climate Change,Environmental Services,Fees,901002,Consultants fees 901002,17/01/2023,4089414-64024431,"4,500.00",DESCO (DESIGN & CONSULTANCY) LTD.
Regeneration Economy and Growth,Corporate Property and Land,Fees,901002,Consultants fees 901002,17/01/2023,4089414-64024432,"2,028.00",DESCO (DESIGN & CONSULTANCY) LTD.
Children and Young Peoples Services,Head of Education and Skills,Fees,901002,Consultants fees 901002,17/01/2023,4089414-64024467,"2,041.00",DESCO (DESIGN & CONSULTANCY) LTD.
Children and Young Peoples Services,Head of Education and Skills,Fees,901002,Consultants fees 901002,17/01/2023,4089414-64024476,"1,965.00",DESCO (DESIGN & CONSULTANCY) LTD.
Regeneration Economy and Growth,Corporate Property and Land,Fees,901002,Consultants fees 901002,19/01/2023,4091109-SIN039504,"170,765.92",BLOOM PROCUREMENT SERVICES LTD (FORMERLY NEPRO LTD).
Regeneration Economy and Growth,Corporate Property and Land,Fees,901002,Consultants fees 901002,19/01/2023,4091109-SIN039690,"170,765.92",BLOOM PROCUREMENT SERVICES LTD (FORMERLY NEPRO LTD).
Regeneration Economy and Growth,Corporate Property and Land,Fees,901002,Consultants fees 901002,19/01/2023,4091109-SIN039696,"148,491.22",BLOOM PROCUREMENT SERVICES LTD (FORMERLY NEPRO LTD).
Regeneration Economy and Growth,Corporate Property and Land,Fees,901002,Consultants fees 901002,19/01/2023,4091602-2,"3,760.00",STACK (BISHOP AUCKLAND) LTD.
Regeneration Economy and Growth,Corporate Property and Land,Fees,901002,Consultants fees 901002,19/01/2023,4091602-9,"64,614.53",STACK (BISHOP AUCKLAND) LTD.
Regeneration Economy and Growth,Corporate Property and Land,Fees,901002,Consultants fees 901002,23/01/2023,4092125-26544,900.00,HICKTON CONSULTANTS LIMITED.
Resources BK0010,Corporate Policy Planning & Performance,Fees,901002,Consultants fees 901002,25/01/2023,4093240-SIN039867,"444,137.34",BLOOM PROCUREMENT SERVICES LTD (FORMERLY NEPRO LTD).
Neighbourhoods and Climate Change,Highways,Fees,901002,Consultants fees 901002,31/01/2023,4095139-289,"56,055.00",WEAR RIVERS TRUST.
Neighbourhoods and Climate Change,Highways,Fees,901002,Consultants fees 901002,25/01/2023,4093474-1213,"1,300.00",VIRIDIAN LOGIC LTD.
Neighbourhoods and Climate Change,Highways,Fees,901002,Consultants fees 901002,26/01/2023,4093717-1215,"2,459.28",VIRIDIAN LOGIC LTD.
Children and Young Peoples Services,Head of Education and Skills,Transport,230010,Contract Hire,03/01/2023,4084987-O581,"1,769.88",ABC & OUSTON CABS.
Children and Young Peoples Services,Head of Education and Skills,Transport,230008,Contract Hire,03/01/2023,4084987-O583,"2,054.50",ABC & OUSTON CABS.
Children and Young Peoples Services,Head of Education and Skills,Transport,230007,Contract Hire,03/01/2023,4085024-2027,"2,128.50",CHEVRON TAXIS LTD.
Children and Young Peoples Services,Head of Education and Skills,Transport,230007,Contract Hire,03/01/2023,4085024-2034,"3,391.50",CHEVRON TAXIS LTD.
Children and Young Peoples Services,Head of Education and Skills,Transport,230008,Contract Hire,03/01/2023,4085025-CW36,"1,540.91",CHIPPERS TAXIS.
Children and Young Peoples Services,Head of Education and Skills,Transport,230008,Contract Hire,03/01/2023,4085025-SW15-DEC22,"1,636.03",CHIPPERS TAXIS.
Children and Young Peoples Services,Head of Education and Skills,Transport,230008,Contract Hire,03/01/2023,4085031-E031-LR1222,"3,278.58",CJ`S EXECUTIVE TRAVEL LTD.
Children and Young Peoples Services,Head of Education and Skills,Transport,230008,Contract Hire,03/01/2023,4085031-E032-CE1222,"1,851.50",CJ`S EXECUTIVE TRAVEL LTD.
Children and Young Peoples Services,Head of Education and Skills,Transport,230008,Contract Hire,03/01/2023,4085031-E040-LRB1222,"1,961.26",CJ`S EXECUTIVE TRAVEL LTD.
Children and Young Peoples Services,Head of Education and Skills,Transport,230008,Contract Hire,03/01/2023,4085031-M031-BR1222,"2,226.00",CJ`S EXECUTIVE TRAVEL LTD.
Children and Young Peoples Services,Head of Education and Skills,Transport,230008,Contract Hire,03/01/2023,4085031-N049-JM1222,"3,028.49",CJ`S EXECUTIVE TRAVEL LTD.
Children and Young Peoples Services,Head of Education and Skills,Transport,230008,Contract Hire,03/01/2023,4085044-DI202212,"1,393.60",D&I TAXIS.
Children and Young Peoples Services,Head of Education and Skills,Transport,230008,Contract Hire,03/01/2023,4085046-3773,"1,642.55",DAVES MINIBUSES.
Children and Young Peoples Services,Head of Education and Skills,Transport,230008,Contract Hire,03/01/2023,4085046-3774,"1,392.82",DAVES MINIBUSES.
Children and Young Peoples Services,Head of Education and Skills,Transport,230008,Contract Hire,03/01/2023,4085046-3775,"1,234.48",DAVES MINIBUSES.
Children and Young Peoples Services,Head of Education and Skills,Transport,230008,Contract Hire,03/01/2023,4085046-3776,"1,500.59",DAVES MINIBUSES.
Children and Young Peoples Services,Head of Education and Skills,Transport,230008,Contract Hire,03/01/2023,4085046-3777,"1,308.00",DAVES MINIBUSES.
Children and Young Peoples Services,Head of Education and Skills,Transport,230008,Contract Hire,03/01/2023,4085046-3778,"1,377.96",DAVES MINIBUSES.
Children and Young Peoples Services,Head of Education and Skills,Transport,230008,Contract Hire,03/01/2023,4085063-1464,"4,000.00",EAST DURHAM TAXIS.
Adult and Health Services,Head of Adults,Transport,230005,Contract Hire,03/01/2023,4085063-1468,"2,372.00",EAST DURHAM TAXIS.
Adult and Health Services,Head of Adults,Transport,230005,Contract Hire,03/01/2023,4085063-1469,"1,264.40",EAST DURHAM TAXIS.
Children and Young Peoples Services,Head of Education and Skills,Transport,230008,Contract Hire,03/01/2023,4085063-1470,"2,002.00",EAST DURHAM TAXIS.
Children and Young Peoples Services,Head of Education and Skills,Transport,230008,Contract Hire,03/01/2023,4085076-2596,"1,247.84",FMR SILVA PITA.
Children and Young Peoples Services,Head of Education and Skills,Transport,230009,Contract Hire,03/01/2023,4085076-2597,796.74,FMR SILVA PITA.
Children and Young Peoples Services,Head of Education and Skills,Transport,230007,Contract Hire,03/01/2023,4085076-2598,980.00,FMR SILVA PITA.
Children and Young Peoples Services,Head of Education and Skills,Transport,230035,Contract Hire,03/01/2023,4085076-2599,975.02,FMR SILVA PITA.
Children and Young Peoples Services,Head of Education and Skills,Transport,230006,Contract Hire,03/01/2023,4085092-HT679,"1,600.00",HARRY`S TAXI`S.
Children and Young Peoples Services,Head of Education and Skills,Transport,230007,Contract Hire,03/01/2023,4085092-HT680,"2,215.50",HARRY`S TAXI`S.
Children and Young Peoples Services,Head of Education and Skills,Transport,230007,Contract Hire,03/01/2023,4085092-HT681,"2,575.16",HARRY`S TAXI`S.
Children and Young Peoples Services,Head of Education and Skills,Transport,230016,Contract Hire,03/01/2023,4085092-HT683,881.64,HARRY`S TAXI`S.
Children and Young Peoples Services,Head of Education and Skills,Transport,230008,Contract Hire,03/01/2023,4085092-HT684,"3,220.00",HARRY`S TAXI`S.
Children and Young Peoples Services,Head of Education and Skills,Transport,230007,Contract Hire,03/01/2023,4085105-6522-22/12/22,780.00,J YOUNG T/A VIP TAXIS.
Children and Young Peoples Services,Head of Education and Skills,Transport,230007,Contract Hire,03/01/2023,4085105-6523-22/12/22,728.00,J YOUNG T/A VIP TAXIS.
Children and Young Peoples Services,Head of Education and Skills,Transport,230006,Contract Hire,03/01/2023,4085105-6524-22/12/22,576.00,J YOUNG T/A VIP TAXIS.
Children and Young Peoples Services,Head of Education and Skills,Transport,230008,Contract Hire,03/01/2023,4085105-6525-22/12/22,"1,124.34",J YOUNG T/A VIP TAXIS.
Children and Young Peoples Services,Head of Education and Skills,Transport,230008,Contract Hire,03/01/2023,4085105-6527-22/12/22,"1,031.29",J YOUNG T/A VIP TAXIS.
Children and Young Peoples Services,Head of Education and Skills,Transport,230007,Contract Hire,03/01/2023,4085113-INV3250,"2,057.16",JEFF ANDERSON COACHES LTD.
Children and Young Peoples Services,Head of Education and Skills,Transport,230008,Contract Hire,03/01/2023,4085113-INV3251,"1,306.24",JEFF ANDERSON COACHES LTD.
Children and Young Peoples Services,Head of Education and Skills,Transport,230007,Contract Hire,03/01/2023,4085113-INV3252,"1,202.60",JEFF ANDERSON COACHES LTD.
Children and Young Peoples Services,Head of Education and Skills,Transport,230008,Contract Hire,03/01/2023,4085113-INV3253,"1,624.87",JEFF ANDERSON COACHES LTD.
Children and Young Peoples Services,Head of Education and Skills,Transport,230012,Contract Hire,03/01/2023,4085121-1357,"2,597.98",K & R TAXIS (STANLEY).
Children and Young Peoples Services,Head of Education and Skills,Transport,230008,Contract Hire,03/01/2023,4085121-1359,"2,684.36",K & R TAXIS (STANLEY).
Children and Young Peoples Services,Head of Education and Skills,Transport,230003,Contract Hire,03/01/2023,4085132-32041,"3,795.08",LEE`S COACHES LTD.
Children and Young Peoples Services,Head of Education and Skills,Transport,230003,Contract Hire,03/01/2023,4085132-32042,"5,027.07",LEE`S COACHES LTD.
Children and Young Peoples Services,Head of Education and Skills,Transport,230007,Contract Hire,03/01/2023,4085132-32043,"1,687.05",LEE`S COACHES LTD.
Children and Young Peoples Services,Head of Education and Skills,Transport,230007,Contract Hire,03/01/2023,4085132-32044,"3,204.45",LEE`S COACHES LTD.
Children and Young Peoples Services,Head of Education and Skills,Transport,230007,Contract Hire,03/01/2023,4085132-32045,"2,399.70",LEE`S COACHES LTD.
Children and Young Peoples Services,Head of Education and Skills,Transport,230003,Contract Hire,03/01/2023,4085132-32047,"2,520.00",LEE`S COACHES LTD.
Children and Young Peoples Services,Head of Education and Skills,Transport,230007,Contract Hire,03/01/2023,4085132-32048,"3,117.10",LEE`S COACHES LTD.
Children and Young Peoples Services,Head of Education and Skills,Transport,230008,Contract Hire,03/01/2023,4085135-015,"2,805.32",LIMASEC LTD T/A LIMA TRANSPORT.
Children and Young Peoples Services,Head of Education and Skills,Transport,230034,Contract Hire,03/01/2023,4085140-3515-DEC22,"1,560.00",LORRAINES TAXIS.
Children and Young Peoples Services,Head of Education and Skills,Transport,230009,Contract Hire,03/01/2023,4085140-G046-DEC22,550.00,LORRAINES TAXIS.
Children and Young Peoples Services,Head of Education and Skills,Transport,230008,Contract Hire,03/01/2023,4085140-W180-DEC22,"2,340.00",LORRAINES TAXIS.
Children and Young Peoples Services,Head of Education and Skills,Transport,230007,Contract Hire,03/01/2023,4085144-INV12/2022-01,"1,274.16",MARK & JOHN CHISHOLM T/A (CHEVRON).
Children and Young Peoples Services,Head of Education and Skills,Transport,230007,Contract Hire,03/01/2023,4085144-INV12/2022-03,777.00,MARK & JOHN CHISHOLM T/A (CHEVRON).
Children and Young Peoples Services,Head of Education and Skills,Transport,230007,Contract Hire,03/01/2023,4085144-INV12/2022-04,"1,843.80",MARK & JOHN CHISHOLM T/A (CHEVRON).
Children and Young Peoples Services,Head of Education and Skills,Transport,230008,Contract Hire,03/01/2023,4085144-INV12/2022-07,"1,704.25",MARK & JOHN CHISHOLM T/A (CHEVRON).
Children and Young Peoples Services,Head of Education and Skills,Transport,230008,Contract Hire,03/01/2023,4085144-INV12/2022-08,"2,777.29",MARK & JOHN CHISHOLM T/A (CHEVRON).
Children and Young Peoples Services,Head of Education and Skills,Transport,230007,Contract Hire,03/01/2023,4085197-3508-DEC22,899.36,PB PRIVATE HIRE.
Children and Young Peoples Services,Head of Education and Skills,Transport,230007,Contract Hire,03/01/2023,4085197-3508-NOV22A,"1,092.08",PB PRIVATE HIRE.
Children and Young Peoples Services,Head of Education and Skills,Transport,230006,Contract Hire,03/01/2023,4085215-RDS085,"1,184.00",RDS TAXI.
Children and Young Peoples Services,Head of Education and Skills,Transport,230008,Contract Hire,03/01/2023,4085221-SE-70,"2,194.50",ROBBIE`S PRIVATE HIRE.
Children and Young Peoples Services,Head of Education and Skills,Transport,230006,Contract Hire,03/01/2023,4085221-SI-69,"1,631.00",ROBBIE`S PRIVATE HIRE.
Children and Young Peoples Services,Head of Education and Skills,Transport,230012,Contract Hire,03/01/2023,4085221-SI-71,"1,456.00",ROBBIE`S PRIVATE HIRE.
Children and Young Peoples Services,Head of Education and Skills,Transport,230006,Contract Hire,03/01/2023,4085221-SI-72,625.00,ROBBIE`S PRIVATE HIRE.
Children and Young Peoples Services,Head of Education and Skills,Transport,230016,Contract Hire,03/01/2023,4085221-SI-73,"1,566.00",ROBBIE`S PRIVATE HIRE.
Children and Young Peoples Services,Head of Education and Skills,Transport,230007,Contract Hire,03/01/2023,4085222-1923,767.88,RON`S TAXIS (FISHBURN).
Adult and Health Services,Head of Adults,Transport,230005,Contract Hire,03/01/2023,4085222-1924,"1,151.82",RON`S TAXIS (FISHBURN).
Children and Young Peoples Services,Head of Education and Skills,Transport,230006,Contract Hire,03/01/2023,4085222-5A,"2,261.35",RON`S TAXIS (FISHBURN).
Children and Young Peoples Services,Head of Education and Skills,Transport,230008,Contract Hire,03/01/2023,4085255-DCC/2022/24,"2,326.38",TAYLOR`S TAXIS.
Children and Young Peoples Services,Head of Education and Skills,Transport,230008,Contract Hire,03/01/2023,4085255-DCC/2022/25,"1,708.07",TAYLOR`S TAXIS.
Children and Young Peoples Services,Head of Education and Skills,Transport,230006,Contract Hire,03/01/2023,4085255-DCC/2022/26,"2,203.37",TAYLOR`S TAXIS.
Children and Young Peoples Services,Head of Education and Skills,Transport,230035,Contract Hire,03/01/2023,4085255-DCC/2022/27,"1,151.70",TAYLOR`S TAXIS.
Children and Young Peoples Services,Head of Education and Skills,Transport,230006,Contract Hire,03/01/2023,4085255-DCC/2022/28,"2,095.79",TAYLOR`S TAXIS.
Children and Young Peoples Services,Head of Education and Skills,Transport,230009,Contract Hire,03/01/2023,4085255-DCC/2022/29,"1,185.00",TAYLOR`S TAXIS.
Children and Young Peoples Services,Head of Education and Skills,Transport,230008,Contract Hire,03/01/2023,4085255-DCC/2022/31,"2,772.00",TAYLOR`S TAXIS.
Children and Young Peoples Services,Head of Education and Skills,Transport,230008,Contract Hire,03/01/2023,4085286-0003555,"1,937.00",WATSONS OF SPENNYMOOR.
Children and Young Peoples Services,Head of Education and Skills,Transport,230008,Contract Hire,03/01/2023,4085286-0003556,"1,804.66",WATSONS OF SPENNYMOOR.
Children and Young Peoples Services,Head of Education and Skills,Transport,230007,Contract Hire,03/01/2023,4085286-0003557,"1,470.00",WATSONS OF SPENNYMOOR.
Children and Young Peoples Services,Head of Childrens Social Care,Transport,230005,Contract Hire,04/01/2023,4085340-114983,503.50,CROFT BUSINESS SERVICES LTD T/A CROFT TRAVEL.
Children and Young Peoples Services,Head of Childrens Social Care,Transport,230005,Contract Hire,04/01/2023,4085340-114988,794.88,CROFT BUSINESS SERVICES LTD T/A CROFT TRAVEL.
Children and Young Peoples Services,Head of Childrens Social Care,Transport,230005,Contract Hire,04/01/2023,4085340-114989,"1,589.28",CROFT BUSINESS SERVICES LTD T/A CROFT TRAVEL.
Children and Young Peoples Services,Head of Childrens Social Care,Transport,230005,Contract Hire,04/01/2023,4085508-DEC54/STL22,698.00,STL CABS LTD.
Children and Young Peoples Services,Head of Childrens Social Care,Transport,230005,Contract Hire,04/01/2023,4085508-DEC56/STL22,522.00,STL CABS LTD.
Children and Young Peoples Services,Head of Childrens Social Care,Transport,230005,Contract Hire,04/01/2023,4085508-DEC59/STL22,620.00,STL CABS LTD.
Children and Young Peoples Services,Head of Education and Skills,Transport,230006,Contract Hire,05/01/2023,4085565-DEC2022-2,"1,807.00",ARMSTRONG`S TAXIS.
Children and Young Peoples Services,Head of Education and Skills,Transport,230012,Contract Hire,05/01/2023,4085565-DEC2022-4,952.00,ARMSTRONG`S TAXIS.
Children and Young Peoples Services,Head of Education and Skills,Transport,230008,Contract Hire,05/01/2023,4085567-949,"2,378.74",AT TAXIS LTD.
Children and Young Peoples Services,Head of Education and Skills,Transport,230008,Contract Hire,05/01/2023,4085567-950,"2,098.07",AT TAXIS LTD.
Children and Young Peoples Services,Head of Education and Skills,Transport,230007,Contract Hire,05/01/2023,4085567-951,"1,390.61",AT TAXIS LTD.
Children and Young Peoples Services,Head of Education and Skills,Transport,230006,Contract Hire,05/01/2023,4085572-41,918.00,BELMONT TAXIS.
Children and Young Peoples Services,Head of Education and Skills,Transport,230007,Contract Hire,05/01/2023,4085574-DEC22-6069,"1,119.72",BIG MAMA`S TAXI.
Dedicated Schools Grant BG0015,DSG High Needs Block,Transport,230009,Contract Hire,05/01/2023,4085574-DEC22-G045,879.78,BIG MAMA`S TAXI.
Children and Young Peoples Services,Head of Education and Skills,Transport,230006,Contract Hire,05/01/2023,4085574-F131,"2,442.92",BIG MAMA`S TAXI.
Children and Young Peoples Services,Head of Education and Skills,Transport,230007,Contract Hire,05/01/2023,4085591-2055,"1,354.50",CHEVRON TAXIS LTD.
Children and Young Peoples Services,Head of Education and Skills,Transport,230007,Contract Hire,05/01/2023,4085591-2056,"1,356.60",CHEVRON TAXIS LTD.
Children and Young Peoples Services,Head of Education and Skills,Transport,230007,Contract Hire,05/01/2023,4085591-2057,"1,176.00",CHEVRON TAXIS LTD.
Children and Young Peoples Services,Head of Education and Skills,Transport,230010,Contract Hire,05/01/2023,4085591-2059,"2,414.72",CHEVRON TAXIS LTD.
Adult and Health Services,Head of Adults,Transport,230005,Contract Hire,05/01/2023,4085591-2060,"1,764.00",CHEVRON TAXIS LTD.
Children and Young Peoples Services,Head of Education and Skills,Transport,230007,Contract Hire,05/01/2023,4085591-2061,700.00,CHEVRON TAXIS LTD.
Children and Young Peoples Services,Head of Education and Skills,Transport,230034,Contract Hire,05/01/2023,4085591-2062,"1,580.00",CHEVRON TAXIS LTD.
Children and Young Peoples Services,Head of Education and Skills,Transport,230006,Contract Hire,05/01/2023,4085591-2063,"1,602.00",CHEVRON TAXIS LTD.
Children and Young Peoples Services,Head of Education and Skills,Transport,230008,Contract Hire,05/01/2023,4085591-2064,"1,549.24",CHEVRON TAXIS LTD.
Children and Young Peoples Services,Head of Education and Skills,Transport,230006,Contract Hire,05/01/2023,4085591-2065,"1,417.46",CHEVRON TAXIS LTD.
Children and Young Peoples Services,Head of Childrens Social Care,Transport,230005,Contract Hire,05/01/2023,4085613-DH2248N,660.00,DH2 CABS.
Children and Young Peoples Services,Head of Childrens Social Care,Transport,230005,Contract Hire,05/01/2023,4085613-DH2248R,670.00,DH2 CABS.
Children and Young Peoples Services,Head of Childrens Social Care,Transport,230005,Contract Hire,05/01/2023,4085613-DH2248X,720.00,DH2 CABS.
Children and Young Peoples Services,Head of Childrens Social Care,Transport,230005,Contract Hire,05/01/2023,4085613-DH2248Y,"1,020.00",DH2 CABS.
Children and Young Peoples Services,Head of Childrens Social Care,Transport,230005,Contract Hire,05/01/2023,4085613-DH2248ZD,550.00,DH2 CABS.
Children and Young Peoples Services,Head of Childrens Social Care,Transport,230005,Contract Hire,05/01/2023,4085613-DH2249D,655.00,DH2 CABS.
Children and Young Peoples Services,Head of Childrens Social Care,Transport,230005,Contract Hire,05/01/2023,4085613-DH2249O,715.00,DH2 CABS.
Children and Young Peoples Services,Head of Childrens Social Care,Transport,230005,Contract Hire,05/01/2023,4085613-DH2249Q,640.00,DH2 CABS.
Children and Young Peoples Services,Head of Childrens Social Care,Transport,230005,Contract Hire,05/01/2023,4085613-DH2249W,"1,100.00",DH2 CABS.
Children and Young Peoples Services,Head of Childrens Social Care,Transport,230005,Contract Hire,05/01/2023,4085613-DH2249ZA,550.00,DH2 CABS.
Children and Young Peoples Services,Head of Childrens Social Care,Transport,230005,Contract Hire,05/01/2023,4085613-DH2250B,"1,690.00",DH2 CABS.
Children and Young Peoples Services,Head of Childrens Social Care,Transport,230005,Contract Hire,05/01/2023,4085613-DH2250D,755.00,DH2 CABS.
Children and Young Peoples Services,Head of Childrens Social Care,Transport,230005,Contract Hire,05/01/2023,4085613-DH2250M,715.00,DH2 CABS.
Children and Young Peoples Services,Head of Childrens Social Care,Transport,230005,Contract Hire,05/01/2023,4085613-DH2250P,585.00,DH2 CABS.
Children and Young Peoples Services,Head of Childrens Social Care,Transport,230005,Contract Hire,05/01/2023,4085613-DH2250W,"1,100.00",DH2 CABS.
Children and Young Peoples Services,Head of Childrens Social Care,Transport,230005,Contract Hire,05/01/2023,4085613-DH2250Y,550.00,DH2 CABS.
Children and Young Peoples Services,Head of Childrens Social Care,Transport,230005,Contract Hire,05/01/2023,4085613-DH2250Z,500.00,DH2 CABS.
Children and Young Peoples Services,Head of Education and Skills,Transport,230016,Contract Hire,05/01/2023,4085616-1467,"5,117.00",EAST DURHAM TAXIS.
Children and Young Peoples Services,Head of Education and Skills,Transport,230008,Contract Hire,05/01/2023,4085628-011,"1,998.89",FERRYHILL VILLAGE TRAVEL & BROOM ROAD GARAGE LIMITED.
Children and Young Peoples Services,Head of Education and Skills,Transport,230008,Contract Hire,05/01/2023,4085633-103203,"4,096.46",G & P JOHNSON LTD T/A NIGHTINGALE COACHES.
Children and Young Peoples Services,Head of Education and Skills,Transport,230008,Contract Hire,05/01/2023,4085633-103205,"2,005.08",G & P JOHNSON LTD T/A NIGHTINGALE COACHES.
Children and Young Peoples Services,Head of Education and Skills,Transport,230008,Contract Hire,05/01/2023,4085633-103207,"2,772.00",G & P JOHNSON LTD T/A NIGHTINGALE COACHES.
Children and Young Peoples Services,Head of Education and Skills,Transport,230008,Contract Hire,05/01/2023,4085633-103208,"2,271.64",G & P JOHNSON LTD T/A NIGHTINGALE COACHES.
Children and Young Peoples Services,Head of Education and Skills,Transport,230008,Contract Hire,05/01/2023,4085633-103209,"2,016.00",G & P JOHNSON LTD T/A NIGHTINGALE COACHES.
Children and Young Peoples Services,Head of Education and Skills,Transport,230008,Contract Hire,05/01/2023,4085633-103210,"2,142.28",G & P JOHNSON LTD T/A NIGHTINGALE COACHES.
Children and Young Peoples Services,Head of Education and Skills,Transport,230003,Contract Hire,05/01/2023,4085633-103211,"2,268.00",G & P JOHNSON LTD T/A NIGHTINGALE COACHES.
Children and Young Peoples Services,Head of Education and Skills,Transport,230007,Contract Hire,05/01/2023,4085633-103212,"1,018.92",G & P JOHNSON LTD T/A NIGHTINGALE COACHES.
Adult and Health Services,Head of Adults,Transport,230005,Contract Hire,05/01/2023,4085633-103213,"1,941.00",G & P JOHNSON LTD T/A NIGHTINGALE COACHES.
Adult and Health Services,Head of Adults,Transport,230005,Contract Hire,05/01/2023,4085633-103214,"1,220.00",G & P JOHNSON LTD T/A NIGHTINGALE COACHES.
Adult and Health Services,Head of Adults,Transport,230005,Contract Hire,05/01/2023,4085633-103216,"1,840.00",G & P JOHNSON LTD T/A NIGHTINGALE COACHES.
Adult and Health Services,Head of Adults,Transport,230005,Contract Hire,05/01/2023,4085633-103217,"2,780.00",G & P JOHNSON LTD T/A NIGHTINGALE COACHES.
Adult and Health Services,Head of Adults,Transport,230005,Contract Hire,05/01/2023,4085633-103218,"1,237.20",G & P JOHNSON LTD T/A NIGHTINGALE COACHES.
Adult and Health Services,Head of Adults,Transport,230005,Contract Hire,05/01/2023,4085633-103219,"1,564.00",G & P JOHNSON LTD T/A NIGHTINGALE COACHES.
Adult and Health Services,Head of Adults,Transport,230005,Contract Hire,05/01/2023,4085633-103221,"1,036.00",G & P JOHNSON LTD T/A NIGHTINGALE COACHES.
Adult and Health Services,Head of Adults,Transport,230005,Contract Hire,05/01/2023,4085633-103224,"1,788.00",G & P JOHNSON LTD T/A NIGHTINGALE COACHES.
Adult and Health Services,Head of Adults,Transport,230005,Contract Hire,05/01/2023,4085633-103231,"1,846.02",G & P JOHNSON LTD T/A NIGHTINGALE COACHES.
Adult and Health Services,Head of Adults,Transport,230005,Contract Hire,05/01/2023,4085633-103232,"2,063.20",G & P JOHNSON LTD T/A NIGHTINGALE COACHES.
Children and Young Peoples Services,Head of Education and Skills,Transport,230008,Contract Hire,05/01/2023,4085648-HT685,"1,973.16",HARRY`S TAXI`S.
Children and Young Peoples Services,Head of Education and Skills,Transport,230034,Contract Hire,05/01/2023,4085653-DEC/005,960.00,HORNDALE TAXIS.
Children and Young Peoples Services,Head of Education and Skills,Transport,230035,Contract Hire,05/01/2023,4085653-DEC/006-B,696.54,HORNDALE TAXIS.
Children and Young Peoples Services,Head of Education and Skills,Transport,230008,Contract Hire,05/01/2023,4085656-1120,"1,991.08",I & R EXECUTIVE TRAVEL.
Children and Young Peoples Services,Head of Education and Skills,Transport,230008,Contract Hire,05/01/2023,4085656-1121,"1,477.00",I & R EXECUTIVE TRAVEL.
Adult and Health Services,Head of Adults,Transport,230005,Contract Hire,05/01/2023,4085656-1122,"1,497.00",I & R EXECUTIVE TRAVEL.
Adult and Health Services,Head of Adults,Transport,230005,Contract Hire,05/01/2023,4085674-72-DEC22,"1,824.60",JOHN CRAKE & SONS MINI BUSES LTD.
Adult and Health Services,Head of Adults,Transport,230005,Contract Hire,05/01/2023,4085674-75-DM112,"1,526.00",JOHN CRAKE & SONS MINI BUSES LTD.
Children and Young Peoples Services,Head of Education and Skills,Transport,230008,Contract Hire,05/01/2023,4085684-2125,"4,210.52",KINGSWAY CABS LTD.
Children and Young Peoples Services,Head of Education and Skills,Transport,230008,Contract Hire,05/01/2023,4085697-5265,"1,978.80",LOCAL TRANSPORT LTD.
Children and Young Peoples Services,Head of Education and Skills,Transport,230008,Contract Hire,05/01/2023,4085697-5341,"2,398.83",LOCAL TRANSPORT LTD.
Children and Young Peoples Services,Head of Education and Skills,Transport,230008,Contract Hire,05/01/2023,4085710-A009-DEC22,"2,036.02",MOLLY`S TAXIS LTD.
Children and Young Peoples Services,Head of Education and Skills,Transport,230006,Contract Hire,05/01/2023,4085710-A204-DEC22,"1,332.00",MOLLY`S TAXIS LTD.
Children and Young Peoples Services,Head of Education and Skills,Transport,230008,Contract Hire,05/01/2023,4085710-N012-DEC22,"3,712.80",MOLLY`S TAXIS LTD.
Children and Young Peoples Services,Head of Education and Skills,Transport,230008,Contract Hire,05/01/2023,4085710-N038-DEC22,"2,629.62",MOLLY`S TAXIS LTD.
Children and Young Peoples Services,Head of Education and Skills,Transport,230008,Contract Hire,05/01/2023,4085710-N041-DEC22,"2,680.44",MOLLY`S TAXIS LTD.
Children and Young Peoples Services,Head of Education and Skills,Transport,230009,Contract Hire,05/01/2023,4085748-INV0041,"2,978.69",PHIL BELL EXECUTIVE TRAVEL.
Children and Young Peoples Services,Head of Education and Skills,Transport,230034,Contract Hire,05/01/2023,4085749-52348,"2,800.00",PHOENIX TAXIS T/A PRATT`S TAXIS.
Children and Young Peoples Services,Head of Education and Skills,Transport,230007,Contract Hire,05/01/2023,4085749-52350,"1,122.00",PHOENIX TAXIS T/A PRATT`S TAXIS.
Children and Young Peoples Services,Head of Education and Skills,Transport,230006,Contract Hire,05/01/2023,4085749-52355,812.00,PHOENIX TAXIS T/A PRATT`S TAXIS.
Children and Young Peoples Services,Head of Education and Skills,Transport,230006,Contract Hire,05/01/2023,4085749-52356,660.00,PHOENIX TAXIS T/A PRATT`S TAXIS.
Children and Young Peoples Services,Head of Education and Skills,Transport,230003,Contract Hire,05/01/2023,4085769-ROXDCC298,"8,160.00",ROXBYS BUS HIRE.
Children and Young Peoples Services,Head of Education and Skills,Transport,230003,Contract Hire,05/01/2023,4085769-ROXDCC299,"2,538.27",ROXBYS BUS HIRE.
Children and Young Peoples Services,Head of Education and Skills,Transport,230007,Contract Hire,05/01/2023,4085769-ROXDCC300,"3,920.00",ROXBYS BUS HIRE.
Children and Young Peoples Services,Head of Education and Skills,Transport,230034,Contract Hire,05/01/2023,4085782-610249,"1,584.00",SHERBURN TAXIS LTD.
Children and Young Peoples Services,Head of Education and Skills,Transport,230007,Contract Hire,05/01/2023,4085793-56,"2,687.58",TED WILFORD COACHES.
Children and Young Peoples Services,Head of Education and Skills,Transport,230007,Contract Hire,05/01/2023,4085815-7691,"2,557.10",WEARDALE PRIVATE HIRE.
Children and Young Peoples Services,Head of Education and Skills,Transport,230004,Contract Hire,05/01/2023,4085815-7693,"1,939.00",WEARDALE PRIVATE HIRE.
Children and Young Peoples Services,Head of Education and Skills,Transport,230004,Contract Hire,05/01/2023,4085815-7694,"1,183.00",WEARDALE PRIVATE HIRE.
Children and Young Peoples Services,Head of Education and Skills,Transport,230004,Contract Hire,05/01/2023,4085815-7695,805.42,WEARDALE PRIVATE HIRE.
Children and Young Peoples Services,Head of Education and Skills,Transport,230008,Contract Hire,05/01/2023,4085815-7697,"2,496.39",WEARDALE PRIVATE HIRE.
Children and Young Peoples Services,Head of Education and Skills,Transport,230008,Contract Hire,05/01/2023,4085815-7698,"4,072.44",WEARDALE PRIVATE HIRE.
Children and Young Peoples Services,Head of Education and Skills,Transport,230007,Contract Hire,06/01/2023,4085828-AC2056,"1,085.12",ACE TAXIS (WINSTON).
Children and Young Peoples Services,Head of Education and Skills,Transport,230006,Contract Hire,06/01/2023,4085828-AC2057,660.00,ACE TAXIS (WINSTON).
Children and Young Peoples Services,Head of Education and Skills,Transport,230009,Contract Hire,06/01/2023,4085841-953,"2,955.00",AT TAXIS LTD.
Children and Young Peoples Services,Head of Education and Skills,Transport,230006,Contract Hire,06/01/2023,4085842-4-DEC22,750.90,B&C YELLOWCAB TAXI`S.
Adult and Health Services,Head of Adults,Transport,230005,Contract Hire,06/01/2023,4085852-0673,576.47,BIRDS TAXIS LTD.
Adult and Health Services,Head of Adults,Transport,230005,Contract Hire,06/01/2023,4085852-0674,"2,215.60",BIRDS TAXIS LTD.
Adult and Health Services,Head of Adults,Transport,230005,Contract Hire,06/01/2023,4085852-0675,515.52,BIRDS TAXIS LTD.
Adult and Health Services,Head of Adults,Transport,230005,Contract Hire,06/01/2023,4085852-0677,678.20,BIRDS TAXIS LTD.
Adult and Health Services,Head of Adults,Transport,230005,Contract Hire,06/01/2023,4085852-0680,"2,160.00",BIRDS TAXIS LTD.
Adult and Health Services,Head of Adults,Transport,230005,Contract Hire,06/01/2023,4085852-0681,"1,560.00",BIRDS TAXIS LTD.
Adult and Health Services,Head of Adults,Transport,230005,Contract Hire,06/01/2023,4085852-0682,"1,200.00",BIRDS TAXIS LTD.
Children and Young Peoples Services,Head of Education and Skills,Transport,230008,Contract Hire,06/01/2023,4085852-0684,"1,312.35",BIRDS TAXIS LTD.
Children and Young Peoples Services,Head of Education and Skills,Transport,230008,Contract Hire,06/01/2023,4085852-0685,"1,944.12",BIRDS TAXIS LTD.
Children and Young Peoples Services,Head of Education and Skills,Transport,230005,Contract Hire,06/01/2023,4085852-0686,704.14,BIRDS TAXIS LTD.
Children and Young Peoples Services,Head of Education and Skills,Transport,230034,Contract Hire,06/01/2023,4085856-5435-DEC22,"1,900.08",BON VOYAGE TAXIS LTD.
Children and Young Peoples Services,Head of Education and Skills,Transport,230008,Contract Hire,06/01/2023,4085856-N029-DEC22,"2,480.81",BON VOYAGE TAXIS LTD.
Children and Young Peoples Services,Head of Education and Skills,Transport,230008,Contract Hire,06/01/2023,4085856-N097-DEC22,"2,641.32",BON VOYAGE TAXIS LTD.
Children and Young Peoples Services,Head of Education and Skills,Transport,230008,Contract Hire,06/01/2023,4085856-N107-DEC22,"2,520.00",BON VOYAGE TAXIS LTD.
Children and Young Peoples Services,Head of Education and Skills,Transport,230008,Contract Hire,06/01/2023,4085856-N324-DEC22,"2,600.13",BON VOYAGE TAXIS LTD.
Children and Young Peoples Services,Head of Education and Skills,Transport,230008,Contract Hire,06/01/2023,4085857-A048-DEC22,"3,400.00",BON VOYAGE TRANSPORT LTD.
Children and Young Peoples Services,Head of Education and Skills,Transport,230008,Contract Hire,06/01/2023,4085857-W060-DEC22,"3,225.14",BON VOYAGE TRANSPORT LTD.
Children and Young Peoples Services,Head of Education and Skills,Transport,230008,Contract Hire,06/01/2023,4085857-W141-DEC22,"2,600.00",BON VOYAGE TRANSPORT LTD.
Children and Young Peoples Services,Head of Education and Skills,Transport,230007,Contract Hire,06/01/2023,4085870-2054,"1,503.31",CHEVRON TAXIS LTD.
Children and Young Peoples Services,Head of Education and Skills,Transport,230007,Contract Hire,06/01/2023,4085870-2058,"1,358.00",CHEVRON TAXIS LTD.
Children and Young Peoples Services,Head of Education and Skills,Transport,230006,Contract Hire,06/01/2023,4085870-2068,"2,296.00",CHEVRON TAXIS LTD.
Children and Young Peoples Services,Head of Education and Skills,Transport,230006,Contract Hire,06/01/2023,4085870-2069,544.00,CHEVRON TAXIS LTD.
Children and Young Peoples Services,Head of Education and Skills,Transport,230006,Contract Hire,06/01/2023,4085870-2070,"1,756.12",CHEVRON TAXIS LTD.
Children and Young Peoples Services,Head of Education and Skills,Transport,230009,Contract Hire,06/01/2023,4085870-2072,"2,106.00",CHEVRON TAXIS LTD.
Adult and Health Services,Head of Adults,Transport,230005,Contract Hire,06/01/2023,4085870-2085,731.00,CHEVRON TAXIS LTD.
Children and Young Peoples Services,Head of Education and Skills,Transport,230006,Contract Hire,06/01/2023,4085870-2093,688.00,CHEVRON TAXIS LTD.
Children and Young Peoples Services,Head of Education and Skills,Transport,230006,Contract Hire,06/01/2023,4085870-2098,"1,290.00",CHEVRON TAXIS LTD.
Children and Young Peoples Services,Head of Education and Skills,Transport,230008,Contract Hire,06/01/2023,4085878-LL-1222,"1,200.00",CJ`S EXECUTIVE TRAVEL LTD.
Children and Young Peoples Services,Head of Education and Skills,Transport,230007,Contract Hire,06/01/2023,4085882-C/11673,"5,315.38",COCHRANES T/A KELVIN TRAVEL.
Children and Young Peoples Services,Head of Education and Skills,Transport,230007,Contract Hire,06/01/2023,4085882-C/11674,"3,500.00",COCHRANES T/A KELVIN TRAVEL.
Children and Young Peoples Services,Head of Education and Skills,Transport,230007,Contract Hire,06/01/2023,4085882-C/11675,"3,500.00",COCHRANES T/A KELVIN TRAVEL.
Children and Young Peoples Services,Head of Education and Skills,Transport,230007,Contract Hire,06/01/2023,4085882-C/11676,"2,956.38",COCHRANES T/A KELVIN TRAVEL.
Children and Young Peoples Services,Head of Education and Skills,Transport,230007,Contract Hire,06/01/2023,4085887-INV020,"1,890.70",CONSETT EXECUTIVE CABS.
Children and Young Peoples Services,Head of Education and Skills,Transport,230006,Contract Hire,06/01/2023,4085894-115025115026,941.60,CROFT BUSINESS SERVICES LTD T/A CROFT TRAVEL.
Children and Young Peoples Services,Head of Education and Skills,Transport,230008,Contract Hire,06/01/2023,4085894-115036,"2,371.79",CROFT BUSINESS SERVICES LTD T/A CROFT TRAVEL.
Adult and Health Services,Head of Adults,Transport,230005,Contract Hire,06/01/2023,4085927-103215,"2,240.00",G & P JOHNSON LTD T/A NIGHTINGALE COACHES.
Children and Young Peoples Services,Head of Education and Skills,Transport,230006,Contract Hire,06/01/2023,4085929-15500,"2,280.00",GATESHEAD CENTRAL TAXIS LTD.
Children and Young Peoples Services,Head of Education and Skills,Transport,230008,Contract Hire,06/01/2023,4085929-15500-1,"3,276.32",GATESHEAD CENTRAL TAXIS LTD.
Children and Young Peoples Services,Head of Education and Skills,Transport,230007,Contract Hire,06/01/2023,4085933-80631,"6,390.44",GO GATESHEAD LTD.
Children and Young Peoples Services,Head of Education and Skills,Transport,230034,Contract Hire,06/01/2023,4085948-TOPSTAR/002-1,"1,020.00",HORNDALE TAXIS.
Adult and Health Services,Head of Adults,Transport,230005,Contract Hire,06/01/2023,4085957-0934,954.46,JACKSON`S TAXI.
Adult and Health Services,Head of Adults,Transport,230005,Contract Hire,06/01/2023,4085957-0937,682.00,JACKSON`S TAXI.
Children and Young Peoples Services,Head of Education and Skills,Transport,230008,Contract Hire,06/01/2023,4085957-0938,"1,523.28",JACKSON`S TAXI.
Adult and Health Services,Head of Adults,Transport,230005,Contract Hire,06/01/2023,4085957-0939,"2,402.27",JACKSON`S TAXI.
Children and Young Peoples Services,Head of Education and Skills,Transport,230008,Contract Hire,06/01/2023,4085957-0940,"1,650.87",JACKSON`S TAXI.
Children and Young Peoples Services,Head of Education and Skills,Transport,230007,Contract Hire,06/01/2023,4085981-4947,"2,068.05",LINCAB TAXIS.
Children and Young Peoples Services,Head of Education and Skills,Transport,230006,Contract Hire,06/01/2023,4086082-3452,"1,195.87",SIMONS TAXIS.
Children and Young Peoples Services,Head of Education and Skills,Transport,230007,Contract Hire,06/01/2023,4086091-07937,705.32,STANLEY TRAVEL (NORTH EAST) LTD.
Children and Young Peoples Services,Head of Education and Skills,Transport,230016,Contract Hire,06/01/2023,4086091-07939,"1,150.76",STANLEY TRAVEL (NORTH EAST) LTD.
Children and Young Peoples Services,Head of Education and Skills,Transport,230012,Contract Hire,06/01/2023,4086091-07940,968.88,STANLEY TRAVEL (NORTH EAST) LTD.
Children and Young Peoples Services,Head of Education and Skills,Transport,230008,Contract Hire,06/01/2023,4086091-07942,"1,448.30",STANLEY TRAVEL (NORTH EAST) LTD.
Children and Young Peoples Services,Head of Education and Skills,Transport,230008,Contract Hire,06/01/2023,4086091-07943,"1,840.61",STANLEY TRAVEL (NORTH EAST) LTD.
Children and Young Peoples Services,Head of Education and Skills,Transport,230035,Contract Hire,06/01/2023,4086091-07944,"1,177.32",STANLEY TRAVEL (NORTH EAST) LTD.
Adult and Health Services,Head of Adults,Transport,230005,Contract Hire,06/01/2023,4086091-07945,"1,669.20",STANLEY TRAVEL (NORTH EAST) LTD.
Children and Young Peoples Services,Head of Education and Skills,Transport,230009,Contract Hire,06/01/2023,4086091-07946,"1,094.40",STANLEY TRAVEL (NORTH EAST) LTD.
Children and Young Peoples Services,Head of Education and Skills,Transport,230007,Contract Hire,06/01/2023,4086091-07947,875.00,STANLEY TRAVEL (NORTH EAST) LTD.
Children and Young Peoples Services,Head of Education and Skills,Transport,230008,Contract Hire,06/01/2023,4086091-07948,"2,002.80",STANLEY TRAVEL (NORTH EAST) LTD.
Children and Young Peoples Services,Head of Education and Skills,Transport,230010,Contract Hire,06/01/2023,4086091-07949,"1,507.21",STANLEY TRAVEL (NORTH EAST) LTD.
Children and Young Peoples Services,Head of Education and Skills,Transport,230010,Contract Hire,06/01/2023,4086091-07951,"1,127.84",STANLEY TRAVEL (NORTH EAST) LTD.
Children and Young Peoples Services,Head of Education and Skills,Transport,230006,Contract Hire,06/01/2023,4086091-07952,"1,711.93",STANLEY TRAVEL (NORTH EAST) LTD.
Children and Young Peoples Services,Head of Education and Skills,Transport,230007,Contract Hire,06/01/2023,4086091-07953,910.00,STANLEY TRAVEL (NORTH EAST) LTD.
Children and Young Peoples Services,Head of Education and Skills,Transport,230006,Contract Hire,06/01/2023,4086091-07955,"1,743.00",STANLEY TRAVEL (NORTH EAST) LTD.
Adult and Health Services,Head of Adults,Transport,230005,Contract Hire,06/01/2023,4086091-07956,"1,375.00",STANLEY TRAVEL (NORTH EAST) LTD.
Children and Young Peoples Services,Head of Education and Skills,Transport,230003,Contract Hire,06/01/2023,4086091-61353,"4,715.76",STANLEY TRAVEL (NORTH EAST) LTD.
Children and Young Peoples Services,Head of Education and Skills,Transport,230003,Contract Hire,06/01/2023,4086091-61354,"2,053.20",STANLEY TRAVEL (NORTH EAST) LTD.
Children and Young Peoples Services,Head of Education and Skills,Transport,230003,Contract Hire,06/01/2023,4086091-61355,"8,752.20",STANLEY TRAVEL (NORTH EAST) LTD.
Children and Young Peoples Services,Head of Education and Skills,Transport,230007,Contract Hire,06/01/2023,4086126-4692,"2,018.70",WEARDALE PRIVATE HIRE.
Neighbourhoods and Climate Change,Environmental Services,Transport,230005,Contract Hire,09/01/2023,4086279-8194635,750.04,ENTERPRISE FLEX-E-RENT T/A BURNT TREE GROUP LTD.
Neighbourhoods and Climate Change,Environmental Services,Transport,230005,Contract Hire,09/01/2023,4086279-8194647,750.00,ENTERPRISE FLEX-E-RENT T/A BURNT TREE GROUP LTD.
Neighbourhoods and Climate Change,Environmental Services,Transport,230005,Contract Hire,09/01/2023,4086279-8194658,726.10,ENTERPRISE FLEX-E-RENT T/A BURNT TREE GROUP LTD.
Children and Young Peoples Services,Head of Education and Skills,Transport,230009,Contract Hire,10/01/2023,4087151-1122214,"3,172.54",24/7 TAXI SERVICES (PETERLEE) LTD.
Adult and Health Services,Head of Adults,Transport,230005,Contract Hire,10/01/2023,4087151-122209,"1,423.52",24/7 TAXI SERVICES (PETERLEE) LTD.
Children and Young Peoples Services,Head of Education and Skills,Transport,230034,Contract Hire,10/01/2023,4087153-1222/SA,"1,848.00",AABAT TAXIS.
Children and Young Peoples Services,Head of Education and Skills,Transport,230034,Contract Hire,10/01/2023,4087153-1222/SE,"1,325.24",AABAT TAXIS.
Adult and Health Services,Head of Adults,Transport,230005,Contract Hire,10/01/2023,4087153-1222/SK,"2,157.47",AABAT TAXIS.
Children and Young Peoples Services,Head of Education and Skills,Transport,230007,Contract Hire,10/01/2023,4087153-1222/SL,"1,641.60",AABAT TAXIS.
Children and Young Peoples Services,Head of Education and Skills,Transport,230007,Contract Hire,10/01/2023,4087153-1222/SM,"1,784.44",AABAT TAXIS.
Children and Young Peoples Services,Head of Education and Skills,Transport,230007,Contract Hire,10/01/2023,4087153-1222/SO,770.25,AABAT TAXIS.
Children and Young Peoples Services,Head of Education and Skills,Transport,230007,Contract Hire,10/01/2023,4087153-1222/SR,"1,031.40",AABAT TAXIS.
Children and Young Peoples Services,Head of Education and Skills,Transport,230007,Contract Hire,10/01/2023,4087153-1222/SS,"1,110.15",AABAT TAXIS.
Children and Young Peoples Services,Head of Education and Skills,Transport,230006,Contract Hire,10/01/2023,4087154-894,819.52,AC TAXIS.
Children and Young Peoples Services,Head of Education and Skills,Transport,230008,Contract Hire,10/01/2023,4087170-1025,"1,667.99",BEELINE MINI BUSES.
Children and Young Peoples Services,Head of Education and Skills,Transport,230008,Contract Hire,10/01/2023,4087170-1026,"1,584.05",BEELINE MINI BUSES.
Children and Young Peoples Services,Head of Education and Skills,Transport,230008,Contract Hire,10/01/2023,4087170-1027,915.36,BEELINE MINI BUSES.
Children and Young Peoples Services,Head of Education and Skills,Transport,230008,Contract Hire,10/01/2023,4087176-N061-DEC22,"2,577.40",BON VOYAGE TRANSPORT LTD.
Children and Young Peoples Services,Head of Education and Skills,Transport,230008,Contract Hire,10/01/2023,4087194-061,851.06,CJ COACHES.
Children and Young Peoples Services,Head of Education and Skills,Transport,230003,Contract Hire,10/01/2023,4087195-C/11677,"2,320.67",COCHRANES T/A KELVIN TRAVEL.
Children and Young Peoples Services,Head of Education and Skills,Transport,230003,Contract Hire,10/01/2023,4087195-C/11679,"2,683.28",COCHRANES T/A KELVIN TRAVEL.
Children and Young Peoples Services,Head of Education and Skills,Transport,230006,Contract Hire,10/01/2023,4087200-INV004-DEC22,"1,256.12",CONSETT EXECUTIVE CABS.
Children and Young Peoples Services,Head of Education and Skills,Transport,230006,Contract Hire,10/01/2023,4087210-115027,"4,608.00",CROFT BUSINESS SERVICES LTD T/A CROFT TRAVEL.
Children and Young Peoples Services,Head of Education and Skills,Transport,230008,Contract Hire,10/01/2023,4087210-115028,"2,065.86",CROFT BUSINESS SERVICES LTD T/A CROFT TRAVEL.
Children and Young Peoples Services,Head of Education and Skills,Transport,230008,Contract Hire,10/01/2023,4087210-115038,"2,694.16",CROFT BUSINESS SERVICES LTD T/A CROFT TRAVEL.
Children and Young Peoples Services,Head of Education and Skills,Transport,230008,Contract Hire,10/01/2023,4087210-115039,"1,317.84",CROFT BUSINESS SERVICES LTD T/A CROFT TRAVEL.
Children and Young Peoples Services,Head of Education and Skills,Transport,230008,Contract Hire,10/01/2023,4087210-115040/115037,"2,699.22",CROFT BUSINESS SERVICES LTD T/A CROFT TRAVEL.
Children and Young Peoples Services,Head of Education and Skills,Transport,230010,Contract Hire,10/01/2023,4087210-115042,"1,877.26",CROFT BUSINESS SERVICES LTD T/A CROFT TRAVEL.
Children and Young Peoples Services,Head of Education and Skills,Transport,230008,Contract Hire,10/01/2023,4087210-115043,"1,203.70",CROFT BUSINESS SERVICES LTD T/A CROFT TRAVEL.
Children and Young Peoples Services,Head of Education and Skills,Transport,230008,Contract Hire,10/01/2023,4087241-ES15,"1,650.35",ELITE TAXIS.
Children and Young Peoples Services,Head of Education and Skills,Transport,230007,Contract Hire,10/01/2023,4087252-6124,"1,239.00",GEM TRAVEL.
Children and Young Peoples Services,Head of Education and Skills,Transport,230003,Contract Hire,10/01/2023,4087256-B0630,"4,333.13",GO GATESHEAD LTD.
Children and Young Peoples Services,Head of Education and Skills,Transport,230006,Contract Hire,10/01/2023,4087259-DEC22-F682,598.05,GUY`S TAXIS.
Adult and Health Services,Head of Adults,Transport,230005,Contract Hire,10/01/2023,4087262-1001,"1,035.50",HAMLET TAXIS.
Children and Young Peoples Services,Head of Education and Skills,Transport,230034,Contract Hire,10/01/2023,4087271-0936,"1,867.52",JACKSON`S TAXI.
Children and Young Peoples Services,Head of Education and Skills,Transport,230008,Contract Hire,10/01/2023,4087271-935,"2,177.44",JACKSON`S TAXI.
Children and Young Peoples Services,Head of Education and Skills,Transport,230034,Contract Hire,10/01/2023,4087273-2510,"1,273.20",JDS PRIVATE HIRE DURHAM.
Children and Young Peoples Services,Head of Education and Skills,Transport,230034,Contract Hire,10/01/2023,4087273-2511,"2,079.00",JDS PRIVATE HIRE DURHAM.
Children and Young Peoples Services,Head of Education and Skills,Transport,230007,Contract Hire,10/01/2023,4087273-2512,808.08,JDS PRIVATE HIRE DURHAM.
Children and Young Peoples Services,Head of Education and Skills,Transport,230008,Contract Hire,10/01/2023,4087273-2513,"3,400.00",JDS PRIVATE HIRE DURHAM.
Children and Young Peoples Services,Head of Education and Skills,Transport,230008,Contract Hire,10/01/2023,4087273-2514,"2,211.87",JDS PRIVATE HIRE DURHAM.
Children and Young Peoples Services,Head of Education and Skills,Transport,230006,Contract Hire,10/01/2023,4087273-2515,"2,380.00",JDS PRIVATE HIRE DURHAM.
Children and Young Peoples Services,Head of Education and Skills,Transport,230008,Contract Hire,10/01/2023,4087273-2516,"2,239.72",JDS PRIVATE HIRE DURHAM.
Children and Young Peoples Services,Head of Education and Skills,Transport,230008,Contract Hire,10/01/2023,4087273-2517,"1,718.08",JDS PRIVATE HIRE DURHAM.
Children and Young Peoples Services,Head of Education and Skills,Transport,230008,Contract Hire,10/01/2023,4087273-2518,"1,638.65",JDS PRIVATE HIRE DURHAM.
Children and Young Peoples Services,Head of Education and Skills,Transport,230008,Contract Hire,10/01/2023,4087273-2519,"1,552.98",JDS PRIVATE HIRE DURHAM.
Children and Young Peoples Services,Head of Education and Skills,Transport,230008,Contract Hire,10/01/2023,4087273-2520,"1,469.65",JDS PRIVATE HIRE DURHAM.
Children and Young Peoples Services,Head of Education and Skills,Transport,230012,Contract Hire,10/01/2023,4087273-2521,"1,463.28",JDS PRIVATE HIRE DURHAM.
Children and Young Peoples Services,Head of Education and Skills,Transport,230008,Contract Hire,10/01/2023,4087273-2522,"1,514.28",JDS PRIVATE HIRE DURHAM.
Children and Young Peoples Services,Head of Education and Skills,Transport,230012,Contract Hire,10/01/2023,4087273-2523,"1,433.40",JDS PRIVATE HIRE DURHAM.
Children and Young Peoples Services,Head of Education and Skills,Transport,230006,Contract Hire,10/01/2023,4087273-2524,999.31,JDS PRIVATE HIRE DURHAM.
Children and Young Peoples Services,Head of Education and Skills,Transport,230008,Contract Hire,10/01/2023,4087273-2525,"2,944.50",JDS PRIVATE HIRE DURHAM.
Children and Young Peoples Services,Head of Education and Skills,Transport,230008,Contract Hire,10/01/2023,4087273-2526,"2,423.12",JDS PRIVATE HIRE DURHAM.
Children and Young Peoples Services,Head of Education and Skills,Transport,230008,Contract Hire,10/01/2023,4087273-2527,"2,677.95",JDS PRIVATE HIRE DURHAM.
Children and Young Peoples Services,Head of Education and Skills,Transport,230008,Contract Hire,10/01/2023,4087273-2528,"1,827.00",JDS PRIVATE HIRE DURHAM.
Children and Young Peoples Services,Head of Education and Skills,Transport,230008,Contract Hire,10/01/2023,4087273-2529,"1,303.38",JDS PRIVATE HIRE DURHAM.
Children and Young Peoples Services,Head of Education and Skills,Transport,230006,Contract Hire,10/01/2023,4087291-3094,"1,170.00",LD TAXIS.
Children and Young Peoples Services,Head of Education and Skills,Transport,230006,Contract Hire,10/01/2023,4087291-3096,"1,265.00",LD TAXIS.
Children and Young Peoples Services,Head of Education and Skills,Transport,230008,Contract Hire,10/01/2023,4087291-3098,"1,200.00",LD TAXIS.
Children and Young Peoples Services,Head of Education and Skills,Transport,230008,Contract Hire,10/01/2023,4087291-3099,"1,190.00",LD TAXIS.
Children and Young Peoples Services,Head of Education and Skills,Transport,230016,Contract Hire,10/01/2023,4087291-4000,"1,809.34",LD TAXIS.
Dedicated Schools Grant BG0015,DSG High Needs Block,Transport,230009,Contract Hire,10/01/2023,4087291-4001,"1,451.32",LD TAXIS.
Children and Young Peoples Services,Head of Education and Skills,Transport,230006,Contract Hire,10/01/2023,4087291-4002,"1,516.85",LD TAXIS.
Children and Young Peoples Services,Head of Education and Skills,Transport,230007,Contract Hire,10/01/2023,4087291-4005,810.60,LD TAXIS.
Children and Young Peoples Services,Head of Education and Skills,Transport,230008,Contract Hire,10/01/2023,4087291-4006,"1,023.84",LD TAXIS.
Children and Young Peoples Services,Head of Education and Skills,Transport,230007,Contract Hire,10/01/2023,4087291-4007,980.00,LD TAXIS.
Children and Young Peoples Services,Head of Education and Skills,Transport,230006,Contract Hire,10/01/2023,4087294-PEACO-004,"2,966.54",LETS TRAVEL.
Children and Young Peoples Services,Head of Education and Skills,Transport,230008,Contract Hire,10/01/2023,4087313-N077-DEC22,"3,549.00",MOLLY`S TAXIS LTD.
Children and Young Peoples Services,Head of Education and Skills,Transport,230008,Contract Hire,10/01/2023,4087353-52351,"3,366.00",PHOENIX TAXIS T/A PRATT`S TAXIS.
Children and Young Peoples Services,Head of Education and Skills,Transport,230006,Contract Hire,10/01/2023,4087374-F133/12/22,744.00,ROGERS TAXIS.
Children and Young Peoples Services,Head of Education and Skills,Transport,230008,Contract Hire,10/01/2023,4087378-S017/69,"1,661.22",S & S TRAVEL LTD.
Children and Young Peoples Services,Head of Education and Skills,Transport,230008,Contract Hire,10/01/2023,4087378-W178/23,"1,147.77",S & S TRAVEL LTD.
Children and Young Peoples Services,Head of Education and Skills,Transport,230007,Contract Hire,10/01/2023,4087384-DEC22-5040,"5,530.00",SHAWS OF DURHAM COACH HIRE.
Children and Young Peoples Services,Head of Education and Skills,Transport,230008,Contract Hire,10/01/2023,4087389-201201,"1,785.42",SPENNYMOOR TAXIS.
Children and Young Peoples Services,Head of Education and Skills,Transport,230008,Contract Hire,10/01/2023,4087389-201204,"1,663.74",SPENNYMOOR TAXIS.
Children and Young Peoples Services,Head of Education and Skills,Transport,230008,Contract Hire,10/01/2023,4087389-AAN201206,"1,448.33",SPENNYMOOR TAXIS.
Children and Young Peoples Services,Head of Education and Skills,Transport,230008,Contract Hire,10/01/2023,4087389-AL201202,"1,300.00",SPENNYMOOR TAXIS.
Children and Young Peoples Services,Head of Education and Skills,Transport,230008,Contract Hire,10/01/2023,4087389-AL201205,"1,690.00",SPENNYMOOR TAXIS.
Children and Young Peoples Services,Head of Education and Skills,Transport,230008,Contract Hire,10/01/2023,4087389-LTDD201203,884.29,SPENNYMOOR TAXIS.
Children and Young Peoples Services,Head of Education and Skills,Transport,230008,Contract Hire,10/01/2023,4087391-07954,"1,980.00",STANLEY TRAVEL (NORTH EAST) LTD.
Children and Young Peoples Services,Head of Education and Skills,Transport,230008,Contract Hire,10/01/2023,4087425-WESTLEA201222,"1,761.37",WESTLEA TAXIS.
Children and Young Peoples Services,Head of Education and Skills,Transport,230008,Contract Hire,11/01/2023,4087435-1222/SB,950.04,AABAT TAXIS.
Children and Young Peoples Services,Head of Education and Skills,Transport,230008,Contract Hire,11/01/2023,4087435-1222/SC,"2,669.68",AABAT TAXIS.
Children and Young Peoples Services,Head of Education and Skills,Transport,230008,Contract Hire,11/01/2023,4087435-1222/SD,"1,673.62",AABAT TAXIS.
Children and Young Peoples Services,Head of Education and Skills,Transport,230008,Contract Hire,11/01/2023,4087435-1222/SF,"1,246.00",AABAT TAXIS.
Adult and Health Services,Head of Adults,Transport,230005,Contract Hire,11/01/2023,4087435-1222/SH,"1,317.42",AABAT TAXIS.
Children and Young Peoples Services,Head of Education and Skills,Transport,230010,Contract Hire,11/01/2023,4087436-O582,"1,744.28",ABC & OUSTON CABS.
Children and Young Peoples Services,Head of Education and Skills,Transport,230006,Contract Hire,11/01/2023,4087446-373,897.00,ALANS TAXIS BARNARD CASTLE.
Children and Young Peoples Services,Head of Education and Skills,Transport,230007,Contract Hire,11/01/2023,4087446-374,"1,186.92",ALANS TAXIS BARNARD CASTLE.
Children and Young Peoples Services,Head of Education and Skills,Transport,230007,Contract Hire,11/01/2023,4087446-375,"1,740.64",ALANS TAXIS BARNARD CASTLE.
Children and Young Peoples Services,Head of Education and Skills,Transport,230007,Contract Hire,11/01/2023,4087446-376,"2,535.96",ALANS TAXIS BARNARD CASTLE.
Children and Young Peoples Services,Head of Education and Skills,Transport,230007,Contract Hire,11/01/2023,4087446-378,"2,349.90",ALANS TAXIS BARNARD CASTLE.
Children and Young Peoples Services,Head of Education and Skills,Transport,230009,Contract Hire,11/01/2023,4087450-DEC22-7373,868.00,ANGIE`S TAXIS.
Children and Young Peoples Services,Head of Education and Skills,Transport,230009,Contract Hire,11/01/2023,4087450-DEC22-7390,560.00,ANGIE`S TAXIS.
Adult and Health Services,Head of Adults,Transport,230005,Contract Hire,11/01/2023,4087461-DCC13DEC2022,"1,430.60",ATLAS TAXIS BISHOP AUCKLAND.
Adult and Health Services,Head of Adults,Transport,230005,Contract Hire,11/01/2023,4087461-DCC5DEC22,"1,380.80",ATLAS TAXIS BISHOP AUCKLAND.
Children and Young Peoples Services,Head of Education and Skills,Transport,230008,Contract Hire,11/01/2023,4087461-DCC7DEC22,"2,511.21",ATLAS TAXIS BISHOP AUCKLAND.
Children and Young Peoples Services,Head of Education and Skills,Transport,230008,Contract Hire,11/01/2023,4087461-DCC8DEC22,"3,279.49",ATLAS TAXIS BISHOP AUCKLAND.
Children and Young Peoples Services,Head of Education and Skills,Transport,230006,Contract Hire,11/01/2023,4087477-F185-DEC22,"1,039.84",BIG MAMA`S TAXI.
Children and Young Peoples Services,Head of Education and Skills,Transport,230006,Contract Hire,11/01/2023,4087478-INV-642,"1,134.08",BILL SCOTT TAXIS LTD.
Adult and Health Services,Head of Adults,Transport,230005,Contract Hire,11/01/2023,4087480-0658,746.02,BIRDS TAXIS LTD.
Adult and Health Services,Head of Adults,Transport,230005,Contract Hire,11/01/2023,4087480-0676,"1,231.68",BIRDS TAXIS LTD.
Children and Young Peoples Services,Head of Education and Skills,Transport,230006,Contract Hire,11/01/2023,4087480-0679,704.00,BIRDS TAXIS LTD.
Children and Young Peoples Services,Head of Education and Skills,Transport,230035,Contract Hire,11/01/2023,4087488-20,"1,584.15",BL TAXIS.
Adult and Health Services,Head of Adults,Transport,230005,Contract Hire,11/01/2023,4087490-43983,720.00,BLUELINE SOUTH INCORPORATING NAVIGATION TAXIS T/A BLUELINE TAXIS.
Children and Young Peoples Services,Head of Education and Skills,Transport,230007,Contract Hire,11/01/2023,4087490-44145,"1,215.20",BLUELINE SOUTH INCORPORATING NAVIGATION TAXIS T/A BLUELINE TAXIS.
Children and Young Peoples Services,Head of Education and Skills,Transport,230009,Contract Hire,11/01/2023,4087490-44149,"1,040.00",BLUELINE SOUTH INCORPORATING NAVIGATION TAXIS T/A BLUELINE TAXIS.
Adult and Health Services,Head of Adults,Transport,230005,Contract Hire,11/01/2023,4087490-44715,660.00,BLUELINE SOUTH INCORPORATING NAVIGATION TAXIS T/A BLUELINE TAXIS.
Children and Young Peoples Services,Head of Education and Skills,Transport,230007,Contract Hire,11/01/2023,4087490-44721,"1,442.88",BLUELINE SOUTH INCORPORATING NAVIGATION TAXIS T/A BLUELINE TAXIS.
Children and Young Peoples Services,Head of Education and Skills,Transport,230009,Contract Hire,11/01/2023,4087490-44725,"1,170.00",BLUELINE SOUTH INCORPORATING NAVIGATION TAXIS T/A BLUELINE TAXIS.
Children and Young Peoples Services,Head of Education and Skills,Transport,230008,Contract Hire,11/01/2023,4087490-44733,"2,593.69",BLUELINE SOUTH INCORPORATING NAVIGATION TAXIS T/A BLUELINE TAXIS.
Children and Young Peoples Services,Head of Education and Skills,Transport,230007,Contract Hire,11/01/2023,4087490-44746,"1,536.90",BLUELINE SOUTH INCORPORATING NAVIGATION TAXIS T/A BLUELINE TAXIS.
Children and Young Peoples Services,Head of Education and Skills,Transport,230010,Contract Hire,11/01/2023,4087493-001-B050,840.00,BOWBURN TAXIS.
Adult and Health Services,Head of Adults,Transport,230005,Contract Hire,11/01/2023,4087498-BZ00434,680.00,BREZ`S TAXIS.
Children and Young Peoples Services,Head of Education and Skills,Transport,230008,Contract Hire,11/01/2023,4087520-060,"1,337.38",CJ COACHES.
Children and Young Peoples Services,Head of Education and Skills,Transport,230003,Contract Hire,11/01/2023,4087524-C/11678,"4,088.50",COCHRANES T/A KELVIN TRAVEL.
Children and Young Peoples Services,Head of Education and Skills,Transport,230003,Contract Hire,11/01/2023,4087541-258,"2,166.65",DANNY`S TRAVEL.
Children and Young Peoples Services,Head of Education and Skills,Transport,230007,Contract Hire,11/01/2023,4087541-258-4227,"2,418.84",DANNY`S TRAVEL.
Neighbourhoods and Climate Change,Environmental Services,Transport,230005,Contract Hire,11/01/2023,4087579-13001409175,"4,679.40",ENTERPRISE FLEX-E-RENT T/A BURNT TREE GROUP LTD.
Neighbourhoods and Climate Change,Environmental Services,Transport,230005,Contract Hire,11/01/2023,4087579-13001419314,"1,574.42",ENTERPRISE FLEX-E-RENT T/A BURNT TREE GROUP LTD.
Children and Young Peoples Services,Head of Education and Skills,Transport,230007,Contract Hire,11/01/2023,4087588-INV-0081,"1,244.88",FIGGY BUS (TAXI).
Children and Young Peoples Services,Head of Education and Skills,Transport,230007,Contract Hire,11/01/2023,4087588-INV-0082,"1,264.00",FIGGY BUS (TAXI).
Children and Young Peoples Services,Head of Education and Skills,Transport,230006,Contract Hire,11/01/2023,4087588-INV-0083,600.00,FIGGY BUS (TAXI).
Children and Young Peoples Services,Head of Education and Skills,Transport,230007,Contract Hire,11/01/2023,4087588-INV-0084,"1,092.00",FIGGY BUS (TAXI).
Children and Young Peoples Services,Head of Education and Skills,Transport,230007,Contract Hire,11/01/2023,4087588-INV-0085,"1,984.05",FIGGY BUS (TAXI).
Children and Young Peoples Services,Head of Education and Skills,Transport,230010,Contract Hire,11/01/2023,4087590-2600,"1,095.15",FMR SILVA PITA.
Adult and Health Services,Head of Adults,Transport,230005,Contract Hire,11/01/2023,4087596-103220,"1,666.00",G & P JOHNSON LTD T/A NIGHTINGALE COACHES.
Children and Young Peoples Services,Head of Education and Skills,Transport,230008,Contract Hire,11/01/2023,4087596-103233,"1,507.38",G & P JOHNSON LTD T/A NIGHTINGALE COACHES.
Children and Young Peoples Services,Head of Education and Skills,Transport,230008,Contract Hire,11/01/2023,4087596-103234,806.26,G & P JOHNSON LTD T/A NIGHTINGALE COACHES.
Children and Young Peoples Services,Head of Education and Skills,Transport,230034,Contract Hire,11/01/2023,4087601-SM,706.32,GARY JACKSON PRIVATE HIRE.
Children and Young Peoples Services,Head of Education and Skills,Transport,230003,Contract Hire,11/01/2023,4087602-6123,"3,891.98",GEM TRAVEL.
Neighbourhoods and Climate Change,Environmental Services,Transport,230005,Contract Hire,11/01/2023,4087610-INV00234056,"3,608.00",GO PLANT FLEET SERVICES LTD.*
Neighbourhoods and Climate Change,Environmental Services,Transport,230005,Contract Hire,11/01/2023,4087610-INV00244404,"3,608.00",GO PLANT FLEET SERVICES LTD.*
Children and Young Peoples Services,Head of Education and Skills,Transport,230006,Contract Hire,11/01/2023,4087623-SI-60,"2,100.00",HEPWORTHS TRAVEL.
Children and Young Peoples Services,Head of Education and Skills,Transport,230008,Contract Hire,11/01/2023,4087623-SI-61,"1,963.50",HEPWORTHS TRAVEL.
Children and Young Peoples Services,Head of Education and Skills,Transport,230007,Contract Hire,11/01/2023,4087623-SI-62,"1,371.72",HEPWORTHS TRAVEL.
Children and Young Peoples Services,Head of Education and Skills,Transport,230003,Contract Hire,11/01/2023,4087623-SI-63,"2,240.00",HEPWORTHS TRAVEL.
Children and Young Peoples Services,Head of Education and Skills,Transport,230007,Contract Hire,11/01/2023,4087624-22292-3042,"3,836.40",HODGSONS COACH OPERATORS LTD.
Children and Young Peoples Services,Head of Education and Skills,Transport,230007,Contract Hire,11/01/2023,4087624-22292-3044,"3,622.20",HODGSONS COACH OPERATORS LTD.
Children and Young Peoples Services,Head of Education and Skills,Transport,230007,Contract Hire,11/01/2023,4087624-22293-3042,"2,685.48",HODGSONS COACH OPERATORS LTD.
Children and Young Peoples Services,Head of Education and Skills,Transport,230007,Contract Hire,11/01/2023,4087624-22293-3044,"2,535.54",HODGSONS COACH OPERATORS LTD.
Children and Young Peoples Services,Head of Education and Skills,Transport,230007,Contract Hire,11/01/2023,4087624-22294-3047,"4,519.80",HODGSONS COACH OPERATORS LTD.
Children and Young Peoples Services,Head of Education and Skills,Transport,230007,Contract Hire,11/01/2023,4087624-22295-3047,"3,163.86",HODGSONS COACH OPERATORS LTD.
Children and Young Peoples Services,Head of Education and Skills,Transport,230007,Contract Hire,11/01/2023,4087624-22296,"5,345.00",HODGSONS COACH OPERATORS LTD.
Children and Young Peoples Services,Head of Education and Skills,Transport,230007,Contract Hire,11/01/2023,4087624-22297,"3,741.50",HODGSONS COACH OPERATORS LTD.
Children and Young Peoples Services,Head of Education and Skills,Transport,230007,Contract Hire,11/01/2023,4087624-22298,"4,743.27",HODGSONS COACH OPERATORS LTD.
Children and Young Peoples Services,Head of Education and Skills,Transport,230007,Contract Hire,11/01/2023,4087624-22299,"3,162.18",HODGSONS COACH OPERATORS LTD.
Children and Young Peoples Services,Head of Education and Skills,Transport,230007,Contract Hire,11/01/2023,4087624-22300,"2,333.20",HODGSONS COACH OPERATORS LTD.
Children and Young Peoples Services,Head of Education and Skills,Transport,230007,Contract Hire,11/01/2023,4087624-22301,"1,633.24",HODGSONS COACH OPERATORS LTD.
Children and Young Peoples Services,Head of Education and Skills,Transport,230007,Contract Hire,11/01/2023,4087624-22302,"2,430.54",HODGSONS COACH OPERATORS LTD.
Children and Young Peoples Services,Head of Education and Skills,Transport,230007,Contract Hire,11/01/2023,4087624-22303,"1,620.36",HODGSONS COACH OPERATORS LTD.
Children and Young Peoples Services,Head of Education and Skills,Transport,230007,Contract Hire,11/01/2023,4087624-22304,"3,094.80",HODGSONS COACH OPERATORS LTD.
Children and Young Peoples Services,Head of Education and Skills,Transport,230007,Contract Hire,11/01/2023,4087624-22305,"2,166.36",HODGSONS COACH OPERATORS LTD.
Children and Young Peoples Services,Head of Education and Skills,Transport,230007,Contract Hire,11/01/2023,4087624-22306,"2,224.95",HODGSONS COACH OPERATORS LTD.
Children and Young Peoples Services,Head of Education and Skills,Transport,230007,Contract Hire,11/01/2023,4087624-22307,"1,483.30",HODGSONS COACH OPERATORS LTD.
Children and Young Peoples Services,Head of Education and Skills,Transport,230007,Contract Hire,11/01/2023,4087624-22308,"1,221.22",HODGSONS COACH OPERATORS LTD.
Children and Young Peoples Services,Head of Education and Skills,Transport,230007,Contract Hire,11/01/2023,4087624-22309,777.14,HODGSONS COACH OPERATORS LTD.
Children and Young Peoples Services,Head of Education and Skills,Transport,230007,Contract Hire,11/01/2023,4087624-22310,820.16,HODGSONS COACH OPERATORS LTD.
Children and Young Peoples Services,Head of Education and Skills,Transport,230007,Contract Hire,11/01/2023,4087624-22312,"2,760.34",HODGSONS COACH OPERATORS LTD.
Children and Young Peoples Services,Head of Education and Skills,Transport,230007,Contract Hire,11/01/2023,4087624-22313,"1,756.58",HODGSONS COACH OPERATORS LTD.
Children and Young Peoples Services,Head of Education and Skills,Transport,230007,Contract Hire,11/01/2023,4087624-22314,"1,529.00",HODGSONS COACH OPERATORS LTD.
Children and Young Peoples Services,Head of Education and Skills,Transport,230007,Contract Hire,11/01/2023,4087624-22315,834.00,HODGSONS COACH OPERATORS LTD.
Children and Young Peoples Services,Head of Education and Skills,Transport,230007,Contract Hire,11/01/2023,4087624-22366,"1,316.04",HODGSONS COACH OPERATORS LTD.
Children and Young Peoples Services,Head of Education and Skills,Transport,230007,Contract Hire,11/01/2023,4087624-22367,837.48,HODGSONS COACH OPERATORS LTD.
Children and Young Peoples Services,Head of Education and Skills,Transport,230007,Contract Hire,11/01/2023,4087624-22368,"1,520.82",HODGSONS COACH OPERATORS LTD.
Children and Young Peoples Services,Head of Education and Skills,Transport,230007,Contract Hire,11/01/2023,4087624-22370,"1,138.76",HODGSONS COACH OPERATORS LTD.
Children and Young Peoples Services,Head of Education and Skills,Transport,230007,Contract Hire,11/01/2023,4087624-22371,"1,488.96",HODGSONS COACH OPERATORS LTD.
Children and Young Peoples Services,Head of Education and Skills,Transport,230007,Contract Hire,11/01/2023,4087624-22373,"1,216.60",HODGSONS COACH OPERATORS LTD.
Children and Young Peoples Services,Head of Education and Skills,Transport,230007,Contract Hire,11/01/2023,4087624-22374,774.20,HODGSONS COACH OPERATORS LTD.
Children and Young Peoples Services,Head of Education and Skills,Transport,230007,Contract Hire,11/01/2023,4087624-22375,"3,509.00",HODGSONS COACH OPERATORS LTD.
Children and Young Peoples Services,Head of Education and Skills,Transport,230007,Contract Hire,11/01/2023,4087624-22376,"2,392.50",HODGSONS COACH OPERATORS LTD.
Children and Young Peoples Services,Head of Education and Skills,Transport,230007,Contract Hire,11/01/2023,4087624-22377,"1,128.38",HODGSONS COACH OPERATORS LTD.
Children and Young Peoples Services,Head of Education and Skills,Transport,230007,Contract Hire,11/01/2023,4087624-22378,960.32,HODGSONS COACH OPERATORS LTD.
Children and Young Peoples Services,Head of Education and Skills,Transport,230007,Contract Hire,11/01/2023,4087624-22381,"1,200.40",HODGSONS COACH OPERATORS LTD.
Children and Young Peoples Services,Head of Education and Skills,Transport,230007,Contract Hire,11/01/2023,4087624-22382,840.28,HODGSONS COACH OPERATORS LTD.
Children and Young Peoples Services,Head of Education and Skills,Transport,230034,Contract Hire,11/01/2023,4087673-DEC22-5463,"1,483.44",LARS CARS LTD T/A STREETCARS.
Adult and Health Services,Head of Adults,Transport,230005,Contract Hire,11/01/2023,4087675-4003,"2,140.00",LD TAXIS.
Children and Young Peoples Services,Head of Education and Skills,Transport,230034,Contract Hire,11/01/2023,4087675-4004,"1,242.36",LD TAXIS.
Children and Young Peoples Services,Head of Education and Skills,Transport,230007,Contract Hire,11/01/2023,4087698-0002-DEC22,840.00,MGD TAXIS.
Children and Young Peoples Services,Head of Education and Skills,Transport,230008,Contract Hire,11/01/2023,4087708-20220008,"1,250.00",MOSSOPS LUXURY TRAVEL.
Neighbourhoods and Climate Change,Environmental Services,Transport,230005,Contract Hire,11/01/2023,4087738-IW08529243,599.97,NORTHGATE VEHICLE HIRE LTD.
Neighbourhoods and Climate Change,Environmental Services,Transport,230005,Contract Hire,11/01/2023,4087738-SL07515392INV,586.88,NORTHGATE VEHICLE HIRE LTD.
Children and Young Peoples Services,Head of Education and Skills,Transport,230008,Contract Hire,11/01/2023,4087754-DCC401,"2,127.22",PAUL`S TAXIS..
Children and Young Peoples Services,Head of Education and Skills,Transport,230007,Contract Hire,11/01/2023,4087778-04-DEC22,"1,149.68",RAYNERS COACHES.
Children and Young Peoples Services,Head of Education and Skills,Transport,230007,Contract Hire,11/01/2023,4087778-04-DEC22-3161,"1,800.00",RAYNERS COACHES.
Children and Young Peoples Services,Head of Education and Skills,Transport,230007,Contract Hire,11/01/2023,4087778-04-DEC22-4005,"3,128.02",RAYNERS COACHES.
Children and Young Peoples Services,Head of Education and Skills,Transport,230007,Contract Hire,11/01/2023,4087778-04-DEC22-4006,"2,212.00",RAYNERS COACHES.
Children and Young Peoples Services,Head of Education and Skills,Transport,230007,Contract Hire,11/01/2023,4087778-04-DEC22-4062,"1,117.20",RAYNERS COACHES.
Children and Young Peoples Services,Head of Education and Skills,Transport,230008,Contract Hire,11/01/2023,4087778-04-DEC22-M007,"1,990.04",RAYNERS COACHES.
Adult and Health Services,Head of Adults,Transport,230005,Contract Hire,11/01/2023,4087793-SED112/45,"1,509.15",S & S TRAVEL LTD.
Children and Young Peoples Services,Head of Education and Skills,Transport,230008,Contract Hire,11/01/2023,4087819-07950,"2,465.00",STANLEY TRAVEL (NORTH EAST) LTD.
Children and Young Peoples Services,Head of Education and Skills,Transport,230006,Contract Hire,11/01/2023,4087823-DEC98/STL22,"1,560.00",STL CABS LTD.
Children and Young Peoples Services,Head of Education and Skills,Transport,230008,Contract Hire,11/01/2023,4087831-B1150,"1,469.39",TALBOTS TRAVEL LTD.
Children and Young Peoples Services,Head of Education and Skills,Transport,230008,Contract Hire,11/01/2023,4087831-B1151,"1,479.39",TALBOTS TRAVEL LTD.
Children and Young Peoples Services,Head of Education and Skills,Transport,230012,Contract Hire,11/01/2023,4087831-B1152,"1,087.80",TALBOTS TRAVEL LTD.
Adult and Health Services,Head of Adults,Transport,230005,Contract Hire,11/01/2023,4087840-247,748.00,THE TAXI COMPANY (MURTON) LTD.
Children and Young Peoples Services,Head of Education and Skills,Transport,230010,Contract Hire,11/01/2023,4087868-1222-B,"2,943.44",WEST AUCKLAND TOWN TRAVEL (WATT).
Children and Young Peoples Services,Head of Education and Skills,Transport,230034,Contract Hire,12/01/2023,4087878-91898,"3,005.86",24X7LTD.
Children and Young Peoples Services,Head of Education and Skills,Transport,230006,Contract Hire,12/01/2023,4087879-DECEMBER04-F141,"1,600.00",A & P TAXIS.
Children and Young Peoples Services,Head of Education and Skills,Transport,230008,Contract Hire,12/01/2023,4087882-1222/50,985.40,AABAT TAXIS.
Children and Young Peoples Services,Head of Education and Skills,Transport,230007,Contract Hire,12/01/2023,4087889-377,"3,280.80",ALANS TAXIS BARNARD CASTLE.
Children and Young Peoples Services,Head of Education and Skills,Transport,230007,Contract Hire,12/01/2023,4087909-1283-DEC22,"1,054.90",BIG MAMA`S TAXI.
Children and Young Peoples Services,Head of Education and Skills,Transport,230006,Contract Hire,12/01/2023,4087928-1953,"3,477.80",CHEVRON TAXIS LTD.
Children and Young Peoples Services,Head of Education and Skills,Transport,230006,Contract Hire,12/01/2023,4087928-2046,"2,242.00",CHEVRON TAXIS LTD.
Children and Young Peoples Services,Head of Education and Skills,Transport,230006,Contract Hire,12/01/2023,4087928-2067,"1,195.00",CHEVRON TAXIS LTD.
Adult and Health Services,Head of Adults,Transport,230005,Contract Hire,12/01/2023,4087936-99,900.00,CLOVER TAXIS.
Children and Young Peoples Services,Head of Education and Skills,Transport,230010,Contract Hire,12/01/2023,4087948-115029,"2,401.60",CROFT BUSINESS SERVICES LTD T/A CROFT TRAVEL.
Children and Young Peoples Services,Head of Education and Skills,Transport,230016,Contract Hire,12/01/2023,4087948-115034,"1,725.68",CROFT BUSINESS SERVICES LTD T/A CROFT TRAVEL.
Adult and Health Services,Head of Adults,Transport,230005,Contract Hire,12/01/2023,4087986-103235,"1,788.00",G & P JOHNSON LTD T/A NIGHTINGALE COACHES.
Children and Young Peoples Services,Head of Education and Skills,Transport,230007,Contract Hire,12/01/2023,4088017-6526,"1,109.79",J YOUNG T/A VIP TAXIS.
Children and Young Peoples Services,Head of Education and Skills,Transport,230006,Contract Hire,12/01/2023,4088017-6528-22,804.00,J YOUNG T/A VIP TAXIS.
Children and Young Peoples Services,Head of Education and Skills,Transport,230008,Contract Hire,12/01/2023,4088043-DEC22-N064,"1,841.98",LARS CARS LTD T/A STREETCARS.
Children and Young Peoples Services,Head of Education and Skills,Transport,230006,Contract Hire,12/01/2023,4088044-3097,"1,035.00",LD TAXIS.
Children and Young Peoples Services,Head of Education and Skills,Transport,230008,Contract Hire,12/01/2023,4088112-DCC402,"3,319.25",PAUL`S TAXIS..
Children and Young Peoples Services,Head of Education and Skills,Transport,230007,Contract Hire,12/01/2023,4088155-230101,"1,766.48",SHOTTON PRIVATE HIRE.
Adult and Health Services,Head of Adults,Transport,230005,Contract Hire,12/01/2023,4088165-07938,764.62,STANLEY TRAVEL (NORTH EAST) LTD.
Children and Young Peoples Services,Head of Education and Skills,Transport,230003,Contract Hire,12/01/2023,4088165-61357,"2,686.34",STANLEY TRAVEL (NORTH EAST) LTD.
Children and Young Peoples Services,Head of Education and Skills,Transport,230007,Contract Hire,12/01/2023,4088210-52-DEC22,932.55,WALTONS TAXIS.
Children and Young Peoples Services,Head of Education and Skills,Transport,230007,Contract Hire,12/01/2023,4088214-1336-22,"1,106.00",WAYNE`S TAXIS.
Children and Young Peoples Services,Head of Education and Skills,Transport,230008,Contract Hire,12/01/2023,4088214-1337,"1,378.26",WAYNE`S TAXIS.
Adult and Health Services,Head of Adults,Transport,230005,Contract Hire,12/01/2023,4088214-1338,"1,912.52",WAYNE`S TAXIS.
Adult and Health Services,Head of Adults,Transport,230005,Contract Hire,12/01/2023,4088214-1339-22,951.20,WAYNE`S TAXIS.
Children and Young Peoples Services,Head of Education and Skills,Transport,230007,Contract Hire,16/01/2023,4088560-1222/SG,"1,372.80",AABAT TAXIS.
Children and Young Peoples Services,Head of Education and Skills,Transport,230007,Contract Hire,16/01/2023,4088567-380,791.28,ALANS TAXIS BARNARD CASTLE.
Children and Young Peoples Services,Head of Education and Skills,Transport,230007,Contract Hire,16/01/2023,4088567-381,"1,107.68",ALANS TAXIS BARNARD CASTLE.
Children and Young Peoples Services,Head of Education and Skills,Transport,230007,Contract Hire,16/01/2023,4088567-382,"1,690.64",ALANS TAXIS BARNARD CASTLE.
Children and Young Peoples Services,Head of Education and Skills,Transport,230007,Contract Hire,16/01/2023,4088567-384,"1,566.60",ALANS TAXIS BARNARD CASTLE.
Children and Young Peoples Services,Head of Education and Skills,Transport,230007,Contract Hire,16/01/2023,4088567-385,"2,200.00",ALANS TAXIS BARNARD CASTLE.
Children and Young Peoples Services,Head of Education and Skills,Transport,230007,Contract Hire,16/01/2023,4088589-44720,"1,443.05",BLUELINE SOUTH INCORPORATING NAVIGATION TAXIS T/A BLUELINE TAXIS.
Children and Young Peoples Services,Head of Education and Skills,Transport,230008,Contract Hire,16/01/2023,4088654-103236,851.28,G & P JOHNSON LTD T/A NIGHTINGALE COACHES.
Children and Young Peoples Services,Head of Education and Skills,Transport,230008,Contract Hire,16/01/2023,4088654-103237,"1,560.68",G & P JOHNSON LTD T/A NIGHTINGALE COACHES.
Children and Young Peoples Services,Head of Education and Skills,Transport,230005,Contract Hire,16/01/2023,4088836-18543,"1,099.00",WEARDALE MOTOR SERVICES LTD.
Adult and Health Services,Head of Adults,Transport,230005,Contract Hire,18/01/2023,4090186-I-23-6184749,"2,896.40",HOME GROUP LTD.
Children and Young Peoples Services,Head of Education and Skills,Transport,230007,Contract Hire,18/01/2023,4090844-0688,631.12,BIRDS TAXIS LTD.
Neighbourhoods and Climate Change,Environmental Services,Transport,230005,Contract Hire,18/01/2023,4090901-8193676,570.53,ENTERPRISE FLEX-E-RENT T/A BURNT TREE GROUP LTD.
Children and Young Peoples Services,Head of Education and Skills,Transport,230007,Contract Hire,18/01/2023,4090940-3000,733.60,KINGSWAY CABS LTD.
Children and Young Peoples Services,Head of Education and Skills,Transport,230007,Contract Hire,18/01/2023,4090940-3001,"1,090.20",KINGSWAY CABS LTD.
Children and Young Peoples Services,Head of Education and Skills,Transport,230007,Contract Hire,18/01/2023,4090940-3003,"1,120.00",KINGSWAY CABS LTD.
Children and Young Peoples Services,Head of Education and Skills,Transport,230007,Contract Hire,18/01/2023,4090940-3004,"2,240.00",KINGSWAY CABS LTD.
Children and Young Peoples Services,Head of Education and Skills,Transport,230008,Contract Hire,18/01/2023,4090940-3008,"2,847.68",KINGSWAY CABS LTD.
Children and Young Peoples Services,Head of Education and Skills,Transport,230008,Contract Hire,18/01/2023,4090940-3010,"1,684.36",KINGSWAY CABS LTD.
Children and Young Peoples Services,Head of Education and Skills,Transport,230009,Contract Hire,18/01/2023,4090940-3013,"1,710.00",KINGSWAY CABS LTD.
Children and Young Peoples Services,Head of Education and Skills,Transport,230006,Contract Hire,18/01/2023,4090940-3015,"1,600.00",KINGSWAY CABS LTD.
Children and Young Peoples Services,Head of Education and Skills,Transport,230008,Contract Hire,18/01/2023,4090940-3042,"1,740.00",KINGSWAY CABS LTD.
Children and Young Peoples Services,Head of Education and Skills,Transport,230008,Contract Hire,18/01/2023,4090940-3044,"1,279.80",KINGSWAY CABS LTD.
Children and Young Peoples Services,Head of Education and Skills,Transport,230008,Contract Hire,18/01/2023,4090940-3046,"1,330.00",KINGSWAY CABS LTD.
Children and Young Peoples Services,Head of Education and Skills,Transport,230008,Contract Hire,18/01/2023,4090940-3048,"3,080.00",KINGSWAY CABS LTD.
Children and Young Peoples Services,Head of Education and Skills,Transport,230008,Contract Hire,18/01/2023,4090940-3049,"2,338.98",KINGSWAY CABS LTD.
Children and Young Peoples Services,Head of Education and Skills,Transport,230008,Contract Hire,18/01/2023,4090994-SI-22111,"2,754.72",RAPID MINIBUSES.
Children and Young Peoples Services,Head of Education and Skills,Transport,230008,Contract Hire,18/01/2023,4090994-SI-22112,"1,847.72",RAPID MINIBUSES.
Adult and Health Services,Head of Adults,Transport,230005,Contract Hire,18/01/2023,4090994-SI-22116,"1,600.00",RAPID MINIBUSES.
Adult and Health Services,Head of Adults,Transport,230005,Contract Hire,18/01/2023,4090994-SI-22117,"2,657.80",RAPID MINIBUSES.
Children and Young Peoples Services,Head of Education and Skills,Transport,230003,Contract Hire,18/01/2023,4091018-496479-4021,"5,409.95",STAGECOACH SERVICES LTD.
Children and Young Peoples Services,Head of Education and Skills,Transport,230003,Contract Hire,18/01/2023,4091018-496479-5045,"5,279.27",STAGECOACH SERVICES LTD.
Children and Young Peoples Services,Head of Education and Skills,Transport,230003,Contract Hire,18/01/2023,4091018-498567-4021,"6,487.36",STAGECOACH SERVICES LTD.
Children and Young Peoples Services,Head of Education and Skills,Transport,230003,Contract Hire,18/01/2023,4091018-498567-5045,"5,865.86",STAGECOACH SERVICES LTD.
Children and Young Peoples Services,Head of Education and Skills,Transport,230010,Contract Hire,18/01/2023,4091020-07860,"2,903.42",STANLEY TRAVEL (NORTH EAST) LTD.
Children and Young Peoples Services,Head of Education and Skills,Transport,230003,Contract Hire,18/01/2023,4091020-60860,"3,160.40",STANLEY TRAVEL (NORTH EAST) LTD.
Children and Young Peoples Services,Head of Education and Skills,Transport,230003,Contract Hire,18/01/2023,4091020-61356,"3,934.31",STANLEY TRAVEL (NORTH EAST) LTD.
Neighbourhoods and Climate Change,Environmental Services,Transport,230005,Contract Hire,19/01/2023,4091060-I2234201,"1,328.66",ACL HIRE LTD.
Neighbourhoods and Climate Change,Environmental Services,Transport,230005,Contract Hire,19/01/2023,4091060-I2234202,"1,328.66",ACL HIRE LTD.
Children and Young Peoples Services,Head of Education and Skills,Transport,230007,Contract Hire,19/01/2023,4091110-44754,910.67,BLUELINE SOUTH INCORPORATING NAVIGATION TAXIS T/A BLUELINE TAXIS.
Neighbourhoods and Climate Change,Environmental Services,Transport,230005,Contract Hire,19/01/2023,4091166-22916,"4,025.66",CP DAVIDSON & SONS LTD.
Children and Young Peoples Services,Head of Education and Skills,Transport,230008,Contract Hire,19/01/2023,4091168-115041,"1,486.40",CROFT BUSINESS SERVICES LTD T/A CROFT TRAVEL.
Neighbourhoods and Climate Change,Environmental Services,Transport,230005,Contract Hire,19/01/2023,4091185-068416,"3,069.00",DAWSONGROUP ENVIRONMENTAL MUNICIAPL CIVIL LTD (EMC).
Neighbourhoods and Climate Change,Environmental Services,Transport,230005,Contract Hire,19/01/2023,4091185-068417,"2,673.00",DAWSONGROUP ENVIRONMENTAL MUNICIAPL CIVIL LTD (EMC).
Neighbourhoods and Climate Change,Environmental Services,Transport,230005,Contract Hire,19/01/2023,4091185-068418,"3,069.00",DAWSONGROUP ENVIRONMENTAL MUNICIAPL CIVIL LTD (EMC).
Children and Young Peoples Services,Head of Childrens Social Care,Transport,230005,Contract Hire,19/01/2023,4091191-DH2251C,672.00,DH2 CABS.
Neighbourhoods and Climate Change,Environmental Services,Transport,230005,Contract Hire,19/01/2023,4091218-13001429123,"1,574.26",ENTERPRISE FLEX-E-RENT T/A BURNT TREE GROUP LTD.
Children and Young Peoples Services,Head of Education and Skills,Transport,230008,Contract Hire,19/01/2023,4091252-HT686,"1,393.04",HARRY`S TAXI`S.
Children and Young Peoples Services,Head of Education and Skills,Transport,230006,Contract Hire,19/01/2023,4091322-3007,"3,120.00",KINGSWAY CABS LTD.
Children and Young Peoples Services,Head of Education and Skills,Transport,230008,Contract Hire,19/01/2023,4091322-3045,"2,289.00",KINGSWAY CABS LTD.
Children and Young Peoples Services,Head of Education and Skills,Transport,230010,Contract Hire,19/01/2023,4091360-INV12/2022-11,"2,263.72",MARK & JOHN CHISHOLM T/A (CHEVRON).
Neighbourhoods and Climate Change,Environmental Services,Transport,230005,Contract Hire,19/01/2023,4091508-158901,"1,324.01",ND BROWN LTD.
Neighbourhoods and Climate Change,Environmental Services,Transport,230005,Contract Hire,19/01/2023,4091508-158902,"3,100.00",ND BROWN LTD.
Neighbourhoods and Climate Change,Environmental Services,Transport,230005,Contract Hire,19/01/2023,4091508-158903,"2,192.01",ND BROWN LTD.
Neighbourhoods and Climate Change,Environmental Services,Transport,230005,Contract Hire,19/01/2023,4091519-SL07523160INV,"1,052.24",NORTHGATE VEHICLE HIRE LTD.
Neighbourhoods and Climate Change,Environmental Services,Transport,230005,Contract Hire,19/01/2023,4091519-SL07531694INV,521.64,NORTHGATE VEHICLE HIRE LTD.
Neighbourhoods and Climate Change,Environmental Services,Transport,230005,Contract Hire,19/01/2023,4091519-SL07535124INV,787.60,NORTHGATE VEHICLE HIRE LTD.
Children and Young Peoples Services,Head of Childrens Social Care,Transport,230005,Contract Hire,19/01/2023,4091546-SI-2156,970.00,PTL TAXIS LTD.
Children and Young Peoples Services,Head of Education and Skills,Transport,230007,Contract Hire,19/01/2023,4091565-SKS2223-018,"1,564.20",SAMUEL KINGS SCHOOL.
Children and Young Peoples Services,Head of Education and Skills,Transport,230007,Contract Hire,19/01/2023,4091589-3447,"2,001.88",SIMONS TAXIS.
Children and Young Peoples Services,Head of Education and Skills,Transport,230031,Contract Hire,19/01/2023,4091605-61366,"1,939.97",STANLEY TRAVEL (NORTH EAST) LTD.
Children and Young Peoples Services,Head of Education and Skills,Transport,230035,Contract Hire,19/01/2023,4091606-4-1198,974.07,STANLEY TRAVEL (NORTH EAST) LTD.
Children and Young Peoples Services,Head of Education and Skills,Transport,230035,Contract Hire,19/01/2023,4091606-5-1198,"1,123.95",STANLEY TRAVEL (NORTH EAST) LTD.
Children and Young Peoples Services,Head of Education and Skills,Transport,230007,Contract Hire,19/01/2023,4091606-5-1212,515.25,STANLEY TRAVEL (NORTH EAST) LTD.
Children and Young Peoples Services,Head of Education and Skills,Transport,230035,Contract Hire,19/01/2023,4091606-6-1198,"1,648.46",STANLEY TRAVEL (NORTH EAST) LTD.
Children and Young Peoples Services,Head of Education and Skills,Transport,230007,Contract Hire,19/01/2023,4091606-6-1212,755.70,STANLEY TRAVEL (NORTH EAST) LTD.
Children and Young Peoples Services,Head of Education and Skills,Transport,230031,Contract Hire,19/01/2023,4091606-61154,"3,089.96",STANLEY TRAVEL (NORTH EAST) LTD.
Children and Young Peoples Services,Head of Education and Skills,Transport,230035,Contract Hire,19/01/2023,4091606-7-1198,"1,173.87",STANLEY TRAVEL (NORTH EAST) LTD.
Children and Young Peoples Services,Head of Education and Skills,Transport,230003,Contract Hire,19/01/2023,4091620-5030/39,"3,263.49",TED WILFORD COACHES.
Children and Young Peoples Services,Head of Education and Skills,Transport,230003,Contract Hire,19/01/2023,4091620-5300/19,"3,221.16",TED WILFORD COACHES.
Children and Young Peoples Services,Head of Childrens Social Care,Transport,230005,Contract Hire,20/01/2023,4091656-122239,"1,770.00",24/7 TAXI SERVICES (PETERLEE) LTD.
Children and Young Peoples Services,Head of Education and Skills,Transport,230034,Contract Hire,20/01/2023,4091657-88861A,"2,295.38",24X7LTD.
Children and Young Peoples Services,Head of Education and Skills,Transport,230006,Contract Hire,20/01/2023,4091658-DECEMBER03-F235,"2,250.00",A & P TAXIS.
Children and Young Peoples Services,Head of Childrens Social Care,Transport,230005,Contract Hire,20/01/2023,4091746-115016,572.00,CROFT BUSINESS SERVICES LTD T/A CROFT TRAVEL.
Children and Young Peoples Services,Head of Childrens Social Care,Transport,230005,Contract Hire,20/01/2023,4091746-115017,794.64,CROFT BUSINESS SERVICES LTD T/A CROFT TRAVEL.
Children and Young Peoples Services,Head of Childrens Social Care,Transport,230005,Contract Hire,20/01/2023,4091746-115109,529.76,CROFT BUSINESS SERVICES LTD T/A CROFT TRAVEL.
Children and Young Peoples Services,Head of Childrens Social Care,Transport,230005,Contract Hire,20/01/2023,4091746-115133,503.50,CROFT BUSINESS SERVICES LTD T/A CROFT TRAVEL.
Children and Young Peoples Services,Head of Childrens Social Care,Transport,230005,Contract Hire,20/01/2023,4091746-115138,883.20,CROFT BUSINESS SERVICES LTD T/A CROFT TRAVEL.
Children and Young Peoples Services,Head of Childrens Social Care,Transport,230005,Contract Hire,20/01/2023,4091746-115139,"1,504.58",CROFT BUSINESS SERVICES LTD T/A CROFT TRAVEL.
Children and Young Peoples Services,Head of Education and Skills,Transport,230008,Contract Hire,20/01/2023,4091779-103237-NOV22,"1,233.44",G & P JOHNSON LTD T/A NIGHTINGALE COACHES.
Children and Young Peoples Services,Head of Education and Skills,Transport,230008,Contract Hire,20/01/2023,4091779-103239,"2,809.84",G & P JOHNSON LTD T/A NIGHTINGALE COACHES.
Children and Young Peoples Services,Head of Education and Skills,Transport,230008,Contract Hire,20/01/2023,4091779-103240,"1,532.64",G & P JOHNSON LTD T/A NIGHTINGALE COACHES.
Children and Young Peoples Services,Head of Education and Skills,Transport,230008,Contract Hire,20/01/2023,4091779-103241,"1,923.90",G & P JOHNSON LTD T/A NIGHTINGALE COACHES.
Children and Young Peoples Services,Head of Education and Skills,Transport,230008,Contract Hire,20/01/2023,4091779-103242,"1,049.40",G & P JOHNSON LTD T/A NIGHTINGALE COACHES.
Children and Young Peoples Services,Head of Education and Skills,Transport,230008,Contract Hire,20/01/2023,4091779-103243,"1,410.48",G & P JOHNSON LTD T/A NIGHTINGALE COACHES.
Children and Young Peoples Services,Head of Education and Skills,Transport,230008,Contract Hire,20/01/2023,4091779-103244,"2,585.88",G & P JOHNSON LTD T/A NIGHTINGALE COACHES.
Children and Young Peoples Services,Head of Education and Skills,Transport,230008,Contract Hire,20/01/2023,4091779-103246,"1,239.36",G & P JOHNSON LTD T/A NIGHTINGALE COACHES.
Children and Young Peoples Services,Head of Education and Skills,Transport,230008,Contract Hire,20/01/2023,4091779-103247,"2,272.16",G & P JOHNSON LTD T/A NIGHTINGALE COACHES.
Children and Young Peoples Services,Head of Education and Skills,Transport,230006,Contract Hire,20/01/2023,4091779-103248,"1,890.00",G & P JOHNSON LTD T/A NIGHTINGALE COACHES.
Children and Young Peoples Services,Head of Education and Skills,Transport,230006,Contract Hire,20/01/2023,4091779-103249,"1,050.00",G & P JOHNSON LTD T/A NIGHTINGALE COACHES.
Children and Young Peoples Services,Head of Education and Skills,Transport,230008,Contract Hire,20/01/2023,4091779-103250,"2,227.56",G & P JOHNSON LTD T/A NIGHTINGALE COACHES.
Children and Young Peoples Services,Head of Education and Skills,Transport,230008,Contract Hire,20/01/2023,4091779-103251,"1,258.56",G & P JOHNSON LTD T/A NIGHTINGALE COACHES.
Children and Young Peoples Services,Head of Education and Skills,Transport,230016,Contract Hire,20/01/2023,4091779-103252,819.12,G & P JOHNSON LTD T/A NIGHTINGALE COACHES.
Children and Young Peoples Services,Head of Education and Skills,Transport,230016,Contract Hire,20/01/2023,4091779-103253,"1,501.72",G & P JOHNSON LTD T/A NIGHTINGALE COACHES.
Children and Young Peoples Services,Head of Education and Skills,Transport,230008,Contract Hire,20/01/2023,4091779-103254,"1,220.12",G & P JOHNSON LTD T/A NIGHTINGALE COACHES.
Children and Young Peoples Services,Head of Education and Skills,Transport,230008,Contract Hire,20/01/2023,4091779-103255,665.52,G & P JOHNSON LTD T/A NIGHTINGALE COACHES.
Children and Young Peoples Services,Head of Education and Skills,Transport,230008,Contract Hire,20/01/2023,4091779-103256,926.52,G & P JOHNSON LTD T/A NIGHTINGALE COACHES.
Children and Young Peoples Services,Head of Education and Skills,Transport,230008,Contract Hire,20/01/2023,4091779-103257,"1,789.82",G & P JOHNSON LTD T/A NIGHTINGALE COACHES.
Children and Young Peoples Services,Head of Education and Skills,Transport,230007,Contract Hire,20/01/2023,4091836-3002,"1,131.72",KINGSWAY CABS LTD.
Children and Young Peoples Services,Head of Education and Skills,Transport,230034,Contract Hire,20/01/2023,4091836-3005,"2,111.46",KINGSWAY CABS LTD.
Children and Young Peoples Services,Head of Education and Skills,Transport,230008,Contract Hire,20/01/2023,4091836-3006,"3,917.60",KINGSWAY CABS LTD.
Children and Young Peoples Services,Head of Education and Skills,Transport,230006,Contract Hire,20/01/2023,4091836-3009,"2,480.00",KINGSWAY CABS LTD.
Children and Young Peoples Services,Head of Education and Skills,Transport,230006,Contract Hire,20/01/2023,4091836-3014,"1,440.00",KINGSWAY CABS LTD.
Dedicated Schools Grant BG0015,DSG High Needs Block,Transport,230009,Contract Hire,20/01/2023,4091836-3016,556.18,KINGSWAY CABS LTD.
Children and Young Peoples Services,Head of Education and Skills,Transport,230008,Contract Hire,20/01/2023,4091836-3019,"2,990.00",KINGSWAY CABS LTD.
Children and Young Peoples Services,Head of Education and Skills,Transport,230008,Contract Hire,20/01/2023,4091836-3020,"2,625.28",KINGSWAY CABS LTD.
Children and Young Peoples Services,Head of Education and Skills,Transport,230008,Contract Hire,20/01/2023,4091836-3021,"2,340.00",KINGSWAY CABS LTD.
Children and Young Peoples Services,Head of Education and Skills,Transport,230008,Contract Hire,20/01/2023,4091836-3023,"1,967.94",KINGSWAY CABS LTD.
Children and Young Peoples Services,Head of Education and Skills,Transport,230008,Contract Hire,20/01/2023,4091836-3042-DEC22,"1,320.00",KINGSWAY CABS LTD.
Children and Young Peoples Services,Head of Education and Skills,Transport,230008,Contract Hire,20/01/2023,4091836-3047,"2,231.88",KINGSWAY CABS LTD.
Children and Young Peoples Services,Head of Education and Skills,Transport,230008,Contract Hire,20/01/2023,4091836-3050,"2,084.76",KINGSWAY CABS LTD.
Adult and Health Services,Head of Adults,Transport,230005,Contract Hire,20/01/2023,4091836-NCL001-DEC22,"2,690.80",KINGSWAY CABS LTD.
Children and Young Peoples Services,Head of Education and Skills,Transport,230016,Contract Hire,20/01/2023,4091899-ST16,"2,316.74",PRESTYS HACKNEY & PRIVATE HIRE TAXIS.
Children and Young Peoples Services,Head of Education and Skills,Transport,230008,Contract Hire,20/01/2023,4091899-TH13,648.86,PRESTYS HACKNEY & PRIVATE HIRE TAXIS.
Children and Young Peoples Services,Head of Education and Skills,Transport,230006,Contract Hire,20/01/2023,4091902-SI-2146,"2,068.62",PTL TAXIS LTD.
Children and Young Peoples Services,Head of Education and Skills,Transport,230008,Contract Hire,20/01/2023,4091902-SI-2152,"3,378.00",PTL TAXIS LTD.
Children and Young Peoples Services,Head of Education and Skills,Transport,230007,Contract Hire,20/01/2023,4091902-SI-2153,"1,370.88",PTL TAXIS LTD.
Children and Young Peoples Services,Head of Childrens Social Care,Transport,230005,Contract Hire,20/01/2023,4091902-SI-2157,695.00,PTL TAXIS LTD.
Children and Young Peoples Services,Head of Childrens Social Care,Transport,230005,Contract Hire,20/01/2023,4091902-SI-2161,516.00,PTL TAXIS LTD.
Children and Young Peoples Services,Head of Childrens Social Care,Transport,230005,Contract Hire,20/01/2023,4091902-SI-2169,970.00,PTL TAXIS LTD.
Children and Young Peoples Services,Head of Childrens Social Care,Transport,230005,Contract Hire,20/01/2023,4091902-SI-2170,785.50,PTL TAXIS LTD.
Children and Young Peoples Services,Head of Childrens Social Care,Transport,230005,Contract Hire,20/01/2023,4091902-SI-2171,553.50,PTL TAXIS LTD.
Children and Young Peoples Services,Head of Childrens Social Care,Transport,230005,Contract Hire,20/01/2023,4091902-SI-2172,516.00,PTL TAXIS LTD.
Children and Young Peoples Services,Head of Childrens Social Care,Transport,230005,Contract Hire,20/01/2023,4091902-SI-2178,720.00,PTL TAXIS LTD.
Children and Young Peoples Services,Head of Childrens Social Care,Transport,230005,Contract Hire,20/01/2023,4091937-DEC104/STL22,992.00,STL CABS LTD.
Children and Young Peoples Services,Head of Childrens Social Care,Transport,230005,Contract Hire,20/01/2023,4091937-DEC107/STL22,711.00,STL CABS LTD.
Children and Young Peoples Services,Head of Childrens Social Care,Transport,230005,Contract Hire,20/01/2023,4091937-DEC133/STL22,620.00,STL CABS LTD.
Children and Young Peoples Services,Head of Education and Skills,Transport,230007,Contract Hire,23/01/2023,4091986-383,"2,546.88",ALANS TAXIS BARNARD CASTLE.
Children and Young Peoples Services,Head of Education and Skills,Transport,230035,Contract Hire,23/01/2023,4092013-41017,"1,262.74",BLUELINE SOUTH INCORPORATING NAVIGATION TAXIS T/A BLUELINE TAXIS.
Children and Young Peoples Services,Head of Education and Skills,Transport,230034,Contract Hire,23/01/2023,4092013-43630,"2,216.37",BLUELINE SOUTH INCORPORATING NAVIGATION TAXIS T/A BLUELINE TAXIS.
Children and Young Peoples Services,Head of Education and Skills,Transport,230034,Contract Hire,23/01/2023,4092013-44732,"2,722.70",BLUELINE SOUTH INCORPORATING NAVIGATION TAXIS T/A BLUELINE TAXIS.
Children and Young Peoples Services,Head of Education and Skills,Transport,230007,Contract Hire,23/01/2023,4092013-44734,"1,132.97",BLUELINE SOUTH INCORPORATING NAVIGATION TAXIS T/A BLUELINE TAXIS.
Children and Young Peoples Services,Head of Education and Skills,Transport,230008,Contract Hire,23/01/2023,4092013-44745,"2,588.88",BLUELINE SOUTH INCORPORATING NAVIGATION TAXIS T/A BLUELINE TAXIS.
Children and Young Peoples Services,Head of Education and Skills,Transport,230008,Contract Hire,23/01/2023,4092013-44752,"1,267.50",BLUELINE SOUTH INCORPORATING NAVIGATION TAXIS T/A BLUELINE TAXIS.
Children and Young Peoples Services,Head of Education and Skills,Transport,230008,Contract Hire,23/01/2023,4092013-44755,"1,710.00",BLUELINE SOUTH INCORPORATING NAVIGATION TAXIS T/A BLUELINE TAXIS.
Adult and Health Services,Head of Adults,Transport,230005,Contract Hire,23/01/2023,4092013-44757,950.00,BLUELINE SOUTH INCORPORATING NAVIGATION TAXIS T/A BLUELINE TAXIS.
Neighbourhoods and Climate Change,Environmental Services,Transport,230005,Contract Hire,23/01/2023,4092067-678649,585.20,DAWSONGROUP VANS LTD.
Neighbourhoods and Climate Change,Environmental Services,Transport,230005,Contract Hire,23/01/2023,4092067-678651,588.00,DAWSONGROUP VANS LTD.
Neighbourhoods and Climate Change,Environmental Services,Transport,230005,Contract Hire,23/01/2023,4092067-678661,516.88,DAWSONGROUP VANS LTD.
Neighbourhoods and Climate Change,Environmental Services,Transport,230005,Contract Hire,23/01/2023,4092067-678662,525.84,DAWSONGROUP VANS LTD.
Adult and Health Services,Head of Adults,Transport,230005,Contract Hire,23/01/2023,4092225-SI-2149,658.00,PTL TAXIS LTD.
Adult and Health Services,Head of Adults,Transport,230005,Contract Hire,24/01/2023,4092895-INV-3777,"2,273.26",BYKARE SOLUTIONS LTD.
Neighbourhoods and Climate Change,Environmental Services,Transport,230005,Contract Hire,24/01/2023,4092962-8195473,761.67,ENTERPRISE FLEX-E-RENT T/A BURNT TREE GROUP LTD.
Neighbourhoods and Climate Change,Environmental Services,Transport,230005,Contract Hire,24/01/2023,4092962-8195475,572.88,ENTERPRISE FLEX-E-RENT T/A BURNT TREE GROUP LTD.
Neighbourhoods and Climate Change,Environmental Services,Transport,230005,Contract Hire,24/01/2023,4092962-8195481,608.53,ENTERPRISE FLEX-E-RENT T/A BURNT TREE GROUP LTD.
Neighbourhoods and Climate Change,Environmental Services,Transport,230005,Contract Hire,24/01/2023,4092962-8195482,"1,367.10",ENTERPRISE FLEX-E-RENT T/A BURNT TREE GROUP LTD.
Neighbourhoods and Climate Change,Environmental Services,Transport,230005,Contract Hire,24/01/2023,4092962-8195483,"1,367.10",ENTERPRISE FLEX-E-RENT T/A BURNT TREE GROUP LTD.
Neighbourhoods and Climate Change,Environmental Services,Transport,230005,Contract Hire,24/01/2023,4092962-8195484,"1,367.10",ENTERPRISE FLEX-E-RENT T/A BURNT TREE GROUP LTD.
Neighbourhoods and Climate Change,Environmental Services,Transport,230005,Contract Hire,24/01/2023,4092962-8195485,608.53,ENTERPRISE FLEX-E-RENT T/A BURNT TREE GROUP LTD.
Neighbourhoods and Climate Change,Environmental Services,Transport,230005,Contract Hire,24/01/2023,4092962-8195487,608.53,ENTERPRISE FLEX-E-RENT T/A BURNT TREE GROUP LTD.
Adult and Health Services,Head of Adults,Transport,230005,Contract Hire,25/01/2023,4093203-122222,898.15,24/7 TAXI SERVICES (PETERLEE) LTD.
Children and Young Peoples Services,Head of Education and Skills,Transport,230034,Contract Hire,25/01/2023,4093241-44785,"1,170.00",BLUELINE SOUTH INCORPORATING NAVIGATION TAXIS T/A BLUELINE TAXIS.
Children and Young Peoples Services,Head of Education and Skills,Transport,230031,Contract Hire,25/01/2023,4093327-37274,"2,574.00",JIM HUGHES COACHES LTD.
Children and Young Peoples Services,Head of Education and Skills,Transport,230031,Contract Hire,25/01/2023,4093419-ROXDCC289,"3,840.00",ROXBYS BUS HIRE.
Children and Young Peoples Services,Head of Education and Skills,Transport,230034,Contract Hire,25/01/2023,4093440-7-1247,682.50,STANLEY TRAVEL (NORTH EAST) LTD.
Children and Young Peoples Services,Head of Education and Skills,Transport,230010,Contract Hire,25/01/2023,4093440-7-BL003,845.32,STANLEY TRAVEL (NORTH EAST) LTD.
Children and Young Peoples Services,Head of Education and Skills,Transport,230006,Contract Hire,25/01/2023,4093440-7-F614,"1,008.00",STANLEY TRAVEL (NORTH EAST) LTD.
Children and Young Peoples Services,Head of Education and Skills,Transport,230008,Contract Hire,25/01/2023,4093440-7-N081,934.50,STANLEY TRAVEL (NORTH EAST) LTD.
Children and Young Peoples Services,Head of Education and Skills,Transport,230034,Contract Hire,25/01/2023,4093441-4-1247,633.75,STANLEY TRAVEL (NORTH EAST) LTD.
Children and Young Peoples Services,Head of Education and Skills,Transport,230010,Contract Hire,25/01/2023,4093441-4-BL003,784.92,STANLEY TRAVEL (NORTH EAST) LTD.
Children and Young Peoples Services,Head of Education and Skills,Transport,230006,Contract Hire,25/01/2023,4093441-4-F614,936.00,STANLEY TRAVEL (NORTH EAST) LTD.
Children and Young Peoples Services,Head of Education and Skills,Transport,230008,Contract Hire,25/01/2023,4093441-4-N081,867.75,STANLEY TRAVEL (NORTH EAST) LTD.
Children and Young Peoples Services,Head of Education and Skills,Transport,230034,Contract Hire,25/01/2023,4093441-5-1247,731.25,STANLEY TRAVEL (NORTH EAST) LTD.
Children and Young Peoples Services,Head of Education and Skills,Transport,230010,Contract Hire,25/01/2023,4093441-5-BL003,905.70,STANLEY TRAVEL (NORTH EAST) LTD.
Children and Young Peoples Services,Head of Education and Skills,Transport,230006,Contract Hire,25/01/2023,4093441-5-F614,"1,080.00",STANLEY TRAVEL (NORTH EAST) LTD.
Children and Young Peoples Services,Head of Education and Skills,Transport,230008,Contract Hire,25/01/2023,4093441-5-N081,"1,001.25",STANLEY TRAVEL (NORTH EAST) LTD.
Children and Young Peoples Services,Head of Education and Skills,Transport,230003,Contract Hire,25/01/2023,4093441-55636,"3,191.25",STANLEY TRAVEL (NORTH EAST) LTD.
Children and Young Peoples Services,Head of Education and Skills,Transport,230003,Contract Hire,25/01/2023,4093441-55638,"3,276.00",STANLEY TRAVEL (NORTH EAST) LTD.
Children and Young Peoples Services,Head of Education and Skills,Transport,230003,Contract Hire,25/01/2023,4093441-55647,"2,142.00",STANLEY TRAVEL (NORTH EAST) LTD.
Children and Young Peoples Services,Head of Education and Skills,Transport,230034,Contract Hire,25/01/2023,4093441-6-1247,"1,072.50",STANLEY TRAVEL (NORTH EAST) LTD.
Children and Young Peoples Services,Head of Education and Skills,Transport,230010,Contract Hire,25/01/2023,4093441-6-BL003,"1,328.36",STANLEY TRAVEL (NORTH EAST) LTD.
Children and Young Peoples Services,Head of Education and Skills,Transport,230006,Contract Hire,25/01/2023,4093441-6-F614,"1,584.00",STANLEY TRAVEL (NORTH EAST) LTD.
Children and Young Peoples Services,Head of Education and Skills,Transport,230008,Contract Hire,25/01/2023,4093441-6-N081,"1,468.50",STANLEY TRAVEL (NORTH EAST) LTD.
Children and Young Peoples Services,Head of Education and Skills,Transport,230007,Contract Hire,26/01/2023,4093518-44783,912.98,BLUELINE SOUTH INCORPORATING NAVIGATION TAXIS T/A BLUELINE TAXIS.
Children and Young Peoples Services,Head of Education and Skills,Transport,230008,Contract Hire,26/01/2023,4093518-44786,"1,568.00",BLUELINE SOUTH INCORPORATING NAVIGATION TAXIS T/A BLUELINE TAXIS.
Children and Young Peoples Services,Head of Education and Skills,Transport,230010,Contract Hire,26/01/2023,4093525-DEC22-BL030,"2,058.28",CARR`S CARS (TAXIS).
Neighbourhoods and Climate Change,Environmental Services,Transport,230005,Contract Hire,26/01/2023,4093565-13001446172,"1,175.16",ENTERPRISE FLEX-E-RENT T/A BURNT TREE GROUP LTD.
Neighbourhoods and Climate Change,Environmental Services,Transport,230005,Contract Hire,26/01/2023,4093565-8195493,572.88,ENTERPRISE FLEX-E-RENT T/A BURNT TREE GROUP LTD.
Neighbourhoods and Climate Change,Environmental Services,Transport,230005,Contract Hire,26/01/2023,4093565-8195494,608.53,ENTERPRISE FLEX-E-RENT T/A BURNT TREE GROUP LTD.
Neighbourhoods and Climate Change,Environmental Services,Transport,230005,Contract Hire,26/01/2023,4093565-8195502,572.88,ENTERPRISE FLEX-E-RENT T/A BURNT TREE GROUP LTD.
Neighbourhoods and Climate Change,Environmental Services,Transport,230005,Contract Hire,26/01/2023,4093565-8195516,761.67,ENTERPRISE FLEX-E-RENT T/A BURNT TREE GROUP LTD.
Neighbourhoods and Climate Change,Environmental Services,Transport,230005,Contract Hire,26/01/2023,4093565-8195517,"2,697.00",ENTERPRISE FLEX-E-RENT T/A BURNT TREE GROUP LTD.
Neighbourhoods and Climate Change,Environmental Services,Transport,230005,Contract Hire,26/01/2023,4093565-8195521,553.66,ENTERPRISE FLEX-E-RENT T/A BURNT TREE GROUP LTD.
Neighbourhoods and Climate Change,Environmental Services,Transport,230005,Contract Hire,26/01/2023,4093565-8195524,572.88,ENTERPRISE FLEX-E-RENT T/A BURNT TREE GROUP LTD.
Neighbourhoods and Climate Change,Environmental Services,Transport,230005,Contract Hire,26/01/2023,4093565-8195525,572.88,ENTERPRISE FLEX-E-RENT T/A BURNT TREE GROUP LTD.
Neighbourhoods and Climate Change,Environmental Services,Transport,230005,Contract Hire,26/01/2023,4093565-8195526,608.53,ENTERPRISE FLEX-E-RENT T/A BURNT TREE GROUP LTD.
Neighbourhoods and Climate Change,Environmental Services,Transport,230005,Contract Hire,26/01/2023,4093565-8195528,608.53,ENTERPRISE FLEX-E-RENT T/A BURNT TREE GROUP LTD.
Neighbourhoods and Climate Change,Environmental Services,Transport,230005,Contract Hire,26/01/2023,4093565-8195529,572.88,ENTERPRISE FLEX-E-RENT T/A BURNT TREE GROUP LTD.
Neighbourhoods and Climate Change,Environmental Services,Transport,230005,Contract Hire,26/01/2023,4093565-8195531,585.90,ENTERPRISE FLEX-E-RENT T/A BURNT TREE GROUP LTD.
Neighbourhoods and Climate Change,Environmental Services,Transport,230005,Contract Hire,26/01/2023,4093565-8195533,572.88,ENTERPRISE FLEX-E-RENT T/A BURNT TREE GROUP LTD.
Neighbourhoods and Climate Change,Environmental Services,Transport,230005,Contract Hire,26/01/2023,4093565-8195535,"1,367.10",ENTERPRISE FLEX-E-RENT T/A BURNT TREE GROUP LTD.
Neighbourhoods and Climate Change,Environmental Services,Transport,230005,Contract Hire,26/01/2023,4093565-8195537,608.53,ENTERPRISE FLEX-E-RENT T/A BURNT TREE GROUP LTD.
Neighbourhoods and Climate Change,Environmental Services,Transport,230005,Contract Hire,26/01/2023,4093565-8195539,"1,367.10",ENTERPRISE FLEX-E-RENT T/A BURNT TREE GROUP LTD.
Neighbourhoods and Climate Change,Environmental Services,Transport,230005,Contract Hire,26/01/2023,4093565-8195543,572.88,ENTERPRISE FLEX-E-RENT T/A BURNT TREE GROUP LTD.
Neighbourhoods and Climate Change,Environmental Services,Transport,230005,Contract Hire,26/01/2023,4093565-8195544,"1,367.10",ENTERPRISE FLEX-E-RENT T/A BURNT TREE GROUP LTD.
Neighbourhoods and Climate Change,Environmental Services,Transport,230005,Contract Hire,26/01/2023,4093565-8195545,572.88,ENTERPRISE FLEX-E-RENT T/A BURNT TREE GROUP LTD.
Neighbourhoods and Climate Change,Environmental Services,Transport,230005,Contract Hire,26/01/2023,4093565-8195549,"1,367.10",ENTERPRISE FLEX-E-RENT T/A BURNT TREE GROUP LTD.
Neighbourhoods and Climate Change,Environmental Services,Transport,230005,Contract Hire,26/01/2023,4093565-8195550,572.88,ENTERPRISE FLEX-E-RENT T/A BURNT TREE GROUP LTD.
Neighbourhoods and Climate Change,Environmental Services,Transport,230005,Contract Hire,26/01/2023,4093565-8195551,572.88,ENTERPRISE FLEX-E-RENT T/A BURNT TREE GROUP LTD.
Neighbourhoods and Climate Change,Environmental Services,Transport,230005,Contract Hire,26/01/2023,4093565-8195553,572.88,ENTERPRISE FLEX-E-RENT T/A BURNT TREE GROUP LTD.
Neighbourhoods and Climate Change,Environmental Services,Transport,230005,Contract Hire,26/01/2023,4093565-8195555,608.53,ENTERPRISE FLEX-E-RENT T/A BURNT TREE GROUP LTD.
Neighbourhoods and Climate Change,Environmental Services,Transport,230005,Contract Hire,26/01/2023,4093565-8195556,608.53,ENTERPRISE FLEX-E-RENT T/A BURNT TREE GROUP LTD.
Neighbourhoods and Climate Change,Environmental Services,Transport,230005,Contract Hire,26/01/2023,4093565-8195557,608.53,ENTERPRISE FLEX-E-RENT T/A BURNT TREE GROUP LTD.
Neighbourhoods and Climate Change,Environmental Services,Transport,230005,Contract Hire,26/01/2023,4093565-8195558,608.53,ENTERPRISE FLEX-E-RENT T/A BURNT TREE GROUP LTD.
Neighbourhoods and Climate Change,Environmental Services,Transport,230005,Contract Hire,26/01/2023,4093565-8195562,608.53,ENTERPRISE FLEX-E-RENT T/A BURNT TREE GROUP LTD.
Neighbourhoods and Climate Change,Environmental Services,Transport,230005,Contract Hire,26/01/2023,4093565-8195566,572.88,ENTERPRISE FLEX-E-RENT T/A BURNT TREE GROUP LTD.
Neighbourhoods and Climate Change,Environmental Services,Transport,230005,Contract Hire,26/01/2023,4093565-8195570,702.15,ENTERPRISE FLEX-E-RENT T/A BURNT TREE GROUP LTD.
Neighbourhoods and Climate Change,Environmental Services,Transport,230005,Contract Hire,26/01/2023,4093565-8195576,641.70,ENTERPRISE FLEX-E-RENT T/A BURNT TREE GROUP LTD.
Neighbourhoods and Climate Change,Environmental Services,Transport,230005,Contract Hire,26/01/2023,4093565-8195577,608.53,ENTERPRISE FLEX-E-RENT T/A BURNT TREE GROUP LTD.
Neighbourhoods and Climate Change,Environmental Services,Transport,230005,Contract Hire,26/01/2023,4093565-8195578,608.53,ENTERPRISE FLEX-E-RENT T/A BURNT TREE GROUP LTD.
Neighbourhoods and Climate Change,Environmental Services,Transport,230005,Contract Hire,26/01/2023,4093565-8195581,572.88,ENTERPRISE FLEX-E-RENT T/A BURNT TREE GROUP LTD.
Neighbourhoods and Climate Change,Environmental Services,Transport,230005,Contract Hire,26/01/2023,4093565-8195585,572.88,ENTERPRISE FLEX-E-RENT T/A BURNT TREE GROUP LTD.
Neighbourhoods and Climate Change,Environmental Services,Transport,230005,Contract Hire,26/01/2023,4093565-8195586,"1,367.10",ENTERPRISE FLEX-E-RENT T/A BURNT TREE GROUP LTD.
Neighbourhoods and Climate Change,Environmental Services,Transport,230005,Contract Hire,26/01/2023,4093565-8195587,608.53,ENTERPRISE FLEX-E-RENT T/A BURNT TREE GROUP LTD.
Neighbourhoods and Climate Change,Environmental Services,Transport,230005,Contract Hire,26/01/2023,4093565-8195588,595.20,ENTERPRISE FLEX-E-RENT T/A BURNT TREE GROUP LTD.
Neighbourhoods and Climate Change,Environmental Services,Transport,230005,Contract Hire,26/01/2023,4093565-8195589,761.71,ENTERPRISE FLEX-E-RENT T/A BURNT TREE GROUP LTD.
Neighbourhoods and Climate Change,Environmental Services,Transport,230005,Contract Hire,26/01/2023,4093565-8195590,608.53,ENTERPRISE FLEX-E-RENT T/A BURNT TREE GROUP LTD.
Neighbourhoods and Climate Change,Environmental Services,Transport,230005,Contract Hire,26/01/2023,4093565-8195593,572.88,ENTERPRISE FLEX-E-RENT T/A BURNT TREE GROUP LTD.
Neighbourhoods and Climate Change,Environmental Services,Transport,230005,Contract Hire,26/01/2023,4093565-8195594,608.53,ENTERPRISE FLEX-E-RENT T/A BURNT TREE GROUP LTD.
Neighbourhoods and Climate Change,Environmental Services,Transport,230005,Contract Hire,26/01/2023,4093565-8195595,641.70,ENTERPRISE FLEX-E-RENT T/A BURNT TREE GROUP LTD.
Neighbourhoods and Climate Change,Environmental Services,Transport,230005,Contract Hire,26/01/2023,4093565-8195596,572.88,ENTERPRISE FLEX-E-RENT T/A BURNT TREE GROUP LTD.
Neighbourhoods and Climate Change,Environmental Services,Transport,230005,Contract Hire,26/01/2023,4093565-8195597,608.53,ENTERPRISE FLEX-E-RENT T/A BURNT TREE GROUP LTD.
Neighbourhoods and Climate Change,Environmental Services,Transport,230005,Contract Hire,26/01/2023,4093565-8195598,608.53,ENTERPRISE FLEX-E-RENT T/A BURNT TREE GROUP LTD.
Neighbourhoods and Climate Change,Environmental Services,Transport,230005,Contract Hire,26/01/2023,4093565-8195599,572.88,ENTERPRISE FLEX-E-RENT T/A BURNT TREE GROUP LTD.
Neighbourhoods and Climate Change,Environmental Services,Transport,230005,Contract Hire,26/01/2023,4093565-8195600,761.67,ENTERPRISE FLEX-E-RENT T/A BURNT TREE GROUP LTD.
Neighbourhoods and Climate Change,Environmental Services,Transport,230005,Contract Hire,26/01/2023,4093565-8195602,608.53,ENTERPRISE FLEX-E-RENT T/A BURNT TREE GROUP LTD.
Neighbourhoods and Climate Change,Environmental Services,Transport,230005,Contract Hire,26/01/2023,4093565-8195604,882.88,ENTERPRISE FLEX-E-RENT T/A BURNT TREE GROUP LTD.
Neighbourhoods and Climate Change,Environmental Services,Transport,230005,Contract Hire,26/01/2023,4093565-8195606,572.88,ENTERPRISE FLEX-E-RENT T/A BURNT TREE GROUP LTD.
Neighbourhoods and Climate Change,Environmental Services,Transport,230005,Contract Hire,26/01/2023,4093565-8195613,"3,220.00",ENTERPRISE FLEX-E-RENT T/A BURNT TREE GROUP LTD.
Neighbourhoods and Climate Change,Environmental Services,Transport,230005,Contract Hire,26/01/2023,4093565-8195615,663.40,ENTERPRISE FLEX-E-RENT T/A BURNT TREE GROUP LTD.
Neighbourhoods and Climate Change,Environmental Services,Transport,230005,Contract Hire,26/01/2023,4093565-8195617,608.53,ENTERPRISE FLEX-E-RENT T/A BURNT TREE GROUP LTD.
Neighbourhoods and Climate Change,Environmental Services,Transport,230005,Contract Hire,26/01/2023,4093565-8195618,761.67,ENTERPRISE FLEX-E-RENT T/A BURNT TREE GROUP LTD.
Neighbourhoods and Climate Change,Environmental Services,Transport,230005,Contract Hire,26/01/2023,4093565-8195619,623.10,ENTERPRISE FLEX-E-RENT T/A BURNT TREE GROUP LTD.
Neighbourhoods and Climate Change,Environmental Services,Transport,230005,Contract Hire,26/01/2023,4093565-8195621,608.53,ENTERPRISE FLEX-E-RENT T/A BURNT TREE GROUP LTD.
Neighbourhoods and Climate Change,Environmental Services,Transport,230005,Contract Hire,26/01/2023,4093565-8195622,608.53,ENTERPRISE FLEX-E-RENT T/A BURNT TREE GROUP LTD.
Neighbourhoods and Climate Change,Environmental Services,Transport,230005,Contract Hire,26/01/2023,4093565-8195623,608.53,ENTERPRISE FLEX-E-RENT T/A BURNT TREE GROUP LTD.
Neighbourhoods and Climate Change,Environmental Services,Transport,230005,Contract Hire,26/01/2023,4093565-8195624,608.53,ENTERPRISE FLEX-E-RENT T/A BURNT TREE GROUP LTD.
Neighbourhoods and Climate Change,Environmental Services,Transport,230005,Contract Hire,26/01/2023,4093565-8195637,562.97,ENTERPRISE FLEX-E-RENT T/A BURNT TREE GROUP LTD.
Children and Young Peoples Services,Head of Education and Skills,Transport,230008,Contract Hire,26/01/2023,4093573-103107,"1,986.02",G & P JOHNSON LTD T/A NIGHTINGALE COACHES.
Children and Young Peoples Services,Head of Education and Skills,Transport,230008,Contract Hire,26/01/2023,4093573-103258,"1,046.78",G & P JOHNSON LTD T/A NIGHTINGALE COACHES.
Children and Young Peoples Services,Head of Education and Skills,Transport,230008,Contract Hire,26/01/2023,4093573-103259,"1,137.66",G & P JOHNSON LTD T/A NIGHTINGALE COACHES.
Children and Young Peoples Services,Head of Education and Skills,Transport,230008,Contract Hire,26/01/2023,4093573-103260,"1,365.84",G & P JOHNSON LTD T/A NIGHTINGALE COACHES.
Children and Young Peoples Services,Head of Education and Skills,Transport,230008,Contract Hire,26/01/2023,4093573-103261,"1,341.90",G & P JOHNSON LTD T/A NIGHTINGALE COACHES.
Children and Young Peoples Services,Head of Education and Skills,Transport,230008,Contract Hire,26/01/2023,4093573-103262,"2,965.06",G & P JOHNSON LTD T/A NIGHTINGALE COACHES.
Children and Young Peoples Services,Head of Education and Skills,Transport,230008,Contract Hire,26/01/2023,4093573-103263,"1,171.10",G & P JOHNSON LTD T/A NIGHTINGALE COACHES.
Children and Young Peoples Services,Head of Education and Skills,Transport,230008,Contract Hire,26/01/2023,4093573-103265,"1,923.90",G & P JOHNSON LTD T/A NIGHTINGALE COACHES.
Children and Young Peoples Services,Head of Education and Skills,Transport,230008,Contract Hire,26/01/2023,4093573-103266,"1,224.30",G & P JOHNSON LTD T/A NIGHTINGALE COACHES.
Children and Young Peoples Services,Head of Education and Skills,Transport,230008,Contract Hire,26/01/2023,4093573-103267,703.92,G & P JOHNSON LTD T/A NIGHTINGALE COACHES.
Children and Young Peoples Services,Head of Education and Skills,Transport,230008,Contract Hire,26/01/2023,4093573-103268,"1,290.52",G & P JOHNSON LTD T/A NIGHTINGALE COACHES.
Children and Young Peoples Services,Head of Education and Skills,Transport,230008,Contract Hire,26/01/2023,4093607-DEC20-A050,"1,106.14",KENNAS CABS.
Children and Young Peoples Services,Head of Education and Skills,Transport,230008,Contract Hire,26/01/2023,4093607-DEC22-E018,522.62,KENNAS CABS.
Children and Young Peoples Services,Head of Education and Skills,Transport,230006,Contract Hire,26/01/2023,4093663-SI-2145,"1,012.03",PTL TAXIS LTD.
Neighbourhoods and Climate Change,Environmental Services,Transport,230005,Contract Hire,30/01/2023,4094074-677091B,630.00,DAWSONGROUP VANS LTD.
Neighbourhoods and Climate Change,Environmental Services,Transport,230005,Contract Hire,30/01/2023,4094106-8195568,705.60,ENTERPRISE FLEX-E-RENT T/A BURNT TREE GROUP LTD.
Neighbourhoods and Climate Change,Environmental Services,Transport,230005,Contract Hire,30/01/2023,4094216-SL07433502INV,990.18,NORTHGATE VEHICLE HIRE LTD.
Neighbourhoods and Climate Change,Environmental Services,Transport,230005,Contract Hire,30/01/2023,4094216-SL07455882INV,567.00,NORTHGATE VEHICLE HIRE LTD.
Neighbourhoods and Climate Change,Environmental Services,Transport,230005,Contract Hire,30/01/2023,4094216-SL07468561INV,636.72,NORTHGATE VEHICLE HIRE LTD.
Neighbourhoods and Climate Change,Environmental Services,Transport,230005,Contract Hire,30/01/2023,4094216-SL07471283INV,974.68,NORTHGATE VEHICLE HIRE LTD.
Neighbourhoods and Climate Change,Environmental Services,Transport,230005,Contract Hire,30/01/2023,4094216-SL07505703INV,636.72,NORTHGATE VEHICLE HIRE LTD.
Neighbourhoods and Climate Change,Environmental Services,Transport,230005,Contract Hire,30/01/2023,4094216-SL07508910INV,990.18,NORTHGATE VEHICLE HIRE LTD.
Neighbourhoods and Climate Change,Environmental Services,Transport,230005,Contract Hire,30/01/2023,4094216-SL07541744INV,568.50,NORTHGATE VEHICLE HIRE LTD.
Children and Young Peoples Services,Head of Education and Skills,Transport,230005,Contract Hire,30/01/2023,4094340-18554,"1,038.00",WEARDALE MOTOR SERVICES LTD.
Children and Young Peoples Services,Head of Education and Skills,Transport,230008,Contract Hire,31/01/2023,4094920-01/23,"6,004.00",ADVANCE TRAVEL.
Children and Young Peoples Services,Head of Education and Skills,Transport,230007,Contract Hire,03/01/2023,4085026-47623,"2,238.72",REDACTED - PAYMENT TO INDIVIDUAL
Children and Young Peoples Services,Head of Education and Skills,Transport,230003,Contract Hire,03/01/2023,4085026-47624,"2,531.90",REDACTED - PAYMENT TO INDIVIDUAL
Children and Young Peoples Services,Head of Education and Skills,Transport,230003,Contract Hire,03/01/2023,4085026-47625,"2,343.74",REDACTED - PAYMENT TO INDIVIDUAL
Children and Young Peoples Services,Head of Education and Skills,Transport,230003,Contract Hire,03/01/2023,4085026-47626,"2,197.00",REDACTED - PAYMENT TO INDIVIDUAL
Children and Young Peoples Services,Head of Education and Skills,Transport,230007,Contract Hire,03/01/2023,4085026-47627,"3,791.19",REDACTED - PAYMENT TO INDIVIDUAL
Children and Young Peoples Services,Head of Education and Skills,Transport,230003,Contract Hire,03/01/2023,4085026-47628,"2,287.61",REDACTED - PAYMENT TO INDIVIDUAL
Children and Young Peoples Services,Head of Education and Skills,Transport,230035,Contract Hire,03/01/2023,4085035-004-DEC22,"1,514.36",REDACTED - PAYMENT TO INDIVIDUAL
Children and Young Peoples Services,Head of Education and Skills,Transport,230006,Contract Hire,03/01/2023,4085048-90,805.00,REDACTED - PAYMENT TO INDIVIDUAL
Children and Young Peoples Services,Head of Education and Skills,Transport,230006,Contract Hire,03/01/2023,4085048-90A,"1,222.44",REDACTED - PAYMENT TO INDIVIDUAL
Children and Young Peoples Services,Head of Education and Skills,Transport,230006,Contract Hire,03/01/2023,4085048-90C,587.56,REDACTED - PAYMENT TO INDIVIDUAL
Children and Young Peoples Services,Head of Education and Skills,Transport,230006,Contract Hire,03/01/2023,4085048-91-DEC22,"1,620.00",REDACTED - PAYMENT TO INDIVIDUAL
Dedicated Schools Grant BG0015,DSG High Needs Block,Transport,230009,Contract Hire,03/01/2023,4085125-002-DEC22,"2,051.00",REDACTED - PAYMENT TO INDIVIDUAL
Children and Young Peoples Services,Head of Education and Skills,Transport,230008,Contract Hire,03/01/2023,4085155-205,"1,761.76",REDACTED - PAYMENT TO INDIVIDUAL
Children and Young Peoples Services,Head of Education and Skills,Transport,230008,Contract Hire,03/01/2023,4085155-207,"1,121.12",REDACTED - PAYMENT TO INDIVIDUAL
Children and Young Peoples Services,Head of Education and Skills,Transport,230008,Contract Hire,03/01/2023,4085156-W082-DEC22,"2,510.17",REDACTED - PAYMENT TO INDIVIDUAL
Children and Young Peoples Services,Head of Education and Skills,Transport,230008,Contract Hire,03/01/2023,4085156-W099-DEC22,"1,872.00",REDACTED - PAYMENT TO INDIVIDUAL
Children and Young Peoples Services,Head of Education and Skills,Transport,230007,Contract Hire,03/01/2023,4085158-256,"1,603.50",REDACTED - PAYMENT TO INDIVIDUAL
Children and Young Peoples Services,Head of Education and Skills,Transport,230006,Contract Hire,03/01/2023,4085158-258,"1,310.80",REDACTED - PAYMENT TO INDIVIDUAL
Children and Young Peoples Services,Head of Education and Skills,Transport,230008,Contract Hire,03/01/2023,4085160-A026/DEC22,"1,798.60",REDACTED - PAYMENT TO INDIVIDUAL
Children and Young Peoples Services,Head of Education and Skills,Transport,230008,Contract Hire,03/01/2023,4085160-S020/DEC22,"2,080.96",REDACTED - PAYMENT TO INDIVIDUAL
Children and Young Peoples Services,Head of Education and Skills,Transport,230008,Contract Hire,03/01/2023,4085160-S103/DEC22,"1,169.28",REDACTED - PAYMENT TO INDIVIDUAL
Children and Young Peoples Services,Head of Education and Skills,Transport,230007,Contract Hire,03/01/2023,4085161-4-DEC22,"2,097.76",REDACTED - PAYMENT TO INDIVIDUAL
Children and Young Peoples Services,Head of Education and Skills,Transport,230008,Contract Hire,03/01/2023,4085162-398,"2,694.64",REDACTED - PAYMENT TO INDIVIDUAL
Children and Young Peoples Services,Head of Education and Skills,Transport,230008,Contract Hire,03/01/2023,4085162-399,"1,924.00",REDACTED - PAYMENT TO INDIVIDUAL
Children and Young Peoples Services,Head of Education and Skills,Transport,230008,Contract Hire,03/01/2023,4085162-400,"2,504.70",REDACTED - PAYMENT TO INDIVIDUAL
Children and Young Peoples Services,Head of Education and Skills,Transport,230008,Contract Hire,03/01/2023,4085162-402,"1,690.00",REDACTED - PAYMENT TO INDIVIDUAL
Children and Young Peoples Services,Head of Education and Skills,Transport,230008,Contract Hire,03/01/2023,4085162-403,"1,644.24",REDACTED - PAYMENT TO INDIVIDUAL
Children and Young Peoples Services,Head of Education and Skills,Transport,230008,Contract Hire,03/01/2023,4085162-404,"1,820.00",REDACTED - PAYMENT TO INDIVIDUAL
Children and Young Peoples Services,Head of Education and Skills,Transport,230008,Contract Hire,03/01/2023,4085162-406,"1,430.00",REDACTED - PAYMENT TO INDIVIDUAL
Children and Young Peoples Services,Head of Education and Skills,Transport,230012,Contract Hire,03/01/2023,4085162-407,"1,105.93",REDACTED - PAYMENT TO INDIVIDUAL
Adult and Health Services,Head of Adults,Transport,230005,Contract Hire,03/01/2023,4085165-DW144DEC22,"1,120.00",REDACTED - PAYMENT TO INDIVIDUAL
Children and Young Peoples Services,Head of Education and Skills,Transport,230008,Contract Hire,03/01/2023,4085166-DEC22-E199-A,605.10,REDACTED - PAYMENT TO INDIVIDUAL
Children and Young Peoples Services,Head of Education and Skills,Transport,230008,Contract Hire,03/01/2023,4085166-DEC22-E199-B,856.45,REDACTED - PAYMENT TO INDIVIDUAL
Children and Young Peoples Services,Head of Education and Skills,Transport,230007,Contract Hire,03/01/2023,4085167-0071-20/12/22,"1,309.00",REDACTED - PAYMENT TO INDIVIDUAL
Children and Young Peoples Services,Head of Education and Skills,Transport,230008,Contract Hire,03/01/2023,4085167-0072,"1,194.48",REDACTED - PAYMENT TO INDIVIDUAL
Children and Young Peoples Services,Head of Education and Skills,Transport,230009,Contract Hire,03/01/2023,4085167-2073,"1,640.00",REDACTED - PAYMENT TO INDIVIDUAL
Children and Young Peoples Services,Head of Education and Skills,Transport,230034,Contract Hire,03/01/2023,4085168-02-DEC22,"1,680.00",REDACTED - PAYMENT TO INDIVIDUAL
Children and Young Peoples Services,Head of Education and Skills,Transport,230010,Contract Hire,03/01/2023,4085168-04-DEC22,"1,959.88",REDACTED - PAYMENT TO INDIVIDUAL
Children and Young Peoples Services,Head of Education and Skills,Transport,230010,Contract Hire,03/01/2023,4085169-4-21-22,"2,798.04",REDACTED - PAYMENT TO INDIVIDUAL
Children and Young Peoples Services,Head of Education and Skills,Transport,230035,Contract Hire,03/01/2023,4085172-215515,"1,499.82",REDACTED - PAYMENT TO INDIVIDUAL
Children and Young Peoples Services,Head of Education and Skills,Transport,230007,Contract Hire,03/01/2023,4085172-DEC22-2081,730.80,REDACTED - PAYMENT TO INDIVIDUAL
Children and Young Peoples Services,Head of Education and Skills,Transport,230008,Contract Hire,03/01/2023,4085199-DEC22-A191,"3,359.44",REDACTED - PAYMENT TO INDIVIDUAL
Children and Young Peoples Services,Head of Education and Skills,Transport,230008,Contract Hire,03/01/2023,4085199-DEC22-E007,"1,495.48",REDACTED - PAYMENT TO INDIVIDUAL
Children and Young Peoples Services,Head of Education and Skills,Transport,230008,Contract Hire,03/01/2023,4085199-DEC22-E014,"1,721.58",REDACTED - PAYMENT TO INDIVIDUAL
Children and Young Peoples Services,Head of Education and Skills,Transport,230008,Contract Hire,03/01/2023,4085199-DEC22-E051,"2,015.72",REDACTED - PAYMENT TO INDIVIDUAL
Children and Young Peoples Services,Head of Education and Skills,Transport,230006,Contract Hire,03/01/2023,4085199-DEC22-F180,792.00,REDACTED - PAYMENT TO INDIVIDUAL
Children and Young Peoples Services,Head of Education and Skills,Transport,230008,Contract Hire,03/01/2023,4085199-DEC22-M066,"1,663.34",REDACTED - PAYMENT TO INDIVIDUAL
Children and Young Peoples Services,Head of Education and Skills,Transport,230007,Contract Hire,03/01/2023,4085244-5290-DEC22,"1,257.44",REDACTED - PAYMENT TO INDIVIDUAL
Children and Young Peoples Services,Head of Education and Skills,Transport,230007,Contract Hire,03/01/2023,4085245-6912,"1,574.58",REDACTED - PAYMENT TO INDIVIDUAL
Children and Young Peoples Services,Head of Education and Skills,Transport,230009,Contract Hire,03/01/2023,4085246-024-DEC22,"1,787.85",REDACTED - PAYMENT TO INDIVIDUAL
Children and Young Peoples Services,Head of Education and Skills,Transport,230008,Contract Hire,03/01/2023,4085269-0002425,"3,580.92",REDACTED - PAYMENT TO INDIVIDUAL
Children and Young Peoples Services,Head of Education and Skills,Transport,230008,Contract Hire,03/01/2023,4085269-0002426,"1,497.58",REDACTED - PAYMENT TO INDIVIDUAL
Children and Young Peoples Services,Head of Education and Skills,Transport,230008,Contract Hire,03/01/2023,4085269-0002428,"2,762.20",REDACTED - PAYMENT TO INDIVIDUAL
Children and Young Peoples Services,Head of Education and Skills,Transport,230006,Contract Hire,03/01/2023,4085269-0002429,"1,040.00",REDACTED - PAYMENT TO INDIVIDUAL
Children and Young Peoples Services,Head of Education and Skills,Transport,230008,Contract Hire,03/01/2023,4085269-0002430,"2,730.00",REDACTED - PAYMENT TO INDIVIDUAL
Children and Young Peoples Services,Head of Education and Skills,Transport,230008,Contract Hire,03/01/2023,4085269-2427,"2,520.14",REDACTED - PAYMENT TO INDIVIDUAL
Children and Young Peoples Services,Head of Education and Skills,Transport,230008,Contract Hire,05/01/2023,4085556-68,"2,658.24",REDACTED - PAYMENT TO INDIVIDUAL
Children and Young Peoples Services,Head of Education and Skills,Transport,230008,Contract Hire,05/01/2023,4085556-69,"2,177.50",REDACTED - PAYMENT TO INDIVIDUAL
Children and Young Peoples Services,Head of Education and Skills,Transport,230034,Contract Hire,05/01/2023,4085557-DEC22-5466,"1,198.40",REDACTED - PAYMENT TO INDIVIDUAL
Children and Young Peoples Services,Head of Education and Skills,Transport,230016,Contract Hire,05/01/2023,4085558-00845,"1,958.00",REDACTED - PAYMENT TO INDIVIDUAL
Children and Young Peoples Services,Head of Education and Skills,Transport,230008,Contract Hire,05/01/2023,4085582-4-A015,"2,132.96",REDACTED - PAYMENT TO INDIVIDUAL
Children and Young Peoples Services,Head of Education and Skills,Transport,230008,Contract Hire,05/01/2023,4085586-0294,"1,017.66",REDACTED - PAYMENT TO INDIVIDUAL
Children and Young Peoples Services,Head of Education and Skills,Transport,230034,Contract Hire,05/01/2023,4085586-BIL0295,"1,744.82",REDACTED - PAYMENT TO INDIVIDUAL
Children and Young Peoples Services,Head of Education and Skills,Transport,230034,Contract Hire,05/01/2023,4085586-BIL0296,"2,160.00",REDACTED - PAYMENT TO INDIVIDUAL
Children and Young Peoples Services,Head of Education and Skills,Transport,230009,Contract Hire,05/01/2023,4085586-BIL0297,576.00,REDACTED - PAYMENT TO INDIVIDUAL
Children and Young Peoples Services,Head of Education and Skills,Transport,230034,Contract Hire,05/01/2023,4085608-7,"1,200.00",REDACTED - PAYMENT TO INDIVIDUAL
Children and Young Peoples Services,Head of Education and Skills,Transport,230004,Contract Hire,05/01/2023,4085635-77,"1,071.00",REDACTED - PAYMENT TO INDIVIDUAL
Adult and Health Services,Head of Adults,Transport,230005,Contract Hire,05/01/2023,4085635-80,640.00,REDACTED - PAYMENT TO INDIVIDUAL
Children and Young Peoples Services,Head of Education and Skills,Transport,230006,Contract Hire,05/01/2023,4085667-DCC04,"1,750.00",REDACTED - PAYMENT TO INDIVIDUAL
Children and Young Peoples Services,Head of Education and Skills,Transport,230008,Contract Hire,05/01/2023,4085675-136-DEC22,"2,964.80",REDACTED - PAYMENT TO INDIVIDUAL
Children and Young Peoples Services,Head of Education and Skills,Transport,230008,Contract Hire,05/01/2023,4085675-138,"2,836.96",REDACTED - PAYMENT TO INDIVIDUAL
Children and Young Peoples Services,Head of Education and Skills,Transport,230016,Contract Hire,05/01/2023,4085675-142,"2,240.00",REDACTED - PAYMENT TO INDIVIDUAL
Children and Young Peoples Services,Head of Education and Skills,Transport,230008,Contract Hire,05/01/2023,4085675-148,"2,860.00",REDACTED - PAYMENT TO INDIVIDUAL
Children and Young Peoples Services,Head of Education and Skills,Transport,230008,Contract Hire,05/01/2023,4085702-0120,"1,906.36",REDACTED - PAYMENT TO INDIVIDUAL
Children and Young Peoples Services,Head of Education and Skills,Transport,230006,Contract Hire,05/01/2023,4085706-12,"2,000.00",REDACTED - PAYMENT TO INDIVIDUAL
Children and Young Peoples Services,Head of Education and Skills,Transport,230008,Contract Hire,05/01/2023,4085706-1222,"3,434.20",REDACTED - PAYMENT TO INDIVIDUAL
Children and Young Peoples Services,Head of Education and Skills,Transport,230012,Contract Hire,05/01/2023,4085712-E054-DEC22,"1,627.50",REDACTED - PAYMENT TO INDIVIDUAL
Children and Young Peoples Services,Head of Education and Skills,Transport,230008,Contract Hire,05/01/2023,4085712-E110-DEC22,"1,386.00",REDACTED - PAYMENT TO INDIVIDUAL
Children and Young Peoples Services,Head of Education and Skills,Transport,230006,Contract Hire,05/01/2023,4085715-DEC22-A058,"4,080.00",REDACTED - PAYMENT TO INDIVIDUAL
Children and Young Peoples Services,Head of Education and Skills,Transport,230007,Contract Hire,05/01/2023,4085716-123,"1,680.00",REDACTED - PAYMENT TO INDIVIDUAL
Children and Young Peoples Services,Head of Education and Skills,Transport,230008,Contract Hire,05/01/2023,4085717-397,"2,505.60",REDACTED - PAYMENT TO INDIVIDUAL
Children and Young Peoples Services,Head of Education and Skills,Transport,230008,Contract Hire,05/01/2023,4085717-401,"2,520.00",REDACTED - PAYMENT TO INDIVIDUAL
Children and Young Peoples Services,Head of Education and Skills,Transport,230012,Contract Hire,05/01/2023,4085717-405,"1,896.45",REDACTED - PAYMENT TO INDIVIDUAL
Children and Young Peoples Services,Head of Education and Skills,Transport,230008,Contract Hire,05/01/2023,4085717-408,"1,681.40",REDACTED - PAYMENT TO INDIVIDUAL
Children and Young Peoples Services,Head of Education and Skills,Transport,230034,Contract Hire,05/01/2023,4085718-4501DEC22,"2,350.08",REDACTED - PAYMENT TO INDIVIDUAL
Children and Young Peoples Services,Head of Education and Skills,Transport,230008,Contract Hire,05/01/2023,4085719-3244,"3,050.19",REDACTED - PAYMENT TO INDIVIDUAL
Children and Young Peoples Services,Head of Education and Skills,Transport,230008,Contract Hire,05/01/2023,4085719-3245,"1,706.38",REDACTED - PAYMENT TO INDIVIDUAL
Children and Young Peoples Services,Head of Education and Skills,Transport,230034,Contract Hire,05/01/2023,4085720-INVOICE12-22-1284,927.00,REDACTED - PAYMENT TO INDIVIDUAL
Children and Young Peoples Services,Head of Education and Skills,Transport,230007,Contract Hire,05/01/2023,4085722-ACD1222,"1,194.56",REDACTED - PAYMENT TO INDIVIDUAL
Children and Young Peoples Services,Head of Education and Skills,Transport,230007,Contract Hire,05/01/2023,4085743-DEC22-5456,"1,680.00",REDACTED - PAYMENT TO INDIVIDUAL
Children and Young Peoples Services,Head of Education and Skills,Transport,230010,Contract Hire,05/01/2023,4085747-158,"4,858.28",REDACTED - PAYMENT TO INDIVIDUAL
Children and Young Peoples Services,Head of Education and Skills,Transport,230007,Contract Hire,05/01/2023,4085747-159,570.00,REDACTED - PAYMENT TO INDIVIDUAL
Children and Young Peoples Services,Head of Education and Skills,Transport,230006,Contract Hire,05/01/2023,4085747-160,"1,333.00",REDACTED - PAYMENT TO INDIVIDUAL
Children and Young Peoples Services,Head of Education and Skills,Transport,230008,Contract Hire,05/01/2023,4085784-0000135,"1,947.82",REDACTED - PAYMENT TO INDIVIDUAL
Children and Young Peoples Services,Head of Education and Skills,Transport,230008,Contract Hire,05/01/2023,4085784-000014,"2,548.00",REDACTED - PAYMENT TO INDIVIDUAL
Children and Young Peoples Services,Head of Education and Skills,Transport,230034,Contract Hire,05/01/2023,4085791-001-DEC22,"1,200.00",REDACTED - PAYMENT TO INDIVIDUAL
Adult and Health Services,Head of Adults,Transport,230005,Contract Hire,05/01/2023,4085800-DM223-DEC22,"1,051.62",REDACTED - PAYMENT TO INDIVIDUAL
Children and Young Peoples Services,Head of Education and Skills,Transport,230034,Contract Hire,06/01/2023,4085871-5260/15,925.68,REDACTED - PAYMENT TO INDIVIDUAL
Children and Young Peoples Services,Head of Education and Skills,Transport,230034,Contract Hire,06/01/2023,4085871-5289/15,"2,130.10",REDACTED - PAYMENT TO INDIVIDUAL
Children and Young Peoples Services,Head of Education and Skills,Transport,230006,Contract Hire,06/01/2023,4085897-INV-0039,"1,628.40",REDACTED - PAYMENT TO INDIVIDUAL
Children and Young Peoples Services,Head of Education and Skills,Transport,230008,Contract Hire,06/01/2023,4085899-0095,"2,169.24",REDACTED - PAYMENT TO INDIVIDUAL
Children and Young Peoples Services,Head of Education and Skills,Transport,230008,Contract Hire,06/01/2023,4085963-139,"2,307.76",REDACTED - PAYMENT TO INDIVIDUAL
Children and Young Peoples Services,Head of Education and Skills,Transport,230008,Contract Hire,06/01/2023,4085963-140,"1,220.80",REDACTED - PAYMENT TO INDIVIDUAL
Children and Young Peoples Services,Head of Education and Skills,Transport,230016,Contract Hire,06/01/2023,4085963-141,"2,090.34",REDACTED - PAYMENT TO INDIVIDUAL
Children and Young Peoples Services,Head of Education and Skills,Transport,230008,Contract Hire,06/01/2023,4085963-146-DEC22,"1,820.00",REDACTED - PAYMENT TO INDIVIDUAL
Children and Young Peoples Services,Head of Education and Skills,Transport,230008,Contract Hire,06/01/2023,4085963-146/DEC22,"1,960.00",REDACTED - PAYMENT TO INDIVIDUAL
Children and Young Peoples Services,Head of Education and Skills,Transport,230008,Contract Hire,06/01/2023,4085963-149,"3,500.00",REDACTED - PAYMENT TO INDIVIDUAL
Children and Young Peoples Services,Head of Education and Skills,Transport,230008,Contract Hire,06/01/2023,4085996-3833,"1,856.75",REDACTED - PAYMENT TO INDIVIDUAL
Children and Young Peoples Services,Head of Education and Skills,Transport,230008,Contract Hire,06/01/2023,4085996-KC-3834,"2,450.00",REDACTED - PAYMENT TO INDIVIDUAL
Children and Young Peoples Services,Head of Education and Skills,Transport,230009,Contract Hire,06/01/2023,4085996-KC3831,576.81,REDACTED - PAYMENT TO INDIVIDUAL
Children and Young Peoples Services,Head of Education and Skills,Transport,230008,Contract Hire,06/01/2023,4085996-KC3832,"1,714.02",REDACTED - PAYMENT TO INDIVIDUAL
Children and Young Peoples Services,Head of Education and Skills,Transport,230007,Contract Hire,06/01/2023,4085999-6075/12,"3,060.00",REDACTED - PAYMENT TO INDIVIDUAL
Children and Young Peoples Services,Head of Education and Skills,Transport,230008,Contract Hire,06/01/2023,4086009-260-D,"1,740.90",REDACTED - PAYMENT TO INDIVIDUAL
Children and Young Peoples Services,Head of Education and Skills,Transport,230016,Contract Hire,06/01/2023,4086009-261-D,"1,265.00",REDACTED - PAYMENT TO INDIVIDUAL
Children and Young Peoples Services,Head of Education and Skills,Transport,230007,Contract Hire,06/01/2023,4086009-262-D,"1,037.68",REDACTED - PAYMENT TO INDIVIDUAL
Children and Young Peoples Services,Head of Education and Skills,Transport,230008,Contract Hire,06/01/2023,4086011-26-DEC22,"3,640.00",REDACTED - PAYMENT TO INDIVIDUAL
Children and Young Peoples Services,Head of Education and Skills,Transport,230007,Contract Hire,06/01/2023,4086040-SC-207,"2,058.16",REDACTED - PAYMENT TO INDIVIDUAL
Children and Young Peoples Services,Head of Education and Skills,Transport,230007,Contract Hire,06/01/2023,4086042-DEC22-4507,"2,100.00",REDACTED - PAYMENT TO INDIVIDUAL
Children and Young Peoples Services,Head of Education and Skills,Transport,230006,Contract Hire,06/01/2023,4086042-DEC22-F741,"2,076.34",REDACTED - PAYMENT TO INDIVIDUAL
Children and Young Peoples Services,Head of Education and Skills,Transport,230008,Contract Hire,06/01/2023,4086042-DEC22-M014,"2,066.83",REDACTED - PAYMENT TO INDIVIDUAL
Children and Young Peoples Services,Head of Education and Skills,Transport,230008,Contract Hire,06/01/2023,4086042-DEC22-N023,"1,978.08",REDACTED - PAYMENT TO INDIVIDUAL
Children and Young Peoples Services,Head of Education and Skills,Transport,230034,Contract Hire,06/01/2023,4086046-1-A,540.00,REDACTED - PAYMENT TO INDIVIDUAL
Children and Young Peoples Services,Head of Education and Skills,Transport,230034,Contract Hire,06/01/2023,4086046-1-B,"1,320.00",REDACTED - PAYMENT TO INDIVIDUAL
Children and Young Peoples Services,Head of Education and Skills,Transport,230008,Contract Hire,06/01/2023,4086094-093-DEC22,"1,613.70",REDACTED - PAYMENT TO INDIVIDUAL
Children and Young Peoples Services,Head of Education and Skills,Transport,230008,Contract Hire,06/01/2023,4086094-097,"1,631.00",REDACTED - PAYMENT TO INDIVIDUAL
Adult and Health Services,Head of Adults,Transport,230005,Contract Hire,10/01/2023,4087157-4-DW138,756.00,REDACTED - PAYMENT TO INDIVIDUAL
Children and Young Peoples Services,Head of Education and Skills,Transport,230006,Contract Hire,10/01/2023,4087214-8,"2,500.24",REDACTED - PAYMENT TO INDIVIDUAL
Children and Young Peoples Services,Head of Education and Skills,Transport,230006,Contract Hire,10/01/2023,4087215-J002,880.00,REDACTED - PAYMENT TO INDIVIDUAL
Children and Young Peoples Services,Head of Education and Skills,Transport,230007,Contract Hire,10/01/2023,4087272-DCCDA03,"1,320.00",REDACTED - PAYMENT TO INDIVIDUAL
Children and Young Peoples Services,Head of Education and Skills,Transport,230008,Contract Hire,10/01/2023,4087276-20/12//22G,"1,680.00",REDACTED - PAYMENT TO INDIVIDUAL
Children and Young Peoples Services,Head of Education and Skills,Transport,230008,Contract Hire,10/01/2023,4087276-20/12/22-A,"2,506.14",REDACTED - PAYMENT TO INDIVIDUAL
Children and Young Peoples Services,Head of Education and Skills,Transport,230008,Contract Hire,10/01/2023,4087276-20/12/22-K,"2,080.00",REDACTED - PAYMENT TO INDIVIDUAL
Children and Young Peoples Services,Head of Education and Skills,Transport,230008,Contract Hire,10/01/2023,4087276-20/12/22A,"1,920.49",REDACTED - PAYMENT TO INDIVIDUAL
Children and Young Peoples Services,Head of Education and Skills,Transport,230008,Contract Hire,10/01/2023,4087276-20/12/22B,"2,224.56",REDACTED - PAYMENT TO INDIVIDUAL
Children and Young Peoples Services,Head of Education and Skills,Transport,230008,Contract Hire,10/01/2023,4087276-20/12/22G,"1,751.88",REDACTED - PAYMENT TO INDIVIDUAL
Children and Young Peoples Services,Head of Education and Skills,Transport,230008,Contract Hire,10/01/2023,4087276-20/12/22H,"2,383.64",REDACTED - PAYMENT TO INDIVIDUAL
Children and Young Peoples Services,Head of Education and Skills,Transport,230008,Contract Hire,10/01/2023,4087277-137,"2,307.90",REDACTED - PAYMENT TO INDIVIDUAL
Children and Young Peoples Services,Head of Education and Skills,Transport,230008,Contract Hire,10/01/2023,4087277-137-DEC22,"1,493.10",REDACTED - PAYMENT TO INDIVIDUAL
Children and Young Peoples Services,Head of Education and Skills,Transport,230008,Contract Hire,10/01/2023,4087277-139-DEC22,"2,852.50",REDACTED - PAYMENT TO INDIVIDUAL
Dedicated Schools Grant BG0015,DSG High Needs Block,Transport,230009,Contract Hire,10/01/2023,4087277-147DEC22,"3,410.00",REDACTED - PAYMENT TO INDIVIDUAL
Children and Young Peoples Services,Head of Education and Skills,Transport,230009,Contract Hire,10/01/2023,4087278-0003-G042,"1,560.89",REDACTED - PAYMENT TO INDIVIDUAL
Children and Young Peoples Services,Head of Education and Skills,Transport,230008,Contract Hire,10/01/2023,4087278-0046,"1,937.91",REDACTED - PAYMENT TO INDIVIDUAL
Children and Young Peoples Services,Head of Education and Skills,Transport,230007,Contract Hire,10/01/2023,4087316-DURHAMGATEWAYDEC232022,529.60,REDACTED - PAYMENT TO INDIVIDUAL
Children and Young Peoples Services,Head of Education and Skills,Transport,230009,Contract Hire,10/01/2023,4087316-WOODHAMACADEMY23122022,541.54,REDACTED - PAYMENT TO INDIVIDUAL
Children and Young Peoples Services,Head of Education and Skills,Transport,230008,Contract Hire,10/01/2023,4087317-41D,"2,285.92",REDACTED - PAYMENT TO INDIVIDUAL
Children and Young Peoples Services,Head of Education and Skills,Transport,230007,Contract Hire,10/01/2023,4087319-173/2022,"1,973.84",REDACTED - PAYMENT TO INDIVIDUAL
Children and Young Peoples Services,Head of Education and Skills,Transport,230007,Contract Hire,10/01/2023,4087319-174/2022,"1,785.51",REDACTED - PAYMENT TO INDIVIDUAL
Children and Young Peoples Services,Head of Education and Skills,Transport,230034,Contract Hire,10/01/2023,4087319-175/2022,"1,188.25",REDACTED - PAYMENT TO INDIVIDUAL
Children and Young Peoples Services,Head of Education and Skills,Transport,230034,Contract Hire,10/01/2023,4087319-176/2022,"1,666.00",REDACTED - PAYMENT TO INDIVIDUAL
Children and Young Peoples Services,Head of Education and Skills,Transport,230034,Contract Hire,10/01/2023,4087319-177/2022,880.88,REDACTED - PAYMENT TO INDIVIDUAL
Adult and Health Services,Head of Adults,Transport,230005,Contract Hire,10/01/2023,4087319-179/2022,572.07,REDACTED - PAYMENT TO INDIVIDUAL
Children and Young Peoples Services,Head of Education and Skills,Transport,230006,Contract Hire,10/01/2023,4087319-182/2022,991.28,REDACTED - PAYMENT TO INDIVIDUAL
Children and Young Peoples Services,Head of Education and Skills,Transport,230006,Contract Hire,10/01/2023,4087319-183/2022,"1,692.32",REDACTED - PAYMENT TO INDIVIDUAL
Children and Young Peoples Services,Head of Education and Skills,Transport,230009,Contract Hire,10/01/2023,4087321-409,"1,284.64",REDACTED - PAYMENT TO INDIVIDUAL
Children and Young Peoples Services,Head of Education and Skills,Transport,230035,Contract Hire,10/01/2023,4087322-TNB-34,"1,829.35",REDACTED - PAYMENT TO INDIVIDUAL
Children and Young Peoples Services,Head of Education and Skills,Transport,230008,Contract Hire,10/01/2023,4087324-102,"1,184.68",REDACTED - PAYMENT TO INDIVIDUAL
Children and Young Peoples Services,Head of Education and Skills,Transport,230008,Contract Hire,10/01/2023,4087324-103,"1,343.86",REDACTED - PAYMENT TO INDIVIDUAL
Children and Young Peoples Services,Head of Education and Skills,Transport,230035,Contract Hire,10/01/2023,4087324-104,680.26,REDACTED - PAYMENT TO INDIVIDUAL
Children and Young Peoples Services,Head of Education and Skills,Transport,230034,Contract Hire,10/01/2023,4087326-DCC/001/23,"1,750.00",REDACTED - PAYMENT TO INDIVIDUAL
Children and Young Peoples Services,Head of Education and Skills,Transport,230035,Contract Hire,10/01/2023,4087326-DCC/001/23-4390,"1,366.20",REDACTED - PAYMENT TO INDIVIDUAL
Children and Young Peoples Services,Head of Education and Skills,Transport,230006,Contract Hire,10/01/2023,4087326-DCC/001/23-F882,900.00,REDACTED - PAYMENT TO INDIVIDUAL
Children and Young Peoples Services,Head of Education and Skills,Transport,230009,Contract Hire,10/01/2023,4087326-DCC/002/23,"1,501.67",REDACTED - PAYMENT TO INDIVIDUAL
Children and Young Peoples Services,Head of Education and Skills,Transport,230010,Contract Hire,10/01/2023,4087366-057,"2,259.72",REDACTED - PAYMENT TO INDIVIDUAL
Children and Young Peoples Services,Head of Education and Skills,Transport,230035,Contract Hire,10/01/2023,4087366-058,"2,660.14",REDACTED - PAYMENT TO INDIVIDUAL
Children and Young Peoples Services,Head of Education and Skills,Transport,230007,Contract Hire,10/01/2023,4087366-059,"2,226.00",REDACTED - PAYMENT TO INDIVIDUAL
Children and Young Peoples Services,Head of Education and Skills,Transport,230034,Contract Hire,10/01/2023,4087379-FE67VBV,600.00,REDACTED - PAYMENT TO INDIVIDUAL
Children and Young Peoples Services,Head of Education and Skills,Transport,230008,Contract Hire,10/01/2023,4087393-896,864.00,REDACTED - PAYMENT TO INDIVIDUAL
Children and Young Peoples Services,Head of Education and Skills,Transport,230006,Contract Hire,10/01/2023,4087395-DEC22-F733,"1,152.00",REDACTED - PAYMENT TO INDIVIDUAL
Children and Young Peoples Services,Head of Education and Skills,Transport,230034,Contract Hire,10/01/2023,4087396-20220003,960.00,REDACTED - PAYMENT TO INDIVIDUAL
Adult and Health Services,Head of Adults,Transport,230005,Contract Hire,10/01/2023,4087412-002424,"2,915.00",REDACTED - PAYMENT TO INDIVIDUAL
Children and Young Peoples Services,Head of Education and Skills,Transport,230034,Contract Hire,11/01/2023,4087434-0303,"2,015.00",REDACTED - PAYMENT TO INDIVIDUAL
Adult and Health Services,Head of Adults,Transport,230005,Contract Hire,11/01/2023,4087516-DEC22-EAS199,926.00,REDACTED - PAYMENT TO INDIVIDUAL
Children and Young Peoples Services,Head of Education and Skills,Transport,230008,Contract Hire,11/01/2023,4087542-B74,"2,030.99",REDACTED - PAYMENT TO INDIVIDUAL
Adult and Health Services,Head of Adults,Transport,230005,Contract Hire,11/01/2023,4087542-B75,"1,820.00",REDACTED - PAYMENT TO INDIVIDUAL
Children and Young Peoples Services,Head of Education and Skills,Transport,230006,Contract Hire,11/01/2023,4087555-11/2022-F230,"3,165.93",REDACTED - PAYMENT TO INDIVIDUAL
Children and Young Peoples Services,Head of Education and Skills,Transport,230006,Contract Hire,11/01/2023,4087600-79,"1,191.36",REDACTED - PAYMENT TO INDIVIDUAL
Dedicated Schools Grant BG0015,DSG High Needs Block,Transport,230009,Contract Hire,11/01/2023,4087635-DEC22-G007,"1,595.98",REDACTED - PAYMENT TO INDIVIDUAL
Children and Young Peoples Services,Head of Education and Skills,Transport,230006,Contract Hire,11/01/2023,4087656-150,"4,320.00",REDACTED - PAYMENT TO INDIVIDUAL
Children and Young Peoples Services,Head of Education and Skills,Transport,230007,Contract Hire,11/01/2023,4087658-0004-DEC22,"1,335.00",REDACTED - PAYMENT TO INDIVIDUAL
Children and Young Peoples Services,Head of Education and Skills,Transport,230010,Contract Hire,11/01/2023,4087693-0004,"1,400.00",REDACTED - PAYMENT TO INDIVIDUAL
Children and Young Peoples Services,Head of Education and Skills,Transport,230008,Contract Hire,11/01/2023,4087705-KDC-03122022,"1,476.97",REDACTED - PAYMENT TO INDIVIDUAL
Children and Young Peoples Services,Head of Education and Skills,Transport,230035,Contract Hire,11/01/2023,4087710-231222,982.13,REDACTED - PAYMENT TO INDIVIDUAL
Adult and Health Services,Head of Adults,Transport,230005,Contract Hire,11/01/2023,4087710-THORDEC232022,"1,047.80",REDACTED - PAYMENT TO INDIVIDUAL
Children and Young Peoples Services,Head of Education and Skills,Transport,230006,Contract Hire,11/01/2023,4087712-16,"1,247.87",REDACTED - PAYMENT TO INDIVIDUAL
Adult and Health Services,Head of Adults,Transport,230005,Contract Hire,11/01/2023,4087712-16-DW152,600.00,REDACTED - PAYMENT TO INDIVIDUAL
Children and Young Peoples Services,Head of Education and Skills,Transport,230008,Contract Hire,11/01/2023,4087715-2095,896.84,REDACTED - PAYMENT TO INDIVIDUAL
Children and Young Peoples Services,Head of Education and Skills,Transport,230006,Contract Hire,11/01/2023,4087715-2096,"2,232.00",REDACTED - PAYMENT TO INDIVIDUAL
Children and Young Peoples Services,Head of Education and Skills,Transport,230010,Contract Hire,11/01/2023,4087717-04-BL003,"1,334.68",REDACTED - PAYMENT TO INDIVIDUAL
Adult and Health Services,Head of Adults,Transport,230005,Contract Hire,11/01/2023,4087757-DEC220-SED121,"1,240.00",REDACTED - PAYMENT TO INDIVIDUAL
Adult and Health Services,Head of Adults,Transport,230005,Contract Hire,11/01/2023,4087757-DM221-DEC22,"2,120.00",REDACTED - PAYMENT TO INDIVIDUAL
Children and Young Peoples Services,Head of Education and Skills,Transport,230007,Contract Hire,11/01/2023,4087821-6913,"4,803.58",REDACTED - PAYMENT TO INDIVIDUAL
Children and Young Peoples Services,Head of Education and Skills,Transport,230007,Contract Hire,11/01/2023,4087836-4507,"2,176.72",REDACTED - PAYMENT TO INDIVIDUAL
Adult and Health Services,Head of Adults,Transport,230005,Contract Hire,12/01/2023,4088008-DEC22-CLS078,968.80,REDACTED - PAYMENT TO INDIVIDUAL
Adult and Health Services,Head of Adults,Transport,230005,Contract Hire,12/01/2023,4088066-KD-04122022,"4,060.00",REDACTED - PAYMENT TO INDIVIDUAL
Children and Young Peoples Services,Head of Education and Skills,Transport,230034,Contract Hire,12/01/2023,4088136-004-DEC22,"2,197.60",REDACTED - PAYMENT TO INDIVIDUAL
Children and Young Peoples Services,Head of Education and Skills,Transport,230008,Contract Hire,12/01/2023,4088137-056,"2,232.00",REDACTED - PAYMENT TO INDIVIDUAL
Children and Young Peoples Services,Head of Education and Skills,Transport,230034,Contract Hire,12/01/2023,4088168-7-DEC22,"1,920.00",REDACTED - PAYMENT TO INDIVIDUAL
Adult and Health Services,Head of Adults,Transport,230005,Contract Hire,12/01/2023,4088170-EAS202-DEC22,810.86,REDACTED - PAYMENT TO INDIVIDUAL
Children and Young Peoples Services,Head of Education and Skills,Transport,230006,Contract Hire,12/01/2023,4088189-TBDAR005,"2,166.94",REDACTED - PAYMENT TO INDIVIDUAL
Children and Young Peoples Services,Head of Education and Skills,Transport,230006,Contract Hire,12/01/2023,4088190-F628-DEC22,"4,879.95",REDACTED - PAYMENT TO INDIVIDUAL
Children and Young Peoples Services,Head of Education and Skills,Transport,230006,Contract Hire,16/01/2023,4088720-223,"1,012.91",REDACTED - PAYMENT TO INDIVIDUAL
Children and Young Peoples Services,Head of Education and Skills,Transport,230006,Contract Hire,16/01/2023,4088720-223-A,556.78,REDACTED - PAYMENT TO INDIVIDUAL
Children and Young Peoples Services,Head of Education and Skills,Transport,230007,Contract Hire,19/01/2023,4091192-12/2022-3466,"1,599.08",REDACTED - PAYMENT TO INDIVIDUAL
Children and Young Peoples Services,Head of Education and Skills,Transport,230006,Contract Hire,19/01/2023,4091192-12/2022-F220,"3,486.00",REDACTED - PAYMENT TO INDIVIDUAL
Children and Young Peoples Services,Head of Education and Skills,Transport,230006,Contract Hire,19/01/2023,4091192-12/2022-F230,"1,593.39",REDACTED - PAYMENT TO INDIVIDUAL
Children and Young Peoples Services,Head of Education and Skills,Transport,230012,Contract Hire,19/01/2023,4091192-12/2022-M035,"2,042.32",REDACTED - PAYMENT TO INDIVIDUAL
Children and Young Peoples Services,Head of Education and Skills,Transport,230008,Contract Hire,19/01/2023,4091192-12/2022-S052,"2,535.00",REDACTED - PAYMENT TO INDIVIDUAL
Children and Young Peoples Services,Head of Education and Skills,Transport,230016,Contract Hire,19/01/2023,4091192-12/2022-W016,"4,119.80",REDACTED - PAYMENT TO INDIVIDUAL
Children and Young Peoples Services,Head of Education and Skills,Transport,230008,Contract Hire,19/01/2023,4091192-12/2022-W098,"2,607.02",REDACTED - PAYMENT TO INDIVIDUAL
Children and Young Peoples Services,Head of Education and Skills,Transport,230008,Contract Hire,19/01/2023,4091192-12/2022-W184,"1,484.86",REDACTED - PAYMENT TO INDIVIDUAL
Children and Young Peoples Services,Head of Education and Skills,Transport,230009,Contract Hire,19/01/2023,4091305-148-DEC22,"1,960.00",REDACTED - PAYMENT TO INDIVIDUAL
Children and Young Peoples Services,Head of Education and Skills,Transport,230016,Contract Hire,19/01/2023,4091467-AK/12/12,"1,820.00",REDACTED - PAYMENT TO INDIVIDUAL
Children and Young Peoples Services,Head of Education and Skills,Transport,230007,Contract Hire,20/01/2023,4091659-0302,"1,776.00",REDACTED - PAYMENT TO INDIVIDUAL
Children and Young Peoples Services,Head of Education and Skills,Transport,230013,Contract Hire,20/01/2023,4091748-3492-DEC22,"2,380.00",REDACTED - PAYMENT TO INDIVIDUAL
Children and Young Peoples Services,Head of Education and Skills,Transport,230008,Contract Hire,20/01/2023,4091936-099,"1,031.70",REDACTED - PAYMENT TO INDIVIDUAL
Children and Young Peoples Services,Head of Education and Skills,Transport,230007,Contract Hire,23/01/2023,4092177-BR/12/22,"1,069.80",REDACTED - PAYMENT TO INDIVIDUAL
Children and Young Peoples Services,Head of Education and Skills,Transport,230006,Contract Hire,26/01/2023,4093632-222,"1,914.75",REDACTED - PAYMENT TO INDIVIDUAL
Children and Young Peoples Services,Head of Education and Skills,Transport,230003,Contract Hire,26/01/2023,4093652-5003,"2,542.72",REDACTED - PAYMENT TO INDIVIDUAL
Children and Young Peoples Services,Head of Education and Skills,Transport,230008,Contract Hire,05/01/2023,4085721-INV0172,"2,026.92",EC UK TRANSPORT LTD T/A EMPIRE CARS.
Children and Young Peoples Services,Head of Education and Skills,Transport,230034,Contract Hire,05/01/2023,4085721-INV0173,"1,902.33",EC UK TRANSPORT LTD T/A EMPIRE CARS.
Children and Young Peoples Services,Head of Education and Skills,Transport,230034,Contract Hire,05/01/2023,4085721-INV0174,"1,516.32",EC UK TRANSPORT LTD T/A EMPIRE CARS.
Children and Young Peoples Services,Head of Education and Skills,Transport,230007,Contract Hire,05/01/2023,4085721-INV0175,"1,453.62",EC UK TRANSPORT LTD T/A EMPIRE CARS.
Children and Young Peoples Services,Head of Education and Skills,Transport,230034,Contract Hire,05/01/2023,4085721-INV0176,"1,433.49",EC UK TRANSPORT LTD T/A EMPIRE CARS.
Children and Young Peoples Services,Head of Education and Skills,Transport,230034,Contract Hire,05/01/2023,4085721-INV0177,"1,113.90",EC UK TRANSPORT LTD T/A EMPIRE CARS.
Children and Young Peoples Services,Head of Education and Skills,Transport,230034,Contract Hire,11/01/2023,4087564-1,"1,405.00",DURHAM DALES PRIVATE HIRE.
Children and Young Peoples Services,Head of Education and Skills,Transport,230034,Contract Hire,11/01/2023,4087716-INV0160,"3,240.15",EC UK TRANSPORT LTD T/A EMPIRE CARS.
Children and Young Peoples Services,Head of Education and Skills,Transport,230034,Contract Hire,11/01/2023,4087716-INV0163,"2,399.22",EC UK TRANSPORT LTD T/A EMPIRE CARS.
Children and Young Peoples Services,Head of Education and Skills,Transport,230007,Contract Hire,10/01/2023,4087320-DEC22-1316,"2,079.70",REDACTED - PAYMENT TO INDIVIDUAL
Children and Young Peoples Services,Head of Education and Skills,Transport,230034,Contract Hire,10/01/2023,4087320-DEC22-4512,"1,666.00",REDACTED - PAYMENT TO INDIVIDUAL
Children and Young Peoples Services,Head of Education and Skills,Transport,230035,Contract Hire,10/01/2023,4087320-DEC22-7380,"1,443.72",REDACTED - PAYMENT TO INDIVIDUAL
Children and Young Peoples Services,Head of Education and Skills,Transport,230006,Contract Hire,10/01/2023,4087320-DEC22-F186,995.00,REDACTED - PAYMENT TO INDIVIDUAL
Children and Young Peoples Services,Head of Education and Skills,Transport,230008,Contract Hire,23/01/2023,4092178-INV-0848,"2,925.00",REDACTED - PAYMENT TO INDIVIDUAL
Children and Young Peoples Services,Head of Education and Skills,Transport,230034,Contract Hire,12/01/2023,4088134-6081-DEC22,"1,053.00",REDACTED - PAYMENT TO INDIVIDUAL
Adult and Health Services,Public Health CC0450,Third Party Payments,460803,Contract Payments,03/01/2023,4085202-1239695,"2,775.00",PHOENIX FUTURES.
Regeneration Economy and Growth,Business Durham CL0850,Third Party Payments,460305,Contract Payments,03/01/2023,4085279-RES-12-2022-434,"10,309.62",UMI COMMERCIAL LTD.
Adult and Health Services,Public Health CC0450,Third Party Payments,460803,Contract Payments,05/01/2023,4085647-2510047234,"4,798.89",HARROGATE & DISTRICT NHS FOUNDATION TRUST.
Adult and Health Services,Public Health CC0450,Third Party Payments,460803,Contract Payments,05/01/2023,4085734-7310028664,"11,725.00",NHS NORTH OF ENGLAND CSU.
Adult and Health Services,Public Health CC0450,Third Party Payments,460803,Contract Payments,05/01/2023,4085750-18146/18,"5,462.92",PIONEERING CARE PARTNERSHIP.
Adult and Health Services,Public Health CC0450,Third Party Payments,460803,Contract Payments,05/01/2023,4085750-18147/18,"7,327.00",PIONEERING CARE PARTNERSHIP.
Adult and Health Services,Public Health CC0450,Third Party Payments,460802,Contract Payments,06/01/2023,4085892-3910021011,"5,634.00",COUNTY DURHAM & DARLINGTON NHS FOUNDATION TRUST (CDDFT).
Adult and Health Services,Public Health CC0450,Third Party Payments,460803,Contract Payments,06/01/2023,4085951-SI-HK-000381,"90,986.92",HUMANKIND CHARITY.
Neighbourhoods and Climate Change,Highways,Third Party Payments,460224,Contract Payments,09/01/2023,4086165-22854,"177,172.89",ARM PIPETEK LTD.
Adult and Health Services,Public Health CC0450,Third Party Payments,460803,Contract Payments,09/01/2023,4086295-7610021189,"3,497.00",GATESHEAD HEALTH NHS FOUNDATION TRUST.
Adult and Health Services,Public Health CC0450,Third Party Payments,460803,Contract Payments,09/01/2023,4086437-1800011583373,"9,090.00",NEWCASTLE UPON TYNE CITY COUNCIL.
Adult and Health Services,Public Health CC0450,Third Party Payments,460802,Contract Payments,10/01/2023,4087204-3910021008,"384,361.00",COUNTY DURHAM & DARLINGTON NHS FOUNDATION TRUST (CDDFT).
Adult and Health Services,Public Health CC0450,Third Party Payments,460803,Contract Payments,10/01/2023,4087204-3910021010,"30,830.00",COUNTY DURHAM & DARLINGTON NHS FOUNDATION TRUST (CDDFT).
Adult and Health Services,Public Health CC0450,Third Party Payments,460803,Contract Payments,11/01/2023,4087439-INV05732,"2,500.00",ADFERIAD RECOVERY LTD.
Adult and Health Services,Public Health CC0450,Third Party Payments,460803,Contract Payments,11/01/2023,4087815-7910058291,"24,486.57",SOUTH TYNESIDE & SUNDERLAND NHS FOUNDATION TRUST.
Adult and Health Services,Public Health CC0450,Third Party Payments,460803,Contract Payments,12/01/2023,4088001-2510047233,"929,271.75",HARROGATE & DISTRICT NHS FOUNDATION TRUST.
Adult and Health Services,Public Health CC0450,Third Party Payments,460803,Contract Payments,12/01/2023,4088010-VI0563,"40,865.00",IF U CARE SHARE FOUNDATION.
Regeneration Economy and Growth,Transport and Contracted Services,Third Party Payments,460160,Contract Payments,12/01/2023,4088180-17465,572.00,TEESDALE MERCURY LTD.
Adult and Health Services,Public Health CC0450,Third Party Payments,460803,Contract Payments,12/01/2023,4088197-SI-TPL-00068212,"1,855.00",TURNING POINT (SERVICES) LTD.
Neighbourhoods and Climate Change,Highways,Third Party Payments,460225,Contract Payments,13/01/2023,4088469-N/IN331296/A,"3,867.98",PQS SURVEY LTD.
Adult and Health Services,Public Health CC0450,Third Party Payments,460803,Contract Payments,13/01/2023,4088531-SI-TPL-00065169,"1,855.00",TURNING POINT (SERVICES) LTD.
Adult and Health Services,Public Health CC0450,Third Party Payments,460803,Contract Payments,16/01/2023,4088729-7310028998,"204,471.00",NHS NORTH OF ENGLAND CSU.
Adult and Health Services,Public Health CC0450,Third Party Payments,460803,Contract Payments,18/01/2023,4091035-SI-TPL-00068189,"1,855.00",TURNING POINT (SERVICES) LTD.
Adult and Health Services,Public Health CC0450,Third Party Payments,460803,Contract Payments,19/01/2023,4091164-3980041424,"104,267.50",COUNTY DURHAM & DARLINGTON NHS FOUNDATION TRUST (CDDFT).
Regeneration Economy and Growth,Transport and Contracted Services,Third Party Payments,460151,Contract Payments,19/01/2023,4091290-27037,723.64,JACK COUPE & SONS LTD T/A COUPE LINE.
Adult and Health Services,Public Health CC0450,Third Party Payments,460803,Contract Payments,20/01/2023,4091669-DTPB/00000338,"1,094.00",ASDA PHARMACY.*
Adult and Health Services,Public Health CC0450,Third Party Payments,460803,Contract Payments,20/01/2023,4091671-LJHY/00000237NRT,514.43,ASHCHEM LTD.
Adult and Health Services,Public Health CC0450,Third Party Payments,460803,Contract Payments,20/01/2023,4091679-DYPD/00000374,"1,024.50",BESTWAY NATIONAL CHEMIST LTD T/A WELL.
Adult and Health Services,Public Health CC0450,Third Party Payments,460803,Contract Payments,20/01/2023,4091681-DTZQ/00000369,690.00,BESTWAY NATIONAL CHEMIST LTD T/A WELL.
Adult and Health Services,Public Health CC0450,Third Party Payments,460803,Contract Payments,20/01/2023,4091683-FQYW/00000316,569.00,BESTWAY NATIONAL CHEMIST LTD T/A WELL.
Adult and Health Services,Public Health CC0450,Third Party Payments,460803,Contract Payments,20/01/2023,4091690-FMMG/00000274NRT,538.07,BOOTS THE CHEMISTS LTD.*
Adult and Health Services,Public Health CC0450,Third Party Payments,460803,Contract Payments,20/01/2023,4091691-FHRN/00000327,"1,133.50",BOOTS THE CHEMISTS LTD.*
Adult and Health Services,Public Health CC0450,Third Party Payments,460803,Contract Payments,20/01/2023,4091695-DPWT/00000371NRT,982.04,BOOTS THE CHEMISTS LTD.*
Adult and Health Services,Public Health CC0450,Third Party Payments,460803,Contract Payments,20/01/2023,4091695-DPWT/00000372,582.50,BOOTS THE CHEMISTS LTD.*
Adult and Health Services,Public Health CC0450,Third Party Payments,460803,Contract Payments,20/01/2023,4091698-DYTC/00000360,780.50,BOOTS THE CHEMISTS LTD.*
Adult and Health Services,Public Health CC0450,Third Party Payments,460803,Contract Payments,20/01/2023,4091699-DWTP/00000346,"1,063.00",BOOTS THE CHEMISTS LTD.*
Adult and Health Services,Public Health CC0450,Third Party Payments,460803,Contract Payments,20/01/2023,4091700-FNHN/00000248,881.50,BOOTS THE CHEMISTS LTD.*
Adult and Health Services,Public Health CC0450,Third Party Payments,460803,Contract Payments,20/01/2023,4091701-DRJY/00000371,"1,152.00",BOOTS THE CHEMISTS LTD.*
Adult and Health Services,Public Health CC0450,Third Party Payments,460803,Contract Payments,20/01/2023,4091704-FKAT/00000378,697.50,BOOTS THE CHEMISTS LTD.*
